Workbook

Sheet Intro
B2: Simplified Performance-based Liquefaction Analysis Tool "SPLiq"
B6: A Simplified, Performance-based Tool for Estimating Liquefaction Hazard, Settlement, Lateral Spread, and Seismic Slope Stability
E10: Levi Ekstrom
E11: Kristin Ulmer
E12: Brian Peterson
E13: Lucy Astorga
E14: Braden Error
E15: Dr. Kevin Franke
E18: July 2022
C22: Brigham Young University With special recognition to sponsors through TPF-5(296)
E30: Version: 1.43
E31: Compatible with Excel 2010 and more recent versions
B33: This program has not yet been tested or peer reviewed for accuracy. By using this program, the user agrees to full responsibility for any damages or liability that result from the use of this program or data herein. The authors are not liable for any damages or liability ensuing as a result of the use of this program or data obtained from this program.

Sheet Inputs
B2: Company: | C2: GEO Company | G2: Project Name: | H2: Example Problem
B3: Designer: | C3: BME | E3: Checked By: | G3: Location: | H3: Salt Lake City, UT
B4: Date: | C4: 2018-09-05 | E4: Date: | G4: Project #: | H4: AB-123-4567 | N4: = General | Q4: = Liquefaction-specific | T4: = Lateral Spread-specific
Q5: =Settlement-specific | T5: =Slope Displacement-specific
B6: Units: | C6: 2 | E6: (1 = SI, 2 = US Customary) | G6: Latitude = | H6: 40.67458 | I6: Longitude= | J6: -111.91495 | O6: Analysis Selections: | R6: *Select "TRUE" to run analysis
B8: Site Characteristics: | G8: Return Period: | H8: 2475 | I8: yrs
G9: Probability of Exceedance: | H9: =IF(H8=475,"10% in 50 yrs",IF(H8=1033,"7% in 75 yrs","2% in 50 yrs")) -> 2% in 50 yrs | Q9: Liquefaction Initiation & Settlement: | R9: TRUE
D10: Water Level at Time of Drilling = | E10: 5 | F10: =IF(units=1,"m","ft") -> ft | Q10: Lateral Spread: | R10: TRUE
D11: Design Water Table Depth = | E11: 0 | F11: =IF(units=1,"m","ft") -> ft | G11: **Maximum of 20 Sublayers** | Q11: Slope Displacement: | R11: TRUE
B12: =IF(units=1,"Depth (m)","Depth (ft)") -> Depth (ft) | C12: N (bpf) | D12: Sampler Type | E12: =IF(units=1,"γ (kN/m^3)","γ (lb/ft^3)") -> γ (lb/ft^3) | F12: Fines (%) | G12: =IF(units=1,"Thickness (m)","Thickness (ft)") -> Thickness (ft) | H12: KDR | I12: Soil Type | J12: Susceptible?
A13: Start Here --> | B13: 1.5 | C13: 20 | D13: Standard SS (2-in OD) | E13: 124.3 | F13: 10 | G13: 3 | I13: Granular Fill | J13: Yes | L13: Hammer Efficiency (%) | P13: Cetin: | Q13: TRUE | R13: B&I/I&Y: | S13: TRUE | V13: GS | W13: FF = Free Face GS = Ground Slope
B14: 5.5 | C14: 14 | D14: Non-Standard (3-in OD) | E14: 124.3 | F14: 10 | G14: 5 | I14: [SM]_Silty_sand | J14: Yes | L14: 77
B15: 10.5 | C15: 12 | D15: Non-Standard (2.5-in OD) | E15: 124.3 | F15: 10 | G15: 5 | I15: [SM]_Silty_sand | J15: Yes
B16: 15 | C16: 3 | D16: D&M SS (3.25-in OD) | E16: 124.3 | F16: 60 | G16: 4 | I16: [CL]_Clay | J16: No | L16: Borehole Diameter | P16: PL/FSL: | Q16: FSL | R16: PL = Probability of Liq. | U16: R&S: | V16: TRUE | W16: B&T: | X16: TRUE
B17: 20.5 | C17: 27 | D17: Custom Factor | E17: 124.3 | F17: 10 | G17: 7 | I17: [SM]_Silty_sand | J17: Yes | L17: 4.25 | M17: =IF(units=1,"mm","in") -> in | R17: FSL = Factor of Safety
B18: 25.5 | C18: 22 | D18: Standard SS (2-in OD) | E18: 124.3 | F18: 10 | G18: 3 | I18: [SM]_Silty_sand | J18: Yes
B19: 30.5 | C19: 16 | D19: Standard SS (2-in OD) | E19: 124.3 | F19: 10 | G19: 7 | I19: [SM]_Silty_sand | J19: Yes | L19: Rod Stickup Length
B20: 35.5 | C20: 13 | D20: Custom Factor | E20: 124.3 | F20: 10 | G20: 3 | I20: [SM]_Silty_sand | J20: Yes | L20: 5 | M20: =IF(units=1,"m","ft") -> ft
B21: 41 | C21: 3 | D21: Custom Factor | E21: 124.3 | F21: 70 | G21: 8 | I21: [CL]_Clay | J21: No | Q21: Liquefaction Initiation & Settlement: | R21: TRUE
B22: 45 | C22: 3 | D22: Custom Factor | E22: 124.3 | F22: 5 | G22: 3 | I22: [SM]_Silty_sand | J22: Yes | L22: Liner Type | Q22: Lateral Spread: | R22: TRUE
B23: 51.5 | C23: 18 | D23: Custom Factor | E23: 124.3 | F23: 5 | G23: 7 | I23: [SM]_Silty_sand | J23: Yes | L23: L | Q23: Slope Displacement: | R23: TRUE
B24: 57 | C24: 5 | D24: Custom Factor | E24: 124.3 | F24: 5 | G24: 4 | I24: [SM]_Silty_sand | J24: Yes | K24: L = Standard Split Spoon NL = Room for liners, but no liners
L26: Convert SPT N Custom Factor:
L27: 0.55
B34: Ground Motion Parameters: | F34: Site Lateral Spread Parameters: | J34: Site Slope Disp. Parameters:
B36: PGA = | C36: 0.44 | F36: S = | G36: 1.5 | H36: % | J36: ky= | K36: 0.2 | AC36: A
B37: FPGA = | C37: 1.06 | F37: W = | G37: 16 | H37: % | M37: 1 | N37: 15 | AC37: B
B38: Mw = | C38: 6.77 | F38: T15 = | G38: 10 | H38: =IF(units=1,"m","ft") -> ft | I38: =IF(H38="m",M37,M38) -> 3.280839895 | J38: =IF(H38="m",N37,N38) -> 49.21259843 | M38: =CONVERT(M37,"m","ft") -> 3.280839895 | N38: =CONVERT(N37,"m","ft") -> 49.21259843 | AC38: C
B39: Vs,12 = | C39: 623 | D39: =IF(units=1,"m/s","ft/s") -> ft/s | F39: F15 = | G39: 11 | H39: % | AC39: D
B40: Site Class = | C40: D | F40: D5015 = | G40: 5 | H40: mm | AC40: E
AC41: F
C42: 1 | D42: 1 = Calculate FPGA Automatically
D43: 2 = User-defined FPGA value entered in box above
B44: MSF: | C44: 2014
B46: Mapped/Interpolated Reference Values:
B48: Liq. Initiation/Settlement: | F48: Lateral Spread Disp: | J48: Seismic Slope Disp:
B50: CSR(%)ref = | C50: 35.14 | F50: Log Dhref = | G50: 0.55 | J50: DR&Sref = | K50: 2.43
B51: Nreqref = | C51: 49.09 | J51: DB&Tref = | K51: 2.65
B52: εv,Cetin(%)ref = | C52: 2.3
B53: εv,I&Y(%)ref = | C53: 2.3
B57: Deterministic Analysis Parameters:
B59: Liq. Initiation/Settlement/Slope Disp: | F59: Lateral Spread Disp: | J59: Seismic Slope Disp:
B61: PGA = | C61: 0.73 | F61: Distance = | G61: 1.11 | H61: km | J61: Percentile = | K61: 85
B62: FPGA = | C62: 1 | F62: Mw = | G62: 7
B63: Mw = | C63: 6.8 | F63: Percentile = | G63: 85
B64: Percentile = | C64: 84
C66: 1 | D66: 1 = Calculate FPGA automatically
D67: 2 = User-defined FPGA value entered in box above

Sheet Final Summary
A1: Company: | B1: =IF(Inputs!$C$2="","",Inputs!$C$2) -> GEO Company | E1: Project: | F1: =IF(Inputs!$H$2="","",Inputs!$H$2) -> Example Problem | J1: Company: | K1: =IF(Inputs!$C$2="","",Inputs!$C$2) -> GEO Company | N1: Project: | P1: =IF(Inputs!$H$2="","",Inputs!$H$2) -> Example Problem | U1: Company: | V1: =IF(Inputs!$C$2="","",Inputs!$C$2) -> GEO Company | Y1: Project: | AA1: =IF(Inputs!$H$2="","",Inputs!$H$2) -> Example Problem | AF1: Company: | AG1: =IF(Inputs!$C$2="","",Inputs!$C$2) -> GEO Company | AJ1: Project: | AK1: =IF(Inputs!$H$2="","",Inputs!$H$2) -> Example Problem
A2: Designer: | B2: =IF(Inputs!$C$3="","",Inputs!$C$3) -> BME | C2: Checked by: | D2: =IF(Inputs!$F$3="","",Inputs!$F$3) ->  | E2: Location: | F2: =IF(Inputs!$H$3="","",Inputs!$H$3) -> Salt Lake City, UT | G2: =IF(Inputs!I3="","",Inputs!I3) ->  | H2: =IF(Inputs!J3="","",Inputs!J3) ->  | I2: =IF(Inputs!K3="","",Inputs!K3) ->  | J2: Designer: | K2: =IF(Inputs!$C$3="","",Inputs!$C$3) -> BME | L2: Checked: | M2: =IF(Inputs!$F$3="","",Inputs!$F$3) ->  | N2: Location: | P2: =IF(Inputs!$H$3="","",Inputs!$H$3) -> Salt Lake City, UT | U2: Designer: | V2: =IF(Inputs!$C$3="","",Inputs!$C$3) -> BME | W2: Checked: | X2: =IF(Inputs!$F$3="","",Inputs!$F$3) ->  | Y2: Location: | AA2: =IF(Inputs!$H$3="","",Inputs!$H$3) -> Salt Lake City, UT | AF2: Designer: | AG2: =IF(Inputs!$C$3="","",Inputs!$C$3) -> BME | AH2: Checked: | AI2: =IF(Inputs!$F$3="","",Inputs!$F$3) ->  | AJ2: Location: | AK2: =IF(Inputs!$H$3="","",Inputs!$H$3) -> Salt Lake City, UT | AL2: =IF(Inputs!AN3="","",Inputs!AN3) ->  | AM2: =IF(Inputs!AO3="","",Inputs!AO3) ->  | AN2: =IF(Inputs!AP3="","",Inputs!AP3) -> 
A3: Date: | B3: =IF(Inputs!$C$4="","",Inputs!$C$4) -> 2018-09-05 | C3: Date: | D3: =IF(Inputs!$F$4="","",Inputs!$F$4) ->  | E3: Project #: | F3: =IF(Inputs!$H$4="","",Inputs!$H$4) -> AB-123-4567 | G3: =IF(Inputs!I4="","",Inputs!I4) ->  | H3: =IF(Inputs!J4="","",Inputs!J4) ->  | I3: =IF(Inputs!K4="","",Inputs!K4) ->  | J3: Date: | K3: =IF(Inputs!$C$4="","",Inputs!$C$4) -> 2018-09-05 | L3: Date: | M3: =IF(Inputs!$F$4="","",Inputs!$F$4) ->  | N3: Project #: | P3: =IF(Inputs!$H$4="","",Inputs!$H$4) -> AB-123-4567 | U3: Date: | V3: =IF(Inputs!$C$4="","",Inputs!$C$4) -> 2018-09-05 | W3: Date: | X3: =IF(Inputs!$F$4="","",Inputs!$F$4) ->  | Y3: Project #: | AA3: =IF(Inputs!$H$4="","",Inputs!$H$4) -> AB-123-4567 | AF3: Date: | AG3: =IF(Inputs!$C$4="","",Inputs!$C$4) -> 2018-09-05 | AH3: Date: | AI3: =IF(Inputs!$F$4="","",Inputs!$F$4) ->  | AJ3: Project #: | AK3: =IF(Inputs!$H$4="","",Inputs!$H$4) -> AB-123-4567 | AL3: =IF(Inputs!AN4="","",Inputs!AN4) ->  | AM3: =IF(Inputs!AO4="","",Inputs!AO4) ->  | AN3: =IF(Inputs!AP4="","",Inputs!AP4) -> 
A5: Summary of Inputs for Liquefaction Initiation: | J5: Liquefaction Initiation and Settlement Simplified Performance-based Results: | U5: Liquefaction Initiation and Settlement Deterministic Results: | AF5: Summary of Inputs for Lateral Spread Analysis:
G6: Hammer Efficiency = | H6: =IF(Hammer_Eff="","",Hammer_Eff) -> 77 | I6: %
C7: Water Level at Time of Drilling = | D7: =IF(gw_depth="","",gw_depth) -> 5 | E7: =IF(units=1,"m","ft") -> ft | G7: Borehole Diameter = | H7: =IF(Bore_Diam="","",Bore_Diam) -> 4.25 | I7: =IF(units=1,"mm","in") -> in | AG7: Site Characteristics | AI7: Mapped Reference Value | AL7: Inputs for Deterministic Analysis
C8: Design Water Table Depth = | D8: =IF(design_gw="","",design_gw) -> 0 | E8: =IF(units=1,"m","ft") -> ft | G8: Rod Stickup Length = | H8: =IF(Rod_stickup="","",Rod_stickup) -> 5 | I8: =IF(units=1,"m","ft") -> ft | AF8: S = | AG8: =IF(S_prob="","",S_prob) -> 1.5 | AH8: % | AI8: Log Dhref = | AJ8: =IF(Dh_ref="","",Dh_ref) -> 0.55 | AL8: Distance = | AM8: =IF(R_LS_det="","",R_LS_det) -> 1.11
AF9: W = | AG9: =IF(W_prob="","",W_prob) -> 16 | AH9: % | AI9: TR = | AJ9: =IF(Tr="","",Tr) -> 2475 | AK9: yrs | AL9: Mw = | AM9: =IF(Mw_LS_det="","",Mw_LS_det) -> 7
A10: =IF(units=1,"Depth (m)", "Depth (ft)") -> Depth (ft) | B10: N (bpf) | C10: Sampler Type | D10: =IF(units=1,"γ (kN/m^3)","γ (lb/ft^3)") -> γ (lb/ft^3) | E10: Fines (%) | F10: =IF(units=1,"Thickness (m)","Thickness (ft)") -> Thickness (ft) | G10: KDR | H10: Soil Type | I10: Susceptible? | AF10: T15 = | AG10: =IF(T15_prob="","",T15_prob) -> 10 | AH10: =IF(units=1,"m","ft") -> ft | AL10: Percentile = | AM10: =IF(Percentile_LS="","",Percentile_LS) -> 85
A11: =IF(Inputs!B13="","",Inputs!B13) -> 1.5 | B11: =IF(Inputs!C13="","",Inputs!C13) -> 20 | C11: =IF(Inputs!D13="","",IF(Inputs!D13="Standard SS (2-in OD)","Standard",IF(Inputs!D13="Non-Standard (3-in OD)", "3-in OD",IF(Inputs!D13="Non-Standard (2.5-in OD)","2.5-in OD",IF(Inputs!D13="D&M SS (3.25-in OD)","3.25-in OD","Custom"))))) -> Standard | D11: =IF(Inputs!E13="","",Inputs!E13) -> 124.3 | E11: =IF(Inputs!F13="","",Inputs!F13) -> 10 | F11: =IF(Inputs!G13="","",Inputs!G13) -> 3 | G11: =IF(Inputs!H13="","",Inputs!H13) ->  | H11: =IF(Inputs!I13="","",Inputs!I13) -> Granular Fill | I11: =IF(Inputs!J13="","",Inputs!J13) -> Yes | AF11: F15 = | AG11: =IF(F15_prob="","",F15_prob) -> 11 | AH11: %
A12: =IF(Inputs!B14="","",Inputs!B14) -> 5.5 | B12: =IF(Inputs!C14="","",Inputs!C14) -> 14 | C12: =IF(Inputs!D14="","",IF(Inputs!D14="Standard SS (2-in OD)","Standard",IF(Inputs!D14="Non-Standard (3-in OD)", "3-in OD",IF(Inputs!D14="Non-Standard (2.5-in OD)","2.5-in OD",IF(Inputs!D14="D&M SS (3.25-in OD)","3.25-in OD","Custom"))))) -> 3-in OD | D12: =IF(Inputs!E14="","",Inputs!E14) -> 124.3 | E12: =IF(Inputs!F14="","",Inputs!F14) -> 10 | F12: =IF(Inputs!G14="","",Inputs!G14) -> 5 | G12: =IF(Inputs!H14="","",Inputs!H14) ->  | H12: =IF(Inputs!I14="","",Inputs!I14) -> [SM]_Silty_sand | I12: =IF(Inputs!J14="","",Inputs!J14) -> Yes | AF12: D50 = | AG12: =IF(D50_prob="","",D50_prob) -> 5 | AH12: mm
A13: =IF(Inputs!B15="","",Inputs!B15) -> 10.5 | B13: =IF(Inputs!C15="","",Inputs!C15) -> 12 | C13: =IF(Inputs!D15="","",IF(Inputs!D15="Standard SS (2-in OD)","Standard",IF(Inputs!D15="Non-Standard (3-in OD)", "3-in OD",IF(Inputs!D15="Non-Standard (2.5-in OD)","2.5-in OD",IF(Inputs!D15="D&M SS (3.25-in OD)","3.25-in OD","Custom"))))) -> 2.5-in OD | D13: =IF(Inputs!E15="","",Inputs!E15) -> 124.3 | E13: =IF(Inputs!F15="","",Inputs!F15) -> 10 | F13: =IF(Inputs!G15="","",Inputs!G15) -> 5 | G13: =IF(Inputs!H15="","",Inputs!H15) ->  | H13: =IF(Inputs!I15="","",Inputs!I15) -> [SM]_Silty_sand | I13: =IF(Inputs!J15="","",Inputs!J15) -> Yes
A14: =IF(Inputs!B16="","",Inputs!B16) -> 15 | B14: =IF(Inputs!C16="","",Inputs!C16) -> 3 | C14: =IF(Inputs!D16="","",IF(Inputs!D16="Standard SS (2-in OD)","Standard",IF(Inputs!D16="Non-Standard (3-in OD)", "3-in OD",IF(Inputs!D16="Non-Standard (2.5-in OD)","2.5-in OD",IF(Inputs!D16="D&M SS (3.25-in OD)","3.25-in OD","Custom"))))) -> 3.25-in OD | D14: =IF(Inputs!E16="","",Inputs!E16) -> 124.3 | E14: =IF(Inputs!F16="","",Inputs!F16) -> 60 | F14: =IF(Inputs!G16="","",Inputs!G16) -> 4 | G14: =IF(Inputs!H16="","",Inputs!H16) ->  | H14: =IF(Inputs!I16="","",Inputs!I16) -> [CL]_Clay | I14: =IF(Inputs!J16="","",Inputs!J16) -> No
A15: =IF(Inputs!B17="","",Inputs!B17) -> 20.5 | B15: =IF(Inputs!C17="","",Inputs!C17) -> 27 | C15: =IF(Inputs!D17="","",IF(Inputs!D17="Standard SS (2-in OD)","Standard",IF(Inputs!D17="Non-Standard (3-in OD)", "3-in OD",IF(Inputs!D17="Non-Standard (2.5-in OD)","2.5-in OD",IF(Inputs!D17="D&M SS (3.25-in OD)","3.25-in OD","Custom"))))) -> Custom | D15: =IF(Inputs!E17="","",Inputs!E17) -> 124.3 | E15: =IF(Inputs!F17="","",Inputs!F17) -> 10 | F15: =IF(Inputs!G17="","",Inputs!G17) -> 7 | G15: =IF(Inputs!H17="","",Inputs!H17) ->  | H15: =IF(Inputs!I17="","",Inputs!I17) -> [SM]_Silty_sand | I15: =IF(Inputs!J17="","",Inputs!J17) -> Yes | AF15: Lateral Spread Displacement Results:
A16: =IF(Inputs!B18="","",Inputs!B18) -> 25.5 | B16: =IF(Inputs!C18="","",Inputs!C18) -> 22 | C16: =IF(Inputs!D18="","",IF(Inputs!D18="Standard SS (2-in OD)","Standard",IF(Inputs!D18="Non-Standard (3-in OD)", "3-in OD",IF(Inputs!D18="Non-Standard (2.5-in OD)","2.5-in OD",IF(Inputs!D18="D&M SS (3.25-in OD)","3.25-in OD","Custom"))))) -> Standard | D16: =IF(Inputs!E18="","",Inputs!E18) -> 124.3 | E16: =IF(Inputs!F18="","",Inputs!F18) -> 10 | F16: =IF(Inputs!G18="","",Inputs!G18) -> 3 | G16: =IF(Inputs!H18="","",Inputs!H18) ->  | H16: =IF(Inputs!I18="","",Inputs!I18) -> [SM]_Silty_sand | I16: =IF(Inputs!J18="","",Inputs!J18) -> Yes
A17: =IF(Inputs!B19="","",Inputs!B19) -> 30.5 | B17: =IF(Inputs!C19="","",Inputs!C19) -> 16 | C17: =IF(Inputs!D19="","",IF(Inputs!D19="Standard SS (2-in OD)","Standard",IF(Inputs!D19="Non-Standard (3-in OD)", "3-in OD",IF(Inputs!D19="Non-Standard (2.5-in OD)","2.5-in OD",IF(Inputs!D19="D&M SS (3.25-in OD)","3.25-in OD","Custom"))))) -> Standard | D17: =IF(Inputs!E19="","",Inputs!E19) -> 124.3 | E17: =IF(Inputs!F19="","",Inputs!F19) -> 10 | F17: =IF(Inputs!G19="","",Inputs!G19) -> 7 | G17: =IF(Inputs!H19="","",Inputs!H19) ->  | H17: =IF(Inputs!I19="","",Inputs!I19) -> [SM]_Silty_sand | I17: =IF(Inputs!J19="","",Inputs!J19) -> Yes | AF17: Simplified PB Results: | AJ17: Deterministic Results:
A18: =IF(Inputs!B20="","",Inputs!B20) -> 35.5 | B18: =IF(Inputs!C20="","",Inputs!C20) -> 13 | C18: =IF(Inputs!D20="","",IF(Inputs!D20="Standard SS (2-in OD)","Standard",IF(Inputs!D20="Non-Standard (3-in OD)", "3-in OD",IF(Inputs!D20="Non-Standard (2.5-in OD)","2.5-in OD",IF(Inputs!D20="D&M SS (3.25-in OD)","3.25-in OD","Custom"))))) -> Custom | D18: =IF(Inputs!E20="","",Inputs!E20) -> 124.3 | E18: =IF(Inputs!F20="","",Inputs!F20) -> 10 | F18: =IF(Inputs!G20="","",Inputs!G20) -> 3 | G18: =IF(Inputs!H20="","",Inputs!H20) ->  | H18: =IF(Inputs!I20="","",Inputs!I20) -> [SM]_Silty_sand | I18: =IF(Inputs!J20="","",Inputs!J20) -> Yes
A19: =IF(Inputs!B21="","",Inputs!B21) -> 41 | B19: =IF(Inputs!C21="","",Inputs!C21) -> 3 | C19: =IF(Inputs!D21="","",IF(Inputs!D21="Standard SS (2-in OD)","Standard",IF(Inputs!D21="Non-Standard (3-in OD)", "3-in OD",IF(Inputs!D21="Non-Standard (2.5-in OD)","2.5-in OD",IF(Inputs!D21="D&M SS (3.25-in OD)","3.25-in OD","Custom"))))) -> Custom | D19: =IF(Inputs!E21="","",Inputs!E21) -> 124.3 | E19: =IF(Inputs!F21="","",Inputs!F21) -> 70 | F19: =IF(Inputs!G21="","",Inputs!G21) -> 8 | G19: =IF(Inputs!H21="","",Inputs!H21) ->  | H19: =IF(Inputs!I21="","",Inputs!I21) -> [CL]_Clay | I19: =IF(Inputs!J21="","",Inputs!J21) -> No | AG19: Dhsite = | AH19: =IF(Simp_LS_Option=TRUE,IF(units=2,CONVERT('Lateral Spread'!C25,"m","ft"),'Lateral Spread'!C25),NA()) -> 2.030588224 | AI19: =IF(units=1,"m","ft") -> ft | AK19: Dh = | AL19: =IF(Det_LS_option=TRUE,IF(units=2,CONVERT('Lateral Spread'!G25,"m","ft"),'Lateral Spread'!G25),NA()) -> 4.432759243 | AM19: =IF(units=1,"m","ft") -> ft
A20: =IF(Inputs!B22="","",Inputs!B22) -> 45 | B20: =IF(Inputs!C22="","",Inputs!C22) -> 3 | C20: =IF(Inputs!D22="","",IF(Inputs!D22="Standard SS (2-in OD)","Standard",IF(Inputs!D22="Non-Standard (3-in OD)", "3-in OD",IF(Inputs!D22="Non-Standard (2.5-in OD)","2.5-in OD",IF(Inputs!D22="D&M SS (3.25-in OD)","3.25-in OD","Custom"))))) -> Custom | D20: =IF(Inputs!E22="","",Inputs!E22) -> 124.3 | E20: =IF(Inputs!F22="","",Inputs!F22) -> 5 | F20: =IF(Inputs!G22="","",Inputs!G22) -> 3 | G20: =IF(Inputs!H22="","",Inputs!H22) ->  | H20: =IF(Inputs!I22="","",Inputs!I22) -> [SM]_Silty_sand | I20: =IF(Inputs!J22="","",Inputs!J22) -> Yes
A21: =IF(Inputs!B23="","",Inputs!B23) -> 51.5 | B21: =IF(Inputs!C23="","",Inputs!C23) -> 18 | C21: =IF(Inputs!D23="","",IF(Inputs!D23="Standard SS (2-in OD)","Standard",IF(Inputs!D23="Non-Standard (3-in OD)", "3-in OD",IF(Inputs!D23="Non-Standard (2.5-in OD)","2.5-in OD",IF(Inputs!D23="D&M SS (3.25-in OD)","3.25-in OD","Custom"))))) -> Custom | D21: =IF(Inputs!E23="","",Inputs!E23) -> 124.3 | E21: =IF(Inputs!F23="","",Inputs!F23) -> 5 | F21: =IF(Inputs!G23="","",Inputs!G23) -> 7 | G21: =IF(Inputs!H23="","",Inputs!H23) ->  | H21: =IF(Inputs!I23="","",Inputs!I23) -> [SM]_Silty_sand | I21: =IF(Inputs!J23="","",Inputs!J23) -> Yes
A22: =IF(Inputs!B24="","",Inputs!B24) -> 57 | B22: =IF(Inputs!C24="","",Inputs!C24) -> 5 | C22: =IF(Inputs!D24="","",IF(Inputs!D24="Standard SS (2-in OD)","Standard",IF(Inputs!D24="Non-Standard (3-in OD)", "3-in OD",IF(Inputs!D24="Non-Standard (2.5-in OD)","2.5-in OD",IF(Inputs!D24="D&M SS (3.25-in OD)","3.25-in OD","Custom"))))) -> Custom | D22: =IF(Inputs!E24="","",Inputs!E24) -> 124.3 | E22: =IF(Inputs!F24="","",Inputs!F24) -> 5 | F22: =IF(Inputs!G24="","",Inputs!G24) -> 4 | G22: =IF(Inputs!H24="","",Inputs!H24) ->  | H22: =IF(Inputs!I24="","",Inputs!I24) -> [SM]_Silty_sand | I22: =IF(Inputs!J24="","",Inputs!J24) -> Yes
A23: =IF(Inputs!B25="","",Inputs!B25) ->  | B23: =IF(Inputs!C25="","",Inputs!C25) ->  | C23: =IF(Inputs!D25="","",IF(Inputs!D25="Standard SS (2-in OD)","Standard",IF(Inputs!D25="Non-Standard (3-in OD)", "3-in OD",IF(Inputs!D25="Non-Standard (2.5-in OD)","2.5-in OD",IF(Inputs!D25="D&M SS (3.25-in OD)","3.25-in OD","Custom"))))) ->  | D23: =IF(Inputs!E25="","",Inputs!E25) ->  | E23: =IF(Inputs!F25="","",Inputs!F25) ->  | F23: =IF(Inputs!G25="","",Inputs!G25) ->  | G23: =IF(Inputs!H25="","",Inputs!H25) ->  | H23: =IF(Inputs!I25="","",Inputs!I25) ->  | I23: =IF(Inputs!J25="","",Inputs!J25) -> 
A24: =IF(Inputs!B26="","",Inputs!B26) ->  | B24: =IF(Inputs!C26="","",Inputs!C26) ->  | C24: =IF(Inputs!D26="","",IF(Inputs!D26="Standard SS (2-in OD)","Standard",IF(Inputs!D26="Non-Standard (3-in OD)", "3-in OD",IF(Inputs!D26="Non-Standard (2.5-in OD)","2.5-in OD",IF(Inputs!D26="D&M SS (3.25-in OD)","3.25-in OD","Custom"))))) ->  | D24: =IF(Inputs!E26="","",Inputs!E26) ->  | E24: =IF(Inputs!F26="","",Inputs!F26) ->  | F24: =IF(Inputs!G26="","",Inputs!G26) ->  | G24: =IF(Inputs!H26="","",Inputs!H26) ->  | H24: =IF(Inputs!I26="","",Inputs!I26) ->  | I24: =IF(Inputs!J26="","",Inputs!J26) ->  | K24: Idriss and Boulanger (2008, 2012); Ishihara & Yoshimine (1992) | P24: Cetin et al. (2004, 2009) | V24: Idriss and Boulanger (2008, 2012); Ishihara & Yoshimine (1992) | AA24: Cetin et al. (2004, 2009) | AF24: Summary of Inputs for Seismic Slope Displacement Analysis:
A25: =IF(Inputs!B27="","",Inputs!B27) ->  | B25: =IF(Inputs!C27="","",Inputs!C27) ->  | C25: =IF(Inputs!D27="","",IF(Inputs!D27="Standard SS (2-in OD)","Standard",IF(Inputs!D27="Non-Standard (3-in OD)", "3-in OD",IF(Inputs!D27="Non-Standard (2.5-in OD)","2.5-in OD",IF(Inputs!D27="D&M SS (3.25-in OD)","3.25-in OD","Custom"))))) ->  | D25: =IF(Inputs!E27="","",Inputs!E27) ->  | E25: =IF(Inputs!F27="","",Inputs!F27) ->  | F25: =IF(Inputs!G27="","",Inputs!G27) ->  | G25: =IF(Inputs!H27="","",Inputs!H27) ->  | H25: =IF(Inputs!I27="","",Inputs!I27) ->  | I25: =IF(Inputs!J27="","",Inputs!J27) ->  | J25: =IF(units=1,"Depth (m)","Depth (ft)") -> Depth (ft) | K25: (N1)60,cs | L25: Nreqsite | M25: CSRsite | N25: =IF(Option_PL_FSL="FSL","FS_L","P_L") -> FS_L | O25: ="∑S" & IF(units=1," [cm]"," [in]") -> ∑S [in] | P25: (N1)60,cs | Q25: Nreqsite | R25: CSRsite | S25: =IF(Option_PL_FSL="FSL","FS_L","P_L") -> FS_L | T25: ="∑S" & IF(units=1," [cm]"," [in]") -> ∑S [in] | U25: =IF(units=1,"Depth (m)","Depth (ft)") -> Depth (ft) | V25: (N1)60,cs | W25: Nreqsite | X25: CSRsite | Y25: =IF(Option_PL_FSL="FSL","FS_L","P_L") -> FS_L | Z25: ="∑S" & IF(units=1," [cm]"," [in]") -> ∑S [in] | AA25: (N1)60,cs | AB25: Nreqsite | AC25: CSRsite | AD25: =IF(Option_PL_FSL="FSL","FS_L","P_L") -> FS_L | AE25: ="∑S" & IF(units=1," [cm]"," [in]") -> ∑S [in]
A26: =IF(Inputs!B28="","",Inputs!B28) ->  | B26: =IF(Inputs!C28="","",Inputs!C28) ->  | C26: =IF(Inputs!D28="","",IF(Inputs!D28="Standard SS (2-in OD)","Standard",IF(Inputs!D28="Non-Standard (3-in OD)", "3-in OD",IF(Inputs!D28="Non-Standard (2.5-in OD)","2.5-in OD",IF(Inputs!D28="D&M SS (3.25-in OD)","3.25-in OD","Custom"))))) ->  | D26: =IF(Inputs!E28="","",Inputs!E28) ->  | E26: =IF(Inputs!F28="","",Inputs!F28) ->  | F26: =IF(Inputs!G28="","",Inputs!G28) ->  | G26: =IF(Inputs!H28="","",Inputs!H28) ->  | H26: =IF(Inputs!I28="","",Inputs!I28) ->  | I26: =IF(Inputs!J28="","",Inputs!J28) ->  | J26: =IF(Inputs!$B13="","",Inputs!$B13) -> 1.5 | K26: =IF(Method_BI=TRUE,IF('PB Liquefaction Initiation'!$F10="",NA(),'PB Liquefaction Initiation'!$F10),NA()) -> 33.87418545 | L26: =IF(AND(Method_BI=TRUE,Inputs!J13="Yes"),'PB Liquefaction Initiation'!S10,NA()) -> 19.14770508 | M26: =IF(Method_BI=TRUE,IF('PB Liquefaction Initiation'!P10="","",'PB Liquefaction Initiation'!P10),NA()) -> 0.2231123602 | N26: =IF(Method_BI=TRUE,IF(Option_PL_FSL="FSL",'PB Liquefaction Initiation'!R10,IF(Option_PL_FSL="PL",'PB Liquefaction Initiation'!T10,NA())),NA()) -> 4.531038012 | O26: =IF(AND(Method_BI=TRUE,J26<>""),IF(units=1,'PB Settlement'!AI8,CONVERT('PB Settlement'!AI8,"cm","in")),NA()) -> 16.27730597 | P26: =IF(Method_Cetin=TRUE,'PB Liquefaction Initiation'!$D43,NA()) -> 32.632 | Q26: =IF(Method_Cetin=TRUE,'PB Liquefaction Initiation'!J43,NA()) -> 42.0049287 | R26: =IF(Method_Cetin=TRUE,'PB Liquefaction Initiation'!M43,NA()) -> 2.685317088 | S26: =IF(Method_Cetin=TRUE,IF(Option_PL_FSL="FSL",'PB Liquefaction Initiation'!K43,IF(Option_PL_FSL="PL",'PB Liquefaction Initiation'!L43,NA())),NA()) -> 0.5067739357 | T26: =IF(AND(Method_Cetin=TRUE,'Final Summary'!J26<>""),IF(units=1,'PB Settlement'!AI36,CONVERT('PB Settlement'!AI36,"cm","in")),NA()) -> 16.93660604 | U26: =IF(Inputs!$B13="","",Inputs!$B13) -> 1.5 | V26: =IF(Method_BI=TRUE,IF('PB Liquefaction Initiation'!$F10="",NA(),'PB Liquefaction Initiation'!$F10),NA()) -> 33.87418545 | W26: =IF(Method_BI=TRUE,IF(Inputs!J13="No",NA(),'Det Liquefaction Initiation'!P10),NA()) -> 30.87283325 | X26: =IF(Method_BI=TRUE,'Det Liquefaction Initiation'!S10,NA()) -> 0.4139638381 | Y26: =IF(Method_BI=TRUE,IF(Option_PL_FSL="FSL",'Det Liquefaction Initiation'!Q10,'Det Liquefaction Initiation'!R10),NA()) -> 1.854069775 | Z26: =IF(Det_Liq_Option=FALSE,NA(),IF(AND(Method_BI=TRUE,U26<>""),IF(units=1,'Det Settlement'!U7,CONVERT('Det Settlement'!U7,"cm","in")),NA())) -> 12.88017322 | AA26: =IF(Method_Cetin=TRUE,'PB Liquefaction Initiation'!$D43,NA()) -> 32.632 | AB26: =IF(Method_Cetin=TRUE,'Det Liquefaction Initiation'!K43,NA()) -> 32.02838398 | AC26: =IF(Method_Cetin=TRUE,'Det Liquefaction Initiation'!N43,NA()) -> 0.9526599567 | AD26: =IF(Method_Cetin=TRUE,IF(Option_PL_FSL="FSL",'Det Liquefaction Initiation'!L43,'Det Liquefaction Initiation'!M43),NA()) -> 1.681060554 | AE26: =IF(Det_Liq_Option=FALSE,NA(),IF(AND(Method_Cetin=TRUE,'Final Summary'!U26<>""),IF(units=1,'Det Settlement'!U33,CONVERT('Det Settlement'!U33,"cm","in")),NA())) -> 17.78112184 | AG26: Input Parameters | AI26: Refence Value | AL26: Inputs for Deterministic Analysis
A27: =IF(Inputs!B29="","",Inputs!B29) ->  | B27: =IF(Inputs!C29="","",Inputs!C29) ->  | C27: =IF(Inputs!D29="","",IF(Inputs!D29="Standard SS (2-in OD)","Standard",IF(Inputs!D29="Non-Standard (3-in OD)", "3-in OD",IF(Inputs!D29="Non-Standard (2.5-in OD)","2.5-in OD",IF(Inputs!D29="D&M SS (3.25-in OD)","3.25-in OD","Custom"))))) ->  | D27: =IF(Inputs!E29="","",Inputs!E29) ->  | E27: =IF(Inputs!F29="","",Inputs!F29) ->  | F27: =IF(Inputs!G29="","",Inputs!G29) ->  | G27: =IF(Inputs!H29="","",Inputs!H29) ->  | H27: =IF(Inputs!I29="","",Inputs!I29) ->  | I27: =IF(Inputs!J29="","",Inputs!J29) ->  | J27: =IF(Inputs!$B14="","",Inputs!$B14) -> 5.5 | K27: =IF(Method_BI=TRUE,IF('PB Liquefaction Initiation'!$F11="",NA(),'PB Liquefaction Initiation'!$F11),NA()) -> 11.90043878 | L27: =IF(AND(Method_BI=TRUE,Inputs!J14="Yes"),'PB Liquefaction Initiation'!S11,NA()) -> 27.37555695 | M27: =IF(Method_BI=TRUE,IF('PB Liquefaction Initiation'!P11="","",'PB Liquefaction Initiation'!P11),NA()) -> 0.4095218378 | N27: =IF(Method_BI=TRUE,IF(Option_PL_FSL="FSL",'PB Liquefaction Initiation'!R11,IF(Option_PL_FSL="PL",'PB Liquefaction Initiation'!T11,NA())),NA()) -> 0.3662843361 | O27: =IF(AND(Method_BI=TRUE,J27<>""),IF(units=1,'PB Settlement'!AI9,CONVERT('PB Settlement'!AI9,"cm","in")),NA()) -> 16.27730597 | P27: =IF(Method_Cetin=TRUE,'PB Liquefaction Initiation'!$D44,NA()) -> 10.62149159 | Q27: =IF(Method_Cetin=TRUE,'PB Liquefaction Initiation'!J44,NA()) -> 46.83219977 | R27: =IF(Method_Cetin=TRUE,'PB Liquefaction Initiation'!M44,NA()) -> 2.658966009 | S27: =IF(Method_Cetin=TRUE,IF(Option_PL_FSL="FSL",'PB Liquefaction Initiation'!K44,IF(Option_PL_FSL="PL",'PB Liquefaction Initiation'!L44,NA())),NA()) -> 0.07237696718 | T27: =IF(AND(Method_Cetin=TRUE,'Final Summary'!J27<>""),IF(units=1,'PB Settlement'!AI37,CONVERT('PB Settlement'!AI37,"cm","in")),NA()) -> 16.19916666 | U27: =IF(Inputs!$B14="","",Inputs!$B14) -> 5.5 | V27: =IF(Method_BI=TRUE,IF('PB Liquefaction Initiation'!$F11="",NA(),'PB Liquefaction Initiation'!$F11),NA()) -> 11.90043878 | W27: =IF(Method_BI=TRUE,IF(Inputs!J14="No",NA(),'Det Liquefaction Initiation'!P11),NA()) -> 34.45656013 | X27: =IF(Method_BI=TRUE,'Det Liquefaction Initiation'!S11,NA()) -> 0.7537279767 | Y27: =IF(Method_BI=TRUE,IF(Option_PL_FSL="FSL",'Det Liquefaction Initiation'!Q11,'Det Liquefaction Initiation'!R11),NA()) -> 0.1510942438 | Z27: =IF(Det_Liq_Option=FALSE,NA(),IF(AND(Method_BI=TRUE,U27<>""),IF(units=1,'Det Settlement'!U8,CONVERT('Det Settlement'!U8,"cm","in")),NA())) -> 12.84648002 | AA27: =IF(Method_Cetin=TRUE,'PB Liquefaction Initiation'!$D44,NA()) -> 10.62149159 | AB27: =IF(Method_Cetin=TRUE,'Det Liquefaction Initiation'!K44,NA()) -> 36.95580563 | AC27: =IF(Method_Cetin=TRUE,'Det Liquefaction Initiation'!N44,NA()) -> 0.9501872677 | AD27: =IF(Method_Cetin=TRUE,IF(Option_PL_FSL="FSL",'Det Liquefaction Initiation'!L44,'Det Liquefaction Initiation'!M44),NA()) -> 0.2383501241 | AE27: =IF(Det_Liq_Option=FALSE,NA(),IF(AND(Method_Cetin=TRUE,'Final Summary'!U27<>""),IF(units=1,'Det Settlement'!U34,CONVERT('Det Settlement'!U34,"cm","in")),NA())) -> 17.03434133 | AF27: PGA = | AG27: =IF(PGA_prob="","",PGA_prob) -> 0.44 | AI27: DR&Sref = | AJ27: =IF(D_ref_RS="","",D_ref_RS) -> 2.43 | AL27: PGA = | AM27: =IF(PGA_det="","",PGA_det) -> 0.73
A28: =IF(Inputs!B30="","",Inputs!B30) ->  | B28: =IF(Inputs!C30="","",Inputs!C30) ->  | C28: =IF(Inputs!D30="","",IF(Inputs!D30="Standard SS (2-in OD)","Standard",IF(Inputs!D30="Non-Standard (3-in OD)", "3-in OD",IF(Inputs!D30="Non-Standard (2.5-in OD)","2.5-in OD",IF(Inputs!D30="D&M SS (3.25-in OD)","3.25-in OD","Custom"))))) ->  | D28: =IF(Inputs!E30="","",Inputs!E30) ->  | E28: =IF(Inputs!F30="","",Inputs!F30) ->  | F28: =IF(Inputs!G30="","",Inputs!G30) ->  | G28: =IF(Inputs!H30="","",Inputs!H30) ->  | H28: =IF(Inputs!I30="","",Inputs!I30) ->  | I28: =IF(Inputs!J30="","",Inputs!J30) ->  | J28: =IF(Inputs!$B15="","",Inputs!$B15) -> 10.5 | K28: =IF(Method_BI=TRUE,IF('PB Liquefaction Initiation'!$F12="",NA(),'PB Liquefaction Initiation'!$F12),NA()) -> 13.69340367 | L28: =IF(AND(Method_BI=TRUE,Inputs!J15="Yes"),'PB Liquefaction Initiation'!S12,NA()) -> 27.53518677 | M28: =IF(Method_BI=TRUE,IF('PB Liquefaction Initiation'!P12="","",'PB Liquefaction Initiation'!P12),NA()) -> 0.4161886272 | N28: =IF(Method_BI=TRUE,IF(Option_PL_FSL="FSL",'PB Liquefaction Initiation'!R12,IF(Option_PL_FSL="PL",'PB Liquefaction Initiation'!T12,NA())),NA()) -> 0.3980090169 | O28: =IF(AND(Method_BI=TRUE,J28<>""),IF(units=1,'PB Settlement'!AI10,CONVERT('PB Settlement'!AI10,"cm","in")),NA()) -> 12.15728953 | P28: =IF(Method_Cetin=TRUE,'PB Liquefaction Initiation'!$D45,NA()) -> 13.32533679 | Q28: =IF(Method_Cetin=TRUE,'PB Liquefaction Initiation'!J45,NA()) -> 49.04280584 | R28: =IF(Method_Cetin=TRUE,'PB Liquefaction Initiation'!M45,NA()) -> 2.609395645 | S28: =IF(Method_Cetin=TRUE,IF(Option_PL_FSL="FSL",'PB Liquefaction Initiation'!K45,IF(Option_PL_FSL="PL",'PB Liquefaction Initiation'!L45,NA())),NA()) -> 0.07501259258 | T28: =IF(AND(Method_Cetin=TRUE,'Final Summary'!J28<>""),IF(units=1,'PB Settlement'!AI38,CONVERT('PB Settlement'!AI38,"cm","in")),NA()) -> 12.06826684 | U28: =IF(Inputs!$B15="","",Inputs!$B15) -> 10.5 | V28: =IF(Method_BI=TRUE,IF('PB Liquefaction Initiation'!$F12="",NA(),'PB Liquefaction Initiation'!$F12),NA()) -> 13.69340367 | W28: =IF(Method_BI=TRUE,IF(Inputs!J15="No",NA(),'Det Liquefaction Initiation'!P12),NA()) -> 34.54188919 | X28: =IF(Method_BI=TRUE,'Det Liquefaction Initiation'!S12,NA()) -> 0.7665870774 | Y28: =IF(Method_BI=TRUE,IF(Option_PL_FSL="FSL",'Det Liquefaction Initiation'!Q12,'Det Liquefaction Initiation'!R12),NA()) -> 0.1640547345 | Z28: =IF(Det_Liq_Option=FALSE,NA(),IF(AND(Method_BI=TRUE,U28<>""),IF(units=1,'Det Settlement'!U9,CONVERT('Det Settlement'!U9,"cm","in")),NA())) -> 9.647294208 | AA28: =IF(Method_Cetin=TRUE,'PB Liquefaction Initiation'!$D45,NA()) -> 13.32533679 | AB28: =IF(Method_Cetin=TRUE,'Det Liquefaction Initiation'!K45,NA()) -> 39.37471842 | AC28: =IF(Method_Cetin=TRUE,'Det Liquefaction Initiation'!N45,NA()) -> 0.9466657154 | AD28: =IF(Method_Cetin=TRUE,IF(Option_PL_FSL="FSL",'Det Liquefaction Initiation'!L45,'Det Liquefaction Initiation'!M45),NA()) -> 0.243326205 | AE28: =IF(Det_Liq_Option=FALSE,NA(),IF(AND(Method_Cetin=TRUE,'Final Summary'!U28<>""),IF(units=1,'Det Settlement'!U35,CONVERT('Det Settlement'!U35,"cm","in")),NA())) -> 12.83299742 | AF28: FPGA = | AG28: =IF(Fpga="","",Fpga) -> 1.06 | AI28: DB&Tref = | AJ28: =IF(D_ref_BT="","",D_ref_BT) -> 2.65 | AL28: ky= | AM28: =IF(ky_site="","",ky_site) -> 0.2
A29: =IF(Inputs!B31="","",Inputs!B31) ->  | B29: =IF(Inputs!C31="","",Inputs!C31) ->  | C29: =IF(Inputs!D31="","",IF(Inputs!D31="Standard SS (2-in OD)","Standard",IF(Inputs!D31="Non-Standard (3-in OD)", "3-in OD",IF(Inputs!D31="Non-Standard (2.5-in OD)","2.5-in OD",IF(Inputs!D31="D&M SS (3.25-in OD)","3.25-in OD","Custom"))))) ->  | D29: =IF(Inputs!E31="","",Inputs!E31) ->  | E29: =IF(Inputs!F31="","",Inputs!F31) ->  | F29: =IF(Inputs!G31="","",Inputs!G31) ->  | G29: =IF(Inputs!H31="","",Inputs!H31) ->  | H29: =IF(Inputs!I31="","",Inputs!I31) ->  | I29: =IF(Inputs!J31="","",Inputs!J31) ->  | J29: =IF(Inputs!$B16="","",Inputs!$B16) -> 15 | K29: =IF(Method_BI=TRUE,IF('PB Liquefaction Initiation'!$F13="",NA(),'PB Liquefaction Initiation'!$F13),NA()) -> 7.589169573 | L29: =IF(AND(Method_BI=TRUE,Inputs!J16="Yes"),'PB Liquefaction Initiation'!S13,NA()) ->  | M29: =IF(Method_BI=TRUE,IF('PB Liquefaction Initiation'!P13="","",'PB Liquefaction Initiation'!P13),NA()) ->  | N29: =IF(Method_BI=TRUE,IF(Option_PL_FSL="FSL",'PB Liquefaction Initiation'!R13,IF(Option_PL_FSL="PL",'PB Liquefaction Initiation'!T13,NA())),NA()) ->  | O29: =IF(AND(Method_BI=TRUE,J29<>""),IF(units=1,'PB Settlement'!AI11,CONVERT('PB Settlement'!AI11,"cm","in")),NA()) -> 8.943663896 | P29: =IF(Method_Cetin=TRUE,'PB Liquefaction Initiation'!$D46,NA()) -> 4.032025234 | Q29: =IF(Method_Cetin=TRUE,'PB Liquefaction Initiation'!J46,NA()) ->  | R29: =IF(Method_Cetin=TRUE,'PB Liquefaction Initiation'!M46,NA()) ->  | S29: =IF(Method_Cetin=TRUE,IF(Option_PL_FSL="FSL",'PB Liquefaction Initiation'!K46,IF(Option_PL_FSL="PL",'PB Liquefaction Initiation'!L46,NA())),NA()) ->  | T29: =IF(AND(Method_Cetin=TRUE,'Final Summary'!J29<>""),IF(units=1,'PB Settlement'!AI39,CONVERT('PB Settlement'!AI39,"cm","in")),NA()) -> 8.769714256 | U29: =IF(Inputs!$B16="","",Inputs!$B16) -> 15 | V29: =IF(Method_BI=TRUE,IF('PB Liquefaction Initiation'!$F13="",NA(),'PB Liquefaction Initiation'!$F13),NA()) -> 7.589169573 | W29: =IF(Method_BI=TRUE,IF(Inputs!J16="No",NA(),'Det Liquefaction Initiation'!P13),NA()) ->  | X29: =IF(Method_BI=TRUE,'Det Liquefaction Initiation'!S13,NA()) ->  | Y29: =IF(Method_BI=TRUE,IF(Option_PL_FSL="FSL",'Det Liquefaction Initiation'!Q13,'Det Liquefaction Initiation'!R13),NA()) ->  | Z29: =IF(Det_Liq_Option=FALSE,NA(),IF(AND(Method_BI=TRUE,U29<>""),IF(units=1,'Det Settlement'!U10,CONVERT('Det Settlement'!U10,"cm","in")),NA())) -> 7.003131035 | AA29: =IF(Method_Cetin=TRUE,'PB Liquefaction Initiation'!$D46,NA()) -> 4.032025234 | AB29: =IF(Method_Cetin=TRUE,'Det Liquefaction Initiation'!K46,NA()) ->  | AC29: =IF(Method_Cetin=TRUE,'Det Liquefaction Initiation'!N46,NA()) ->  | AD29: =IF(Method_Cetin=TRUE,IF(Option_PL_FSL="FSL",'Det Liquefaction Initiation'!L46,'Det Liquefaction Initiation'!M46),NA()) ->  | AE29: =IF(Det_Liq_Option=FALSE,NA(),IF(AND(Method_Cetin=TRUE,'Final Summary'!U29<>""),IF(units=1,'Det Settlement'!U36,CONVERT('Det Settlement'!U36,"cm","in")),NA())) -> 9.391871236 | AF29: Mw = | AG29: =IF(Mw_prob="","",Mw_prob) -> 6.77 | AL29: Mw = | AM29: =IF(Mw_det="","",Mw_det) -> 6.8
A30: =IF(Inputs!B32="","",Inputs!B32) ->  | B30: =IF(Inputs!C32="","",Inputs!C32) ->  | C30: =IF(Inputs!D32="","",IF(Inputs!D32="Standard SS (2-in OD)","Standard",IF(Inputs!D32="Non-Standard (3-in OD)", "3-in OD",IF(Inputs!D32="Non-Standard (2.5-in OD)","2.5-in OD",IF(Inputs!D32="D&M SS (3.25-in OD)","3.25-in OD","Custom"))))) ->  | D30: =IF(Inputs!E32="","",Inputs!E32) ->  | E30: =IF(Inputs!F32="","",Inputs!F32) ->  | F30: =IF(Inputs!G32="","",Inputs!G32) ->  | G30: =IF(Inputs!H32="","",Inputs!H32) ->  | H30: =IF(Inputs!I32="","",Inputs!I32) ->  | I30: =IF(Inputs!J32="","",Inputs!J32) ->  | J30: =IF(Inputs!$B17="","",Inputs!$B17) -> 20.5 | K30: =IF(Method_BI=TRUE,IF('PB Liquefaction Initiation'!$F14="",NA(),'PB Liquefaction Initiation'!$F14),NA()) -> 21.70847391 | L30: =IF(AND(Method_BI=TRUE,Inputs!J17="Yes"),'PB Liquefaction Initiation'!S14,NA()) -> 26.78862762 | M30: =IF(Method_BI=TRUE,IF('PB Liquefaction Initiation'!P14="","",'PB Liquefaction Initiation'!P14),NA()) -> 0.3866691646 | N30: =IF(Method_BI=TRUE,IF(Option_PL_FSL="FSL",'PB Liquefaction Initiation'!R14,IF(Option_PL_FSL="PL",'PB Liquefaction Initiation'!T14,NA())),NA()) -> 0.6734966309 | O30: =IF(AND(Method_BI=TRUE,J30<>""),IF(units=1,'PB Settlement'!AI12,CONVERT('PB Settlement'!AI12,"cm","in")),NA()) -> 8.943663896 | P30: =IF(Method_Cetin=TRUE,'PB Liquefaction Initiation'!$D47,NA()) -> 22.24721994 | Q30: =IF(Method_Cetin=TRUE,'PB Liquefaction Initiation'!J47,NA()) -> 50.60647595 | R30: =IF(Method_Cetin=TRUE,'PB Liquefaction Initiation'!M47,NA()) -> 2.428260706 | S30: =IF(Method_Cetin=TRUE,IF(Option_PL_FSL="FSL",'PB Liquefaction Initiation'!K47,IF(Option_PL_FSL="PL",'PB Liquefaction Initiation'!L47,NA())),NA()) -> 0.127899718 | T30: =IF(AND(Method_Cetin=TRUE,'Final Summary'!J30<>""),IF(units=1,'PB Settlement'!AI40,CONVERT('PB Settlement'!AI40,"cm","in")),NA()) -> 8.769714256 | U30: =IF(Inputs!$B17="","",Inputs!$B17) -> 20.5 | V30: =IF(Method_BI=TRUE,IF('PB Liquefaction Initiation'!$F14="",NA(),'PB Liquefaction Initiation'!$F14),NA()) -> 21.70847391 | W30: =IF(Method_BI=TRUE,IF(Inputs!J17="No",NA(),'Det Liquefaction Initiation'!P14),NA()) -> 34.18375015 | X30: =IF(Method_BI=TRUE,'Det Liquefaction Initiation'!S14,NA()) -> 0.7146899863 | Y30: =IF(Method_BI=TRUE,IF(Option_PL_FSL="FSL",'Det Liquefaction Initiation'!Q14,'Det Liquefaction Initiation'!R14),NA()) -> 0.2766460116 | Z30: =IF(Det_Liq_Option=FALSE,NA(),IF(AND(Method_BI=TRUE,U30<>""),IF(units=1,'Det Settlement'!U11,CONVERT('Det Settlement'!U11,"cm","in")),NA())) -> 7.003131035 | AA30: =IF(Method_Cetin=TRUE,'PB Liquefaction Initiation'!$D47,NA()) -> 22.24721994 | AB30: =IF(Method_Cetin=TRUE,'Det Liquefaction Initiation'!K47,NA()) -> 41.80270382 | AC30: =IF(Method_Cetin=TRUE,'Det Liquefaction Initiation'!N47,NA()) -> 0.937934014 | AD30: =IF(Method_Cetin=TRUE,IF(Option_PL_FSL="FSL",'Det Liquefaction Initiation'!L47,'Det Liquefaction Initiation'!M47),NA()) -> 0.3896763387 | AE30: =IF(Det_Liq_Option=FALSE,NA(),IF(AND(Method_Cetin=TRUE,'Final Summary'!U30<>""),IF(units=1,'Det Settlement'!U37,CONVERT('Det Settlement'!U37,"cm","in")),NA())) -> 9.391871236 | AF30: ky= | AG30: =IF(ky_site="","",ky_site) -> 0.2 | AL30: Percentile = | AM30: =IF(Percentile_Slope="","",Percentile_Slope) -> 85
J31: =IF(Inputs!$B18="","",Inputs!$B18) -> 25.5 | K31: =IF(Method_BI=TRUE,IF('PB Liquefaction Initiation'!$F15="",NA(),'PB Liquefaction Initiation'!$F15),NA()) -> 29.14039966 | L31: =IF(AND(Method_BI=TRUE,Inputs!J18="Yes"),'PB Liquefaction Initiation'!S15,NA()) -> 25.68392944 | M31: =IF(Method_BI=TRUE,IF('PB Liquefaction Initiation'!P15="","",'PB Liquefaction Initiation'!P15),NA()) -> 0.3497882139 | N31: =IF(Method_BI=TRUE,IF(Option_PL_FSL="FSL",'PB Liquefaction Initiation'!R15,IF(Option_PL_FSL="PL",'PB Liquefaction Initiation'!T15,NA())),NA()) -> 1.419689621 | O31: =IF(AND(Method_BI=TRUE,J31<>""),IF(units=1,'PB Settlement'!AI13,CONVERT('PB Settlement'!AI13,"cm","in")),NA()) -> 7.090102316 | P31: =IF(Method_Cetin=TRUE,'PB Liquefaction Initiation'!$D48,NA()) -> 30.42648255 | Q31: =IF(Method_Cetin=TRUE,'PB Liquefaction Initiation'!J48,NA()) -> 50.62933594 | R31: =IF(Method_Cetin=TRUE,'PB Liquefaction Initiation'!M48,NA()) -> 2.289592916 | S31: =IF(Method_Cetin=TRUE,IF(Option_PL_FSL="FSL",'PB Liquefaction Initiation'!K48,IF(Option_PL_FSL="PL",'PB Liquefaction Initiation'!L48,NA())),NA()) -> 0.2310695564 | T31: =IF(AND(Method_Cetin=TRUE,'Final Summary'!J31<>""),IF(units=1,'PB Settlement'!AI41,CONVERT('PB Settlement'!AI41,"cm","in")),NA()) -> 6.324762961 | U31: =IF(Inputs!$B18="","",Inputs!$B18) -> 25.5 | V31: =IF(Method_BI=TRUE,IF('PB Liquefaction Initiation'!$F15="",NA(),'PB Liquefaction Initiation'!$F15),NA()) -> 29.14039966 | W31: =IF(Method_BI=TRUE,IF(Inputs!J18="No",NA(),'Det Liquefaction Initiation'!P15),NA()) -> 33.66897202 | X31: =IF(Method_BI=TRUE,'Det Liquefaction Initiation'!S15,NA()) -> 0.6488354902 | Y31: =IF(Method_BI=TRUE,IF(Option_PL_FSL="FSL",'Det Liquefaction Initiation'!Q15,'Det Liquefaction Initiation'!R15),NA()) -> 0.5810735736 | Z31: =IF(Det_Liq_Option=FALSE,NA(),IF(AND(Method_BI=TRUE,U31<>""),IF(units=1,'Det Settlement'!U12,CONVERT('Det Settlement'!U12,"cm","in")),NA())) -> 4.939580636 | AA31: =IF(Method_Cetin=TRUE,'PB Liquefaction Initiation'!$D48,NA()) -> 30.42648255 | AB31: =IF(Method_Cetin=TRUE,'Det Liquefaction Initiation'!K48,NA()) -> 42.55745264 | AC31: =IF(Method_Cetin=TRUE,'Det Liquefaction Initiation'!N48,NA()) -> 0.9325775157 | AD31: =IF(Method_Cetin=TRUE,IF(Option_PL_FSL="FSL",'Det Liquefaction Initiation'!L48,'Det Liquefaction Initiation'!M48),NA()) -> 0.6676171516 | AE31: =IF(Det_Liq_Option=FALSE,NA(),IF(AND(Method_Cetin=TRUE,'Final Summary'!U31<>""),IF(units=1,'Det Settlement'!U38,CONVERT('Det Settlement'!U38,"cm","in")),NA())) -> 6.672273241 | AF31: Site Class = | AG31: =IF(Class="","",Class) -> D
A32: Site Liquefaction Parameters: | F32: Mapped Reference Values: | J32: =IF(Inputs!$B19="","",Inputs!$B19) -> 30.5 | K32: =IF(Method_BI=TRUE,IF('PB Liquefaction Initiation'!$F16="",NA(),'PB Liquefaction Initiation'!$F16),NA()) -> 21.33763058 | L32: =IF(AND(Method_BI=TRUE,Inputs!J19="Yes"),'PB Liquefaction Initiation'!S16,NA()) -> 26.72507477 | M32: =IF(Method_BI=TRUE,IF('PB Liquefaction Initiation'!P16="","",'PB Liquefaction Initiation'!P16),NA()) -> 0.3843424637 | N32: =IF(Method_BI=TRUE,IF(Option_PL_FSL="FSL",'PB Liquefaction Initiation'!R16,IF(Option_PL_FSL="PL",'PB Liquefaction Initiation'!T16,NA())),NA()) -> 0.6617491258 | O32: =IF(AND(Method_BI=TRUE,J32<>""),IF(units=1,'PB Settlement'!AI14,CONVERT('PB Settlement'!AI14,"cm","in")),NA()) -> 7.090102316 | P32: =IF(Method_Cetin=TRUE,'PB Liquefaction Initiation'!$D49,NA()) -> 20.88413372 | Q32: =IF(Method_Cetin=TRUE,'PB Liquefaction Initiation'!J49,NA()) -> 50.30092791 | R32: =IF(Method_Cetin=TRUE,'PB Liquefaction Initiation'!M49,NA()) -> 2.127527544 | S32: =IF(Method_Cetin=TRUE,IF(Option_PL_FSL="FSL",'PB Liquefaction Initiation'!K49,IF(Option_PL_FSL="PL",'PB Liquefaction Initiation'!L49,NA())),NA()) -> 0.1184579127 | T32: =IF(AND(Method_Cetin=TRUE,'Final Summary'!J32<>""),IF(units=1,'PB Settlement'!AI42,CONVERT('PB Settlement'!AI42,"cm","in")),NA()) -> 5.684287777 | U32: =IF(Inputs!$B19="","",Inputs!$B19) -> 30.5 | V32: =IF(Method_BI=TRUE,IF('PB Liquefaction Initiation'!$F16="",NA(),'PB Liquefaction Initiation'!$F16),NA()) -> 21.33763058 | W32: =IF(Method_BI=TRUE,IF(Inputs!J19="No",NA(),'Det Liquefaction Initiation'!P16),NA()) -> 34.15599251 | X32: =IF(Method_BI=TRUE,'Det Liquefaction Initiation'!S16,NA()) -> 0.7108944109 | Y32: =IF(Method_BI=TRUE,IF(Option_PL_FSL="FSL",'Det Liquefaction Initiation'!Q16,'Det Liquefaction Initiation'!R16),NA()) -> 0.2716275328 | Z32: =IF(Det_Liq_Option=FALSE,NA(),IF(AND(Method_BI=TRUE,U32<>""),IF(units=1,'Det Settlement'!U13,CONVERT('Det Settlement'!U13,"cm","in")),NA())) -> 4.556709644 | AA32: =IF(Method_Cetin=TRUE,'PB Liquefaction Initiation'!$D49,NA()) -> 20.88413372 | AB32: =IF(Method_Cetin=TRUE,'Det Liquefaction Initiation'!K49,NA()) -> 43.15059148 | AC32: =IF(Method_Cetin=TRUE,'Det Liquefaction Initiation'!N49,NA()) -> 0.9264554412 | AD32: =IF(Method_Cetin=TRUE,IF(Option_PL_FSL="FSL",'Det Liquefaction Initiation'!L49,'Det Liquefaction Initiation'!M49),NA()) -> 0.3201298371 | AE32: =IF(Det_Liq_Option=FALSE,NA(),IF(AND(Method_Cetin=TRUE,'Final Summary'!U32<>""),IF(units=1,'Det Settlement'!U39,CONVERT('Det Settlement'!U39,"cm","in")),NA())) -> 5.926596843
J33: =IF(Inputs!$B20="","",Inputs!$B20) -> 35.5 | K33: =IF(Method_BI=TRUE,IF('PB Liquefaction Initiation'!$F17="",NA(),'PB Liquefaction Initiation'!$F17),NA()) -> 9.487639011 | L33: =IF(AND(Method_BI=TRUE,Inputs!J20="Yes"),'PB Liquefaction Initiation'!S17,NA()) -> 27.46976471 | M33: =IF(Method_BI=TRUE,IF('PB Liquefaction Initiation'!P17="","",'PB Liquefaction Initiation'!P17),NA()) -> 0.4134303046 | N33: =IF(Method_BI=TRUE,IF(Option_PL_FSL="FSL",'PB Liquefaction Initiation'!R17,IF(Option_PL_FSL="PL",'PB Liquefaction Initiation'!T17,NA())),NA()) -> 0.3154710189 | O33: =IF(AND(Method_BI=TRUE,J33<>""),IF(units=1,'PB Settlement'!AI15,CONVERT('PB Settlement'!AI15,"cm","in")),NA()) -> 5.668633842 | P33: =IF(Method_Cetin=TRUE,'PB Liquefaction Initiation'!$D50,NA()) -> 9.151475893 | Q33: =IF(Method_Cetin=TRUE,'PB Liquefaction Initiation'!J50,NA()) -> 49.75511132 | R33: =IF(Method_Cetin=TRUE,'PB Liquefaction Initiation'!M50,NA()) -> 1.960751431 | S33: =IF(Method_Cetin=TRUE,IF(Option_PL_FSL="FSL",'PB Liquefaction Initiation'!K50,IF(Option_PL_FSL="PL",'PB Liquefaction Initiation'!L50,NA())),NA()) -> 0.05263225867 | T33: =IF(AND(Method_Cetin=TRUE,'Final Summary'!J33<>""),IF(units=1,'PB Settlement'!AI43,CONVERT('PB Settlement'!AI43,"cm","in")),NA()) -> 3.77030958 | U33: =IF(Inputs!$B20="","",Inputs!$B20) -> 35.5 | V33: =IF(Method_BI=TRUE,IF('PB Liquefaction Initiation'!$F17="",NA(),'PB Liquefaction Initiation'!$F17),NA()) -> 9.487639011 | W33: =IF(Method_BI=TRUE,IF(Inputs!J20="No",NA(),'Det Liquefaction Initiation'!P17),NA()) -> 34.51347733 | X33: =IF(Method_BI=TRUE,'Det Liquefaction Initiation'!S17,NA()) -> 0.7622661883 | Y33: =IF(Method_BI=TRUE,IF(Option_PL_FSL="FSL",'Det Liquefaction Initiation'!Q17,'Det Liquefaction Initiation'!R17),NA()) -> 0.1299039217 | Z33: =IF(Det_Liq_Option=FALSE,NA(),IF(AND(Method_BI=TRUE,U33<>""),IF(units=1,'Det Settlement'!U14,CONVERT('Det Settlement'!U14,"cm","in")),NA())) -> 3.00567298 | AA33: =IF(Method_Cetin=TRUE,'PB Liquefaction Initiation'!$D50,NA()) -> 9.151475893 | AB33: =IF(Method_Cetin=TRUE,'Det Liquefaction Initiation'!K50,NA()) -> 43.62635127 | AC33: =IF(Method_Cetin=TRUE,'Det Liquefaction Initiation'!N50,NA()) -> 0.9194853964 | AD33: =IF(Method_Cetin=TRUE,IF(Option_PL_FSL="FSL",'Det Liquefaction Initiation'!L50,'Det Liquefaction Initiation'!M50),NA()) -> 0.1320812393 | AE33: =IF(Det_Liq_Option=FALSE,NA(),IF(AND(Method_Cetin=TRUE,'Final Summary'!U33<>""),IF(units=1,'Det Settlement'!U40,CONVERT('Det Settlement'!U40,"cm","in")),NA())) -> 3.746044875
A34: PGA = | B34: =IF(PGA_prob="","",PGA_prob) -> 0.44 | F34: CSR(%)ref = | G34: =IF(CSR_ref_BI="","",CSR_ref_BI) -> 35.14 | J34: =IF(Inputs!$B21="","",Inputs!$B21) -> 41 | K34: =IF(Method_BI=TRUE,IF('PB Liquefaction Initiation'!$F18="",NA(),'PB Liquefaction Initiation'!$F18),NA()) -> 7.303047698 | L34: =IF(AND(Method_BI=TRUE,Inputs!J21="Yes"),'PB Liquefaction Initiation'!S18,NA()) ->  | M34: =IF(Method_BI=TRUE,IF('PB Liquefaction Initiation'!P18="","",'PB Liquefaction Initiation'!P18),NA()) ->  | N34: =IF(Method_BI=TRUE,IF(Option_PL_FSL="FSL",'PB Liquefaction Initiation'!R18,IF(Option_PL_FSL="PL",'PB Liquefaction Initiation'!T18,NA())),NA()) ->  | O34: =IF(AND(Method_BI=TRUE,J34<>""),IF(units=1,'PB Settlement'!AI16,CONVERT('PB Settlement'!AI16,"cm","in")),NA()) -> 4.302463387 | P34: =IF(Method_Cetin=TRUE,'PB Liquefaction Initiation'!$D51,NA()) -> 4.144728715 | Q34: =IF(Method_Cetin=TRUE,'PB Liquefaction Initiation'!J51,NA()) ->  | R34: =IF(Method_Cetin=TRUE,'PB Liquefaction Initiation'!M51,NA()) ->  | S34: =IF(Method_Cetin=TRUE,IF(Option_PL_FSL="FSL",'PB Liquefaction Initiation'!K51,IF(Option_PL_FSL="PL",'PB Liquefaction Initiation'!L51,NA())),NA()) ->  | T34: =IF(AND(Method_Cetin=TRUE,'Final Summary'!J34<>""),IF(units=1,'PB Settlement'!AI44,CONVERT('PB Settlement'!AI44,"cm","in")),NA()) -> 2.531492417 | U34: =IF(Inputs!$B21="","",Inputs!$B21) -> 41 | V34: =IF(Method_BI=TRUE,IF('PB Liquefaction Initiation'!$F18="",NA(),'PB Liquefaction Initiation'!$F18),NA()) -> 7.303047698 | W34: =IF(Method_BI=TRUE,IF(Inputs!J21="No",NA(),'Det Liquefaction Initiation'!P18),NA()) ->  | X34: =IF(Method_BI=TRUE,'Det Liquefaction Initiation'!S18,NA()) ->  | Y34: =IF(Method_BI=TRUE,IF(Option_PL_FSL="FSL",'Det Liquefaction Initiation'!Q18,'Det Liquefaction Initiation'!R18),NA()) ->  | Z34: =IF(Det_Liq_Option=FALSE,NA(),IF(AND(Method_BI=TRUE,U34<>""),IF(units=1,'Det Settlement'!U15,CONVERT('Det Settlement'!U15,"cm","in")),NA())) -> 2.038087954 | AA34: =IF(Method_Cetin=TRUE,'PB Liquefaction Initiation'!$D51,NA()) -> 4.144728715 | AB34: =IF(Method_Cetin=TRUE,'Det Liquefaction Initiation'!K51,NA()) ->  | AC34: =IF(Method_Cetin=TRUE,'Det Liquefaction Initiation'!N51,NA()) ->  | AD34: =IF(Method_Cetin=TRUE,IF(Option_PL_FSL="FSL",'Det Liquefaction Initiation'!L51,'Det Liquefaction Initiation'!M51),NA()) ->  | AE34: =IF(Det_Liq_Option=FALSE,NA(),IF(AND(Method_Cetin=TRUE,'Final Summary'!U34<>""),IF(units=1,'Det Settlement'!U41,CONVERT('Det Settlement'!U41,"cm","in")),NA())) -> 2.452457529 | AF34: Seismic Slope Displacement Results:
A35: FPGA = | B35: =IF(Fpga="","",Fpga) -> 1.06 | F35: Nreqref = | G35: =IF(Nreq_ref_Cet="","",Nreq_ref_Cet) -> 49.09 | J35: =IF(Inputs!$B22="","",Inputs!$B22) -> 45 | K35: =IF(Method_BI=TRUE,IF('PB Liquefaction Initiation'!$F19="",NA(),'PB Liquefaction Initiation'!$F19),NA()) -> 1.632756664 | L35: =IF(AND(Method_BI=TRUE,Inputs!J22="Yes"),'PB Liquefaction Initiation'!S19,NA()) -> 27.12171936 | M35: =IF(Method_BI=TRUE,IF('PB Liquefaction Initiation'!P19="","",'PB Liquefaction Initiation'!P19),NA()) -> 0.3993356759 | N35: =IF(Method_BI=TRUE,IF(Option_PL_FSL="FSL",'PB Liquefaction Initiation'!R19,IF(Option_PL_FSL="PL",'PB Liquefaction Initiation'!T19,NA())),NA()) -> 0.1946806236 | O35: =IF(AND(Method_BI=TRUE,J35<>""),IF(units=1,'PB Settlement'!AI17,CONVERT('PB Settlement'!AI17,"cm","in")),NA()) -> 4.302463387 | P35: =IF(Method_Cetin=TRUE,'PB Liquefaction Initiation'!$D52,NA()) -> 2.063259346 | Q35: =IF(Method_Cetin=TRUE,'PB Liquefaction Initiation'!J52,NA()) -> 48.69297215 | R35: =IF(Method_Cetin=TRUE,'PB Liquefaction Initiation'!M52,NA()) -> 1.699981701 | S35: =IF(Method_Cetin=TRUE,IF(Option_PL_FSL="FSL",'PB Liquefaction Initiation'!K52,IF(Option_PL_FSL="PL",'PB Liquefaction Initiation'!L52,NA())),NA()) -> 0.03399931176 | T35: =IF(AND(Method_Cetin=TRUE,'Final Summary'!J35<>""),IF(units=1,'PB Settlement'!AI45,CONVERT('PB Settlement'!AI45,"cm","in")),NA()) -> 2.531492417 | U35: =IF(Inputs!$B22="","",Inputs!$B22) -> 45 | V35: =IF(Method_BI=TRUE,IF('PB Liquefaction Initiation'!$F19="",NA(),'PB Liquefaction Initiation'!$F19),NA()) -> 1.632756664 | W35: =IF(Method_BI=TRUE,IF(Inputs!J22="No",NA(),'Det Liquefaction Initiation'!P19),NA()) -> 34.33693123 | X35: =IF(Method_BI=TRUE,'Det Liquefaction Initiation'!S19,NA()) -> 0.7362316221 | Y35: =IF(Method_BI=TRUE,IF(Option_PL_FSL="FSL",'Det Liquefaction Initiation'!Q19,'Det Liquefaction Initiation'!R19),NA()) -> 0.08017030125 | Z35: =IF(Det_Liq_Option=FALSE,NA(),IF(AND(Method_BI=TRUE,U35<>""),IF(units=1,'Det Settlement'!U16,CONVERT('Det Settlement'!U16,"cm","in")),NA())) -> 2.038087954 | AA35: =IF(Method_Cetin=TRUE,'PB Liquefaction Initiation'!$D52,NA()) -> 2.063259346 | AB35: =IF(Method_Cetin=TRUE,'Det Liquefaction Initiation'!K52,NA()) -> 44.2920575 | AC35: =IF(Method_Cetin=TRUE,'Det Liquefaction Initiation'!N52,NA()) -> 0.9036127086 | AD35: =IF(Method_Cetin=TRUE,IF(Option_PL_FSL="FSL",'Det Liquefaction Initiation'!L52,'Det Liquefaction Initiation'!M52),NA()) -> 0.07527373483 | AE35: =IF(Det_Liq_Option=FALSE,NA(),IF(AND(Method_Cetin=TRUE,'Final Summary'!U35<>""),IF(units=1,'Det Settlement'!U42,CONVERT('Det Settlement'!U42,"cm","in")),NA())) -> 2.452457529
A36: Mw = | B36: =IF(Mw_prob="","",Mw_prob) -> 6.77 | F36: εv,Cetin(%)ref = | G36: =IF(strain_ref_cetin="","",strain_ref_cetin) -> 2.3 | J36: =IF(Inputs!$B23="","",Inputs!$B23) -> 51.5 | K36: =IF(Method_BI=TRUE,IF('PB Liquefaction Initiation'!$F20="",NA(),'PB Liquefaction Initiation'!$F20),NA()) -> 9.659921568 | L36: =IF(AND(Method_BI=TRUE,Inputs!J23="Yes"),'PB Liquefaction Initiation'!S20,NA()) -> 26.56095886 | M36: =IF(Method_BI=TRUE,IF('PB Liquefaction Initiation'!P20="","",'PB Liquefaction Initiation'!P20),NA()) -> 0.3784526757 | N36: =IF(Method_BI=TRUE,IF(Option_PL_FSL="FSL",'PB Liquefaction Initiation'!R20,IF(Option_PL_FSL="PL",'PB Liquefaction Initiation'!T20,NA())),NA()) -> 0.348187082 | O36: =IF(AND(Method_BI=TRUE,J36<>""),IF(units=1,'PB Settlement'!AI18,CONVERT('PB Settlement'!AI18,"cm","in")),NA()) -> 1.459491003 | P36: =IF(Method_Cetin=TRUE,'PB Liquefaction Initiation'!$D53,NA()) -> 10.32284758 | Q36: =IF(Method_Cetin=TRUE,'PB Liquefaction Initiation'!J53,NA()) -> 48.26440689 | R36: =IF(Method_Cetin=TRUE,'PB Liquefaction Initiation'!M53,NA()) -> 1.587507535 | S36: =IF(Method_Cetin=TRUE,IF(Option_PL_FSL="FSL",'PB Liquefaction Initiation'!K53,IF(Option_PL_FSL="PL",'PB Liquefaction Initiation'!L53,NA())),NA()) -> 0.06383956688 | T36: =IF(AND(Method_Cetin=TRUE,'Final Summary'!J36<>""),IF(units=1,'PB Settlement'!AI46,CONVERT('PB Settlement'!AI46,"cm","in")),NA()) -> 1.090661234 | U36: =IF(Inputs!$B23="","",Inputs!$B23) -> 51.5 | V36: =IF(Method_BI=TRUE,IF('PB Liquefaction Initiation'!$F20="",NA(),'PB Liquefaction Initiation'!$F20),NA()) -> 9.659921568 | W36: =IF(Method_BI=TRUE,IF(Inputs!J23="No",NA(),'Det Liquefaction Initiation'!P20),NA()) -> 34.06664467 | X36: =IF(Method_BI=TRUE,'Det Liquefaction Initiation'!S20,NA()) -> 0.6988601747 | Y36: =IF(Method_BI=TRUE,IF(Option_PL_FSL="FSL",'Det Liquefaction Initiation'!Q20,'Det Liquefaction Initiation'!R20),NA()) -> 0.143153208 | Z36: =IF(Det_Liq_Option=FALSE,NA(),IF(AND(Method_BI=TRUE,U36<>""),IF(units=1,'Det Settlement'!U17,CONVERT('Det Settlement'!U17,"cm","in")),NA())) -> 0.915339272 | AA36: =IF(Method_Cetin=TRUE,'PB Liquefaction Initiation'!$D53,NA()) -> 10.32284758 | AB36: =IF(Method_Cetin=TRUE,'Det Liquefaction Initiation'!K53,NA()) -> 44.60658197 | AC36: =IF(Method_Cetin=TRUE,'Det Liquefaction Initiation'!N53,NA()) -> 0.8905459401 | AD36: =IF(Method_Cetin=TRUE,IF(Option_PL_FSL="FSL",'Det Liquefaction Initiation'!L53,'Det Liquefaction Initiation'!M53),NA()) -> 0.133924743 | AE36: =IF(Det_Liq_Option=FALSE,NA(),IF(AND(Method_Cetin=TRUE,'Final Summary'!U36<>""),IF(units=1,'Det Settlement'!U43,CONVERT('Det Settlement'!U43,"cm","in")),NA())) -> 1.152036511 | AF36: Simplified PB Results: | AJ36: Deterministic Results:
A37: Vs,12 = | B37: =IF(Vs12_prob="","",Vs12_prob) -> 623 | C37: =IF(units=1,"m/s","ft/s") -> ft/s | F37: εv,IshiharaYoshimine(%)ref = | G37: =IF(strain_ref_iy="","",strain_ref_iy) -> 2.3 | J37: =IF(Inputs!$B24="","",Inputs!$B24) -> 57 | K37: =IF(Method_BI=TRUE,IF('PB Liquefaction Initiation'!$F21="",NA(),'PB Liquefaction Initiation'!$F21),NA()) -> 2.375859012 | L37: =IF(AND(Method_BI=TRUE,Inputs!J24="Yes"),'PB Liquefaction Initiation'!S21,NA()) -> 26.30413055 | M37: =IF(Method_BI=TRUE,IF('PB Liquefaction Initiation'!P21="","",'PB Liquefaction Initiation'!P21),NA()) -> 0.3695931727 | N37: =IF(Method_BI=TRUE,IF(Option_PL_FSL="FSL",'PB Liquefaction Initiation'!R21,IF(Option_PL_FSL="PL",'PB Liquefaction Initiation'!T21,NA())),NA()) -> 0.2216323957 | O37: =IF(AND(Method_BI=TRUE,J37<>""),IF(units=1,'PB Settlement'!AI19,CONVERT('PB Settlement'!AI19,"cm","in")),NA()) -> 0.4548773439 | P37: =IF(Method_Cetin=TRUE,'PB Liquefaction Initiation'!$D54,NA()) -> 2.9720421 | Q37: =IF(Method_Cetin=TRUE,'PB Liquefaction Initiation'!J54,NA()) -> 48.12874758 | R37: =IF(Method_Cetin=TRUE,'PB Liquefaction Initiation'!M54,NA()) -> 1.528396878 | S37: =IF(Method_Cetin=TRUE,IF(Option_PL_FSL="FSL",'PB Liquefaction Initiation'!K54,IF(Option_PL_FSL="PL",'PB Liquefaction Initiation'!L54,NA())),NA()) -> 0.03783207724 | T37: =IF(AND(Method_Cetin=TRUE,'Final Summary'!J37<>""),IF(units=1,'PB Settlement'!AI47,CONVERT('PB Settlement'!AI47,"cm","in")),NA()) -> 0.2446261261 | U37: =IF(Inputs!$B24="","",Inputs!$B24) -> 57 | V37: =IF(Method_BI=TRUE,IF('PB Liquefaction Initiation'!$F21="",NA(),'PB Liquefaction Initiation'!$F21),NA()) -> 2.375859012 | W37: =IF(Method_BI=TRUE,IF(Inputs!J24="No",NA(),'Det Liquefaction Initiation'!P21),NA()) -> 33.93888474 | X37: =IF(Method_BI=TRUE,'Det Liquefaction Initiation'!S21,NA()) -> 0.6821770233 | Y37: =IF(Method_BI=TRUE,IF(Option_PL_FSL="FSL",'Det Liquefaction Initiation'!Q21,'Det Liquefaction Initiation'!R21),NA()) -> 0.09116481105 | Z37: =IF(Det_Liq_Option=FALSE,NA(),IF(AND(Method_BI=TRUE,U37<>""),IF(units=1,'Det Settlement'!U18,CONVERT('Det Settlement'!U18,"cm","in")),NA())) -> 0.1986013928 | AA37: =IF(Method_Cetin=TRUE,'PB Liquefaction Initiation'!$D54,NA()) -> 2.9720421 | AB37: =IF(Method_Cetin=TRUE,'Det Liquefaction Initiation'!K54,NA()) -> 44.79808449 | AC37: =IF(Method_Cetin=TRUE,'Det Liquefaction Initiation'!N54,NA()) -> 0.8779709061 | AD37: =IF(Method_Cetin=TRUE,IF(Option_PL_FSL="FSL",'Det Liquefaction Initiation'!L54,'Det Liquefaction Initiation'!M54),NA()) -> 0.07750462648 | AE37: =IF(Det_Liq_Option=FALSE,NA(),IF(AND(Method_Cetin=TRUE,'Final Summary'!U37<>""),IF(units=1,'Det Settlement'!U44,CONVERT('Det Settlement'!U44,"cm","in")),NA())) -> 0.2304013087
A38: Site Class = | B38: =IF(Class="","",Class) -> D | F38: TR = | G38: =IF(Tr="","",Tr) -> 2475 | H38: yrs | J38: =IF(Inputs!$B25="","",Inputs!$B25) ->  | K38: =IF(Method_BI=TRUE,IF('PB Liquefaction Initiation'!$F22="",NA(),'PB Liquefaction Initiation'!$F22),NA()) ->  | L38: =IF(AND(Method_BI=TRUE,Inputs!J25="Yes"),'PB Liquefaction Initiation'!S22,NA()) ->  | M38: =IF(Method_BI=TRUE,IF('PB Liquefaction Initiation'!P22="","",'PB Liquefaction Initiation'!P22),NA()) ->  | N38: =IF(Method_BI=TRUE,IF(Option_PL_FSL="FSL",'PB Liquefaction Initiation'!R22,IF(Option_PL_FSL="PL",'PB Liquefaction Initiation'!T22,NA())),NA()) ->  | O38: =IF(AND(Method_BI=TRUE,J38<>""),IF(units=1,'PB Settlement'!AI20,CONVERT('PB Settlement'!AI20,"cm","in")),NA()) ->  | P38: =IF(Method_Cetin=TRUE,'PB Liquefaction Initiation'!$D55,NA()) ->  | Q38: =IF(Method_Cetin=TRUE,'PB Liquefaction Initiation'!J55,NA()) ->  | R38: =IF(Method_Cetin=TRUE,'PB Liquefaction Initiation'!M55,NA()) ->  | S38: =IF(Method_Cetin=TRUE,IF(Option_PL_FSL="FSL",'PB Liquefaction Initiation'!K55,IF(Option_PL_FSL="PL",'PB Liquefaction Initiation'!L55,NA())),NA()) ->  | T38: =IF(AND(Method_Cetin=TRUE,'Final Summary'!J38<>""),IF(units=1,'PB Settlement'!AI48,CONVERT('PB Settlement'!AI48,"cm","in")),NA()) ->  | U38: =IF(Inputs!$B25="","",Inputs!$B25) ->  | V38: =IF(Method_BI=TRUE,IF('PB Liquefaction Initiation'!$F22="",NA(),'PB Liquefaction Initiation'!$F22),NA()) ->  | W38: =IF(Method_BI=TRUE,IF(Inputs!J25="No",NA(),'Det Liquefaction Initiation'!P22),NA()) ->  | X38: =IF(Method_BI=TRUE,'Det Liquefaction Initiation'!S22,NA()) ->  | Y38: =IF(Method_BI=TRUE,IF(Option_PL_FSL="FSL",'Det Liquefaction Initiation'!Q22,'Det Liquefaction Initiation'!R22),NA()) ->  | Z38: =IF(Det_Liq_Option=FALSE,NA(),IF(AND(Method_BI=TRUE,U38<>""),IF(units=1,'Det Settlement'!U19,CONVERT('Det Settlement'!U19,"cm","in")),NA())) ->  | AA38: =IF(Method_Cetin=TRUE,'PB Liquefaction Initiation'!$D55,NA()) ->  | AB38: =IF(Method_Cetin=TRUE,'Det Liquefaction Initiation'!K55,NA()) ->  | AC38: =IF(Method_Cetin=TRUE,'Det Liquefaction Initiation'!N55,NA()) ->  | AD38: =IF(Method_Cetin=TRUE,IF(Option_PL_FSL="FSL",'Det Liquefaction Initiation'!L55,'Det Liquefaction Initiation'!M55),NA()) ->  | AE38: =IF(Det_Liq_Option=FALSE,NA(),IF(AND(Method_Cetin=TRUE,'Final Summary'!U38<>""),IF(units=1,'Det Settlement'!U45,CONVERT('Det Settlement'!U45,"cm","in")),NA())) ->  | AG38: DR&Ssite = | AH38: =IF(AND('Slope Displacement'!C8<=0.1,'Slope Displacement'!C6<=0.17),NA(),IF(Simp_SS_Option=TRUE,IF(units=2,CONVERT(Simp_RS,"cm","in"),Simp_RS),NA())) -> 0.196678646 | AI38: =IF(units=1,"cm","in") -> in | AK38: DR&S = | AL38: =IF(Det_SS_option=TRUE,IF(units=2,CONVERT(Det_RS,"cm","in"),Det_RS),NA()) -> 26.87295277 | AM38: =IF(units=1,"cm","in") -> in
F39: Probability of Exceedance = | G39: =IF(PE="","",PE) -> 2% in 50 yrs | J39: =IF(Inputs!$B26="","",Inputs!$B26) ->  | K39: =IF(Method_BI=TRUE,IF('PB Liquefaction Initiation'!$F23="",NA(),'PB Liquefaction Initiation'!$F23),NA()) ->  | L39: =IF(AND(Method_BI=TRUE,Inputs!J26="Yes"),'PB Liquefaction Initiation'!S23,NA()) ->  | M39: =IF(Method_BI=TRUE,IF('PB Liquefaction Initiation'!P23="","",'PB Liquefaction Initiation'!P23),NA()) ->  | N39: =IF(Method_BI=TRUE,IF(Option_PL_FSL="FSL",'PB Liquefaction Initiation'!R23,IF(Option_PL_FSL="PL",'PB Liquefaction Initiation'!T23,NA())),NA()) ->  | O39: =IF(AND(Method_BI=TRUE,J39<>""),IF(units=1,'PB Settlement'!AI21,CONVERT('PB Settlement'!AI21,"cm","in")),NA()) ->  | P39: =IF(Method_Cetin=TRUE,'PB Liquefaction Initiation'!$D56,NA()) ->  | Q39: =IF(Method_Cetin=TRUE,'PB Liquefaction Initiation'!J56,NA()) ->  | R39: =IF(Method_Cetin=TRUE,'PB Liquefaction Initiation'!M56,NA()) ->  | S39: =IF(Method_Cetin=TRUE,IF(Option_PL_FSL="FSL",'PB Liquefaction Initiation'!K56,IF(Option_PL_FSL="PL",'PB Liquefaction Initiation'!L56,NA())),NA()) ->  | T39: =IF(AND(Method_Cetin=TRUE,'Final Summary'!J39<>""),IF(units=1,'PB Settlement'!AI49,CONVERT('PB Settlement'!AI49,"cm","in")),NA()) ->  | U39: =IF(Inputs!$B26="","",Inputs!$B26) ->  | V39: =IF(Method_BI=TRUE,IF('PB Liquefaction Initiation'!$F23="",NA(),'PB Liquefaction Initiation'!$F23),NA()) ->  | W39: =IF(Method_BI=TRUE,IF(Inputs!J26="No",NA(),'Det Liquefaction Initiation'!P23),NA()) ->  | X39: =IF(Method_BI=TRUE,'Det Liquefaction Initiation'!S23,NA()) ->  | Y39: =IF(Method_BI=TRUE,IF(Option_PL_FSL="FSL",'Det Liquefaction Initiation'!Q23,'Det Liquefaction Initiation'!R23),NA()) ->  | Z39: =IF(Det_Liq_Option=FALSE,NA(),IF(AND(Method_BI=TRUE,U39<>""),IF(units=1,'Det Settlement'!U20,CONVERT('Det Settlement'!U20,"cm","in")),NA())) ->  | AA39: =IF(Method_Cetin=TRUE,'PB Liquefaction Initiation'!$D56,NA()) ->  | AB39: =IF(Method_Cetin=TRUE,'Det Liquefaction Initiation'!K56,NA()) ->  | AC39: =IF(Method_Cetin=TRUE,'Det Liquefaction Initiation'!N56,NA()) ->  | AD39: =IF(Method_Cetin=TRUE,IF(Option_PL_FSL="FSL",'Det Liquefaction Initiation'!L56,'Det Liquefaction Initiation'!M56),NA()) ->  | AE39: =IF(Det_Liq_Option=FALSE,NA(),IF(AND(Method_Cetin=TRUE,'Final Summary'!U39<>""),IF(units=1,'Det Settlement'!U46,CONVERT('Det Settlement'!U46,"cm","in")),NA())) -> 
J40: =IF(Inputs!$B27="","",Inputs!$B27) ->  | K40: =IF(Method_BI=TRUE,IF('PB Liquefaction Initiation'!$F24="",NA(),'PB Liquefaction Initiation'!$F24),NA()) ->  | L40: =IF(AND(Method_BI=TRUE,Inputs!J27="Yes"),'PB Liquefaction Initiation'!S24,NA()) ->  | M40: =IF(Method_BI=TRUE,IF('PB Liquefaction Initiation'!P24="","",'PB Liquefaction Initiation'!P24),NA()) ->  | N40: =IF(Method_BI=TRUE,IF(Option_PL_FSL="FSL",'PB Liquefaction Initiation'!R24,IF(Option_PL_FSL="PL",'PB Liquefaction Initiation'!T24,NA())),NA()) ->  | O40: =IF(AND(Method_BI=TRUE,J40<>""),IF(units=1,'PB Settlement'!AI22,CONVERT('PB Settlement'!AI22,"cm","in")),NA()) ->  | P40: =IF(Method_Cetin=TRUE,'PB Liquefaction Initiation'!$D57,NA()) ->  | Q40: =IF(Method_Cetin=TRUE,'PB Liquefaction Initiation'!J57,NA()) ->  | R40: =IF(Method_Cetin=TRUE,'PB Liquefaction Initiation'!M57,NA()) ->  | S40: =IF(Method_Cetin=TRUE,IF(Option_PL_FSL="FSL",'PB Liquefaction Initiation'!K57,IF(Option_PL_FSL="PL",'PB Liquefaction Initiation'!L57,NA())),NA()) ->  | T40: =IF(AND(Method_Cetin=TRUE,'Final Summary'!J40<>""),IF(units=1,'PB Settlement'!AI50,CONVERT('PB Settlement'!AI50,"cm","in")),NA()) ->  | U40: =IF(Inputs!$B27="","",Inputs!$B27) ->  | V40: =IF(Method_BI=TRUE,IF('PB Liquefaction Initiation'!$F24="",NA(),'PB Liquefaction Initiation'!$F24),NA()) ->  | W40: =IF(Method_BI=TRUE,IF(Inputs!J27="No",NA(),'Det Liquefaction Initiation'!P24),NA()) ->  | X40: =IF(Method_BI=TRUE,'Det Liquefaction Initiation'!S24,NA()) ->  | Y40: =IF(Method_BI=TRUE,IF(Option_PL_FSL="FSL",'Det Liquefaction Initiation'!Q24,'Det Liquefaction Initiation'!R24),NA()) ->  | Z40: =IF(Det_Liq_Option=FALSE,NA(),IF(AND(Method_BI=TRUE,U40<>""),IF(units=1,'Det Settlement'!U21,CONVERT('Det Settlement'!U21,"cm","in")),NA())) ->  | AA40: =IF(Method_Cetin=TRUE,'PB Liquefaction Initiation'!$D57,NA()) ->  | AB40: =IF(Method_Cetin=TRUE,'Det Liquefaction Initiation'!K57,NA()) ->  | AC40: =IF(Method_Cetin=TRUE,'Det Liquefaction Initiation'!N57,NA()) ->  | AD40: =IF(Method_Cetin=TRUE,IF(Option_PL_FSL="FSL",'Det Liquefaction Initiation'!L57,'Det Liquefaction Initiation'!M57),NA()) ->  | AE40: =IF(Det_Liq_Option=FALSE,NA(),IF(AND(Method_Cetin=TRUE,'Final Summary'!U40<>""),IF(units=1,'Det Settlement'!U47,CONVERT('Det Settlement'!U47,"cm","in")),NA())) ->  | AG40: DB&Tsite = | AH40: =IF(Simp_SS_Option=TRUE,IF(units=2,CONVERT(Simp_BT,"cm","in"),Simp_BT),NA()) -> 0.5379870682 | AI40: =IF(units=1,"cm","in") -> in | AK40: DB&T = | AL40: =IF(Det_SS_option=TRUE,IF(units=2,CONVERT(Det_BT,"cm","in"),Det_BT),NA()) -> 11.99614024 | AM40: =IF(units=1,"cm","in") -> in
A41: Deterministic Analysis Parameters: | F41: Site Location: | J41: =IF(Inputs!$B28="","",Inputs!$B28) ->  | K41: =IF(Method_BI=TRUE,IF('PB Liquefaction Initiation'!$F25="",NA(),'PB Liquefaction Initiation'!$F25),NA()) ->  | L41: =IF(AND(Method_BI=TRUE,Inputs!J28="Yes"),'PB Liquefaction Initiation'!S25,NA()) ->  | M41: =IF(Method_BI=TRUE,IF('PB Liquefaction Initiation'!P25="","",'PB Liquefaction Initiation'!P25),NA()) ->  | N41: =IF(Method_BI=TRUE,IF(Option_PL_FSL="FSL",'PB Liquefaction Initiation'!R25,IF(Option_PL_FSL="PL",'PB Liquefaction Initiation'!T25,NA())),NA()) ->  | O41: =IF(AND(Method_BI=TRUE,J41<>""),IF(units=1,'PB Settlement'!AI23,CONVERT('PB Settlement'!AI23,"cm","in")),NA()) ->  | P41: =IF(Method_Cetin=TRUE,'PB Liquefaction Initiation'!$D58,NA()) ->  | Q41: =IF(Method_Cetin=TRUE,'PB Liquefaction Initiation'!J58,NA()) ->  | R41: =IF(Method_Cetin=TRUE,'PB Liquefaction Initiation'!M58,NA()) ->  | S41: =IF(Method_Cetin=TRUE,IF(Option_PL_FSL="FSL",'PB Liquefaction Initiation'!K58,IF(Option_PL_FSL="PL",'PB Liquefaction Initiation'!L58,NA())),NA()) ->  | T41: =IF(AND(Method_Cetin=TRUE,'Final Summary'!J41<>""),IF(units=1,'PB Settlement'!AI51,CONVERT('PB Settlement'!AI51,"cm","in")),NA()) ->  | U41: =IF(Inputs!$B28="","",Inputs!$B28) ->  | V41: =IF(Method_BI=TRUE,IF('PB Liquefaction Initiation'!$F25="",NA(),'PB Liquefaction Initiation'!$F25),NA()) ->  | W41: =IF(Method_BI=TRUE,IF(Inputs!J28="No",NA(),'Det Liquefaction Initiation'!P25),NA()) ->  | X41: =IF(Method_BI=TRUE,'Det Liquefaction Initiation'!S25,NA()) ->  | Y41: =IF(Method_BI=TRUE,IF(Option_PL_FSL="FSL",'Det Liquefaction Initiation'!Q25,'Det Liquefaction Initiation'!R25),NA()) ->  | Z41: =IF(Det_Liq_Option=FALSE,NA(),IF(AND(Method_BI=TRUE,U41<>""),IF(units=1,'Det Settlement'!U22,CONVERT('Det Settlement'!U22,"cm","in")),NA())) ->  | AA41: =IF(Method_Cetin=TRUE,'PB Liquefaction Initiation'!$D58,NA()) ->  | AB41: =IF(Method_Cetin=TRUE,'Det Liquefaction Initiation'!K58,NA()) ->  | AC41: =IF(Method_Cetin=TRUE,'Det Liquefaction Initiation'!N58,NA()) ->  | AD41: =IF(Method_Cetin=TRUE,IF(Option_PL_FSL="FSL",'Det Liquefaction Initiation'!L58,'Det Liquefaction Initiation'!M58),NA()) ->  | AE41: =IF(Det_Liq_Option=FALSE,NA(),IF(AND(Method_Cetin=TRUE,'Final Summary'!U41<>""),IF(units=1,'Det Settlement'!U48,CONVERT('Det Settlement'!U48,"cm","in")),NA())) -> 
A42: PGA = | B42: =IF(PGA_det="","",PGA_det) -> 0.73 | E42: =F2 -> Salt Lake City, UT | J42: =IF(Inputs!$B29="","",Inputs!$B29) ->  | K42: =IF(Method_BI=TRUE,IF('PB Liquefaction Initiation'!$F26="",NA(),'PB Liquefaction Initiation'!$F26),NA()) ->  | L42: =IF(AND(Method_BI=TRUE,Inputs!J29="Yes"),'PB Liquefaction Initiation'!S26,NA()) ->  | M42: =IF(Method_BI=TRUE,IF('PB Liquefaction Initiation'!P26="","",'PB Liquefaction Initiation'!P26),NA()) ->  | N42: =IF(Method_BI=TRUE,IF(Option_PL_FSL="FSL",'PB Liquefaction Initiation'!R26,IF(Option_PL_FSL="PL",'PB Liquefaction Initiation'!T26,NA())),NA()) ->  | O42: =IF(AND(Method_BI=TRUE,J42<>""),IF(units=1,'PB Settlement'!AI24,CONVERT('PB Settlement'!AI24,"cm","in")),NA()) ->  | P42: =IF(Method_Cetin=TRUE,'PB Liquefaction Initiation'!$D59,NA()) ->  | Q42: =IF(Method_Cetin=TRUE,'PB Liquefaction Initiation'!J59,NA()) ->  | R42: =IF(Method_Cetin=TRUE,'PB Liquefaction Initiation'!M59,NA()) ->  | S42: =IF(Method_Cetin=TRUE,IF(Option_PL_FSL="FSL",'PB Liquefaction Initiation'!K59,IF(Option_PL_FSL="PL",'PB Liquefaction Initiation'!L59,NA())),NA()) ->  | T42: =IF(AND(Method_Cetin=TRUE,'Final Summary'!J42<>""),IF(units=1,'PB Settlement'!AI52,CONVERT('PB Settlement'!AI52,"cm","in")),NA()) ->  | U42: =IF(Inputs!$B29="","",Inputs!$B29) ->  | V42: =IF(Method_BI=TRUE,IF('PB Liquefaction Initiation'!$F26="",NA(),'PB Liquefaction Initiation'!$F26),NA()) ->  | W42: =IF(Method_BI=TRUE,IF(Inputs!J29="No",NA(),'Det Liquefaction Initiation'!P26),NA()) ->  | X42: =IF(Method_BI=TRUE,'Det Liquefaction Initiation'!S26,NA()) ->  | Y42: =IF(Method_BI=TRUE,IF(Option_PL_FSL="FSL",'Det Liquefaction Initiation'!Q26,'Det Liquefaction Initiation'!R26),NA()) ->  | Z42: =IF(Det_Liq_Option=FALSE,NA(),IF(AND(Method_BI=TRUE,U42<>""),IF(units=1,'Det Settlement'!U23,CONVERT('Det Settlement'!U23,"cm","in")),NA())) ->  | AA42: =IF(Method_Cetin=TRUE,'PB Liquefaction Initiation'!$D59,NA()) ->  | AB42: =IF(Method_Cetin=TRUE,'Det Liquefaction Initiation'!K59,NA()) ->  | AC42: =IF(Method_Cetin=TRUE,'Det Liquefaction Initiation'!N59,NA()) ->  | AD42: =IF(Method_Cetin=TRUE,IF(Option_PL_FSL="FSL",'Det Liquefaction Initiation'!L59,'Det Liquefaction Initiation'!M59),NA()) ->  | AE42: =IF(Det_Liq_Option=FALSE,NA(),IF(AND(Method_Cetin=TRUE,'Final Summary'!U42<>""),IF(units=1,'Det Settlement'!U49,CONVERT('Det Settlement'!U49,"cm","in")),NA())) -> 
A43: FPGA = | B43: =IF(Fpga_det="","",Fpga_det) -> 1 | F43: Latitude: | G43: =IF(Lat="","",Lat) -> 40.67458 | J43: =IF(Inputs!$B30="","",Inputs!$B30) ->  | K43: =IF(Method_BI=TRUE,IF('PB Liquefaction Initiation'!$F27="",NA(),'PB Liquefaction Initiation'!$F27),NA()) ->  | L43: =IF(AND(Method_BI=TRUE,Inputs!J30="Yes"),'PB Liquefaction Initiation'!S27,NA()) ->  | M43: =IF(Method_BI=TRUE,IF('PB Liquefaction Initiation'!P27="","",'PB Liquefaction Initiation'!P27),NA()) ->  | N43: =IF(Method_BI=TRUE,IF(Option_PL_FSL="FSL",'PB Liquefaction Initiation'!R27,IF(Option_PL_FSL="PL",'PB Liquefaction Initiation'!T27,NA())),NA()) ->  | O43: =IF(AND(Method_BI=TRUE,J43<>""),IF(units=1,'PB Settlement'!AI25,CONVERT('PB Settlement'!AI25,"cm","in")),NA()) ->  | P43: =IF(Method_Cetin=TRUE,'PB Liquefaction Initiation'!$D60,NA()) ->  | Q43: =IF(Method_Cetin=TRUE,'PB Liquefaction Initiation'!J60,NA()) ->  | R43: =IF(Method_Cetin=TRUE,'PB Liquefaction Initiation'!M60,NA()) ->  | S43: =IF(Method_Cetin=TRUE,IF(Option_PL_FSL="FSL",'PB Liquefaction Initiation'!K60,IF(Option_PL_FSL="PL",'PB Liquefaction Initiation'!L60,NA())),NA()) ->  | T43: =IF(AND(Method_Cetin=TRUE,'Final Summary'!J43<>""),IF(units=1,'PB Settlement'!AI53,CONVERT('PB Settlement'!AI53,"cm","in")),NA()) ->  | U43: =IF(Inputs!$B30="","",Inputs!$B30) ->  | V43: =IF(Method_BI=TRUE,IF('PB Liquefaction Initiation'!$F27="",NA(),'PB Liquefaction Initiation'!$F27),NA()) ->  | W43: =IF(Method_BI=TRUE,IF(Inputs!J30="No",NA(),'Det Liquefaction Initiation'!P27),NA()) ->  | X43: =IF(Method_BI=TRUE,'Det Liquefaction Initiation'!S27,NA()) ->  | Y43: =IF(Method_BI=TRUE,IF(Option_PL_FSL="FSL",'Det Liquefaction Initiation'!Q27,'Det Liquefaction Initiation'!R27),NA()) ->  | Z43: =IF(Det_Liq_Option=FALSE,NA(),IF(AND(Method_BI=TRUE,U43<>""),IF(units=1,'Det Settlement'!U24,CONVERT('Det Settlement'!U24,"cm","in")),NA())) ->  | AA43: =IF(Method_Cetin=TRUE,'PB Liquefaction Initiation'!$D60,NA()) ->  | AB43: =IF(Method_Cetin=TRUE,'Det Liquefaction Initiation'!K60,NA()) ->  | AC43: =IF(Method_Cetin=TRUE,'Det Liquefaction Initiation'!N60,NA()) ->  | AD43: =IF(Method_Cetin=TRUE,IF(Option_PL_FSL="FSL",'Det Liquefaction Initiation'!L60,'Det Liquefaction Initiation'!M60),NA()) ->  | AE43: =IF(Det_Liq_Option=FALSE,NA(),IF(AND(Method_Cetin=TRUE,'Final Summary'!U43<>""),IF(units=1,'Det Settlement'!U50,CONVERT('Det Settlement'!U50,"cm","in")),NA())) -> 
A44: Mw = | B44: =IF(Mw_det="","",Mw_det) -> 6.8 | F44: Longitude: | G44: =IF(Long="","",Long) -> -111.91495 | J44: =IF(Inputs!$B31="","",Inputs!$B31) ->  | K44: =IF(Method_BI=TRUE,IF('PB Liquefaction Initiation'!$F28="",NA(),'PB Liquefaction Initiation'!$F28),NA()) ->  | L44: =IF(AND(Method_BI=TRUE,Inputs!J31="Yes"),'PB Liquefaction Initiation'!S28,NA()) ->  | M44: =IF(Method_BI=TRUE,IF('PB Liquefaction Initiation'!P28="","",'PB Liquefaction Initiation'!P28),NA()) ->  | N44: =IF(Method_BI=TRUE,IF(Option_PL_FSL="FSL",'PB Liquefaction Initiation'!R28,IF(Option_PL_FSL="PL",'PB Liquefaction Initiation'!T28,NA())),NA()) ->  | O44: =IF(AND(Method_BI=TRUE,J44<>""),IF(units=1,'PB Settlement'!AI26,CONVERT('PB Settlement'!AI26,"cm","in")),NA()) ->  | P44: =IF(Method_Cetin=TRUE,'PB Liquefaction Initiation'!$D61,NA()) ->  | Q44: =IF(Method_Cetin=TRUE,'PB Liquefaction Initiation'!J61,NA()) ->  | R44: =IF(Method_Cetin=TRUE,'PB Liquefaction Initiation'!M61,NA()) ->  | S44: =IF(Method_Cetin=TRUE,IF(Option_PL_FSL="FSL",'PB Liquefaction Initiation'!K61,IF(Option_PL_FSL="PL",'PB Liquefaction Initiation'!L61,NA())),NA()) ->  | T44: =IF(AND(Method_Cetin=TRUE,'Final Summary'!J44<>""),IF(units=1,'PB Settlement'!AI54,CONVERT('PB Settlement'!AI54,"cm","in")),NA()) ->  | U44: =IF(Inputs!$B31="","",Inputs!$B31) ->  | V44: =IF(Method_BI=TRUE,IF('PB Liquefaction Initiation'!$F28="",NA(),'PB Liquefaction Initiation'!$F28),NA()) ->  | W44: =IF(Method_BI=TRUE,IF(Inputs!J31="No",NA(),'Det Liquefaction Initiation'!P28),NA()) ->  | X44: =IF(Method_BI=TRUE,'Det Liquefaction Initiation'!S28,NA()) ->  | Y44: =IF(Method_BI=TRUE,IF(Option_PL_FSL="FSL",'Det Liquefaction Initiation'!Q28,'Det Liquefaction Initiation'!R28),NA()) ->  | Z44: =IF(Det_Liq_Option=FALSE,NA(),IF(AND(Method_BI=TRUE,U44<>""),IF(units=1,'Det Settlement'!U25,CONVERT('Det Settlement'!U25,"cm","in")),NA())) ->  | AA44: =IF(Method_Cetin=TRUE,'PB Liquefaction Initiation'!$D61,NA()) ->  | AB44: =IF(Method_Cetin=TRUE,'Det Liquefaction Initiation'!K61,NA()) ->  | AC44: =IF(Method_Cetin=TRUE,'Det Liquefaction Initiation'!N61,NA()) ->  | AD44: =IF(Method_Cetin=TRUE,IF(Option_PL_FSL="FSL",'Det Liquefaction Initiation'!L61,'Det Liquefaction Initiation'!M61),NA()) ->  | AE44: =IF(Det_Liq_Option=FALSE,NA(),IF(AND(Method_Cetin=TRUE,'Final Summary'!U44<>""),IF(units=1,'Det Settlement'!U51,CONVERT('Det Settlement'!U51,"cm","in")),NA())) -> 
A45: Percentile = | B45: =IF(Percentile_Liq="","",Percentile_Liq) -> 84 | J45: =IF(Inputs!$B32="","",Inputs!$B32) ->  | K45: =IF(Method_BI=TRUE,IF('PB Liquefaction Initiation'!$F29="",NA(),'PB Liquefaction Initiation'!$F29),NA()) ->  | L45: =IF(AND(Method_BI=TRUE,Inputs!J32="Yes"),'PB Liquefaction Initiation'!S29,NA()) ->  | M45: =IF(Method_BI=TRUE,IF('PB Liquefaction Initiation'!P29="","",'PB Liquefaction Initiation'!P29),NA()) ->  | N45: =IF(Method_BI=TRUE,IF(Option_PL_FSL="FSL",'PB Liquefaction Initiation'!R29,IF(Option_PL_FSL="PL",'PB Liquefaction Initiation'!T29,NA())),NA()) ->  | O45: =IF(AND(Method_BI=TRUE,J45<>""),IF(units=1,'PB Settlement'!AI27,CONVERT('PB Settlement'!AI27,"cm","in")),NA()) ->  | P45: =IF(Method_Cetin=TRUE,'PB Liquefaction Initiation'!$D62,NA()) ->  | Q45: =IF(Method_Cetin=TRUE,'PB Liquefaction Initiation'!J62,NA()) ->  | R45: =IF(Method_Cetin=TRUE,'PB Liquefaction Initiation'!M62,NA()) ->  | S45: =IF(Method_Cetin=TRUE,IF(Option_PL_FSL="FSL",'PB Liquefaction Initiation'!K62,IF(Option_PL_FSL="PL",'PB Liquefaction Initiation'!L62,NA())),NA()) ->  | T45: =IF(AND(Method_Cetin=TRUE,'Final Summary'!J45<>""),IF(units=1,'PB Settlement'!AI55,CONVERT('PB Settlement'!AI55,"cm","in")),NA()) ->  | U45: =IF(Inputs!$B32="","",Inputs!$B32) ->  | V45: =IF(Method_BI=TRUE,IF('PB Liquefaction Initiation'!$F29="",NA(),'PB Liquefaction Initiation'!$F29),NA()) ->  | W45: =IF(Method_BI=TRUE,IF(Inputs!J32="No",NA(),'Det Liquefaction Initiation'!P29),NA()) ->  | X45: =IF(Method_BI=TRUE,'Det Liquefaction Initiation'!S29,NA()) ->  | Y45: =IF(Method_BI=TRUE,IF(Option_PL_FSL="FSL",'Det Liquefaction Initiation'!Q29,'Det Liquefaction Initiation'!R29),NA()) ->  | Z45: =IF(Det_Liq_Option=FALSE,NA(),IF(AND(Method_BI=TRUE,U45<>""),IF(units=1,'Det Settlement'!U26,CONVERT('Det Settlement'!U26,"cm","in")),NA())) ->  | AA45: =IF(Method_Cetin=TRUE,'PB Liquefaction Initiation'!$D62,NA()) ->  | AB45: =IF(Method_Cetin=TRUE,'Det Liquefaction Initiation'!K62,NA()) ->  | AC45: =IF(Method_Cetin=TRUE,'Det Liquefaction Initiation'!N62,NA()) ->  | AD45: =IF(Method_Cetin=TRUE,IF(Option_PL_FSL="FSL",'Det Liquefaction Initiation'!L62,'Det Liquefaction Initiation'!M62),NA()) ->  | AE45: =IF(Det_Liq_Option=FALSE,NA(),IF(AND(Method_Cetin=TRUE,'Final Summary'!U45<>""),IF(units=1,'Det Settlement'!U52,CONVERT('Det Settlement'!U52,"cm","in")),NA())) -> 
U46: *Note: The governing value is the lower value between the simplified performance-based and deterministic results

Sheet Map Help
Z5: =IF($A5="","",IF($A5="","",$T5*$U5*$V5*$W5*$X5*$Y5)) -> 
Z6: =IF($A6="","",IF($A6="","",$T6*$U6*$V6*$W6*$X6*$Y6)) -> 
L14: Mapped Value
L15: -0.825
AB38: =IF($A38="","",$W38*$X38*$Y38*$Z38*$AA38) -> 
AB39: =IF($A39="","",$W39*$X39*$Y39*$Z39*$AA39) -> 

Sheet PB Liquefaction Initiation
A1: Simplified Performance-based Liquefaction Triggering using Boulanger & Idriss (2012) | W1: Idriss and Boulanger (2008) (N1)60 Corrections | AB1: Borehole Diameter [mm] | AH1: Idriss and Boulanger (2014) Simplified MSF Correction Factors
A2: PGA: | B2: =IF(Inputs!$C$36="",NA(),Inputs!$C$36) -> 0.44 | C2: g | AE2: Rod Length [m]
A3: Fpga: | B3: =IF(Fpga="",NA(),Fpga) -> 1.06 | J3: Hammer Efficiency (%) = | K3: =Hammer_Eff -> 77 | W3: Pa = | X3: 101.325 | Y3: kPa | AC3: CB | AF3: CR
A4: Depth to Water: | B4: =IF(design_gw="",NA(),IF(units=2,CONVERT(design_gw,"ft","m"),design_gw)) -> 0 | C4: m | J4: Borehole Diameter = | K4: =IF(units=1,Bore_Diam,CONVERT(Bore_Diam,"in","m")*1000) -> 107.95 | L4: mm | X4: 2116.216 | Y4: psf | AB4: 65 - 115 mm | AC4: 1 | AE4: < 3 | AF4: 0.75
A5: Mw: | B5: =IF(Inputs!$C$38="",NA(),Inputs!$C$38) -> 6.77 | J5: Rod Stickup Length = | K5: =IF(units=1,Rod_stickup,CONVERT(Rod_stickup,"ft","m")) -> 1.524 | L5: m | AB5: 150 mm | AC5: 1.05 | AE5: 3 - 4 | AF5: 0.8
A6: CSRref: | B6: =IF(Inputs!$C$50="",NA(),Inputs!$C$50) -> 35.14 | C6: % | AB6: 200 mm | AC6: 1.15 | AE6: 4 - 6 | AF6: 0.85
A7: σε : | B7: 0.277 | AE7: 6 - 10 | AF7: 0.95
G8: Design | U8: At Time of Drilling | AE8: 10 - 30 | AF8: 1
A9: Depth (m): | B9: (N1)60 | C9: g (kN/m3) | D9: Fines (%) | E9: Thickness (m) | F9: (N1)60,cs | G9: sv (kPa) | H9: sv' (kPa) | I9: ΔCSRs | J9: ΔCSRrd | K9: ΔCSRFpga | L9: ΔCSRKs | M9: ΔCSRMSF | N9: DCSR | O9: KDR(aging) | P9: CSRsite | Q9: CRRNsite | R9: FSL | S9: Nreqsite | T9: PL | U9: sv (kPa) | V9: sv' (kPa) | W9: SPT N | X9: CN | Y9: CE | Z9: CR | AA9: CB | AB9: CS | AC9: (N1)60 | AE9: (N1)60 (Copy) | AH9: MSFsitemax | AI9: MSFmaxref
A10: =IF(Inputs!B13="","",IF(units=2,CONVERT(Inputs!B13,"ft","m"),Inputs!B13)) -> 0.4572 | B10: =IF(AC10="","",AC10) -> 32.725 | C10: =IF(Inputs!E13="","",IF(units=2,Inputs!E13*0.1571,Inputs!E13)) -> 19.52753 | D10: =IF(Inputs!F13="","",Inputs!F13) -> 10 | E10: =IF(Inputs!G13="","",IF(units=2,CONVERT(Inputs!G13,"ft","m"),Inputs!G13)) -> 0.9144 | F10: =IF(OR(B10="",Method_BI=FALSE),NA(),B10+EXP(1.63+9.7/(D10+0.01)-(15.7/(D10+0.01))^2)) -> 33.87418545 | G10: =IF(A10="","",C10*A10) -> 8.927986716 | H10: =IF(A10="","",IF(A10<$B$4,G10,G10-(A10-$B$4)*9.807)) -> 4.444226316 | I10: =IF(OR(A10<$B$4,A10=""),"",LN((G10/H10)/2)) -> 0.004437940501 | J10: =IF(OR(A10<$B$4,A10=""),"",-0.6712-1.126*SIN(A10/11.73+5.133)+(0.0675+0.118*SIN(A10/11.28+5.142))*$B$5) -> 0.08274945581 | K10: =IF(OR(A10="",A10<$B$4),"",LN($B$3/1)) -> 0.05826890812 | L10: =IF(OR(A10="",$A10<$B$4),"",LN(1.0672/(1-LN(H10/101.3)*MIN(0.3,1/(18.9-2.55*SQRT(F10)))))) -> -0.5061293063 | M10: =IF(A10="","",IF(IB_MSF=2012,0,-LN((1+(AH10-1)*(8.64*EXP(-Mw_prob/4)-1.325))/(1+(AI10-1)*(8.64*EXP(-Mw_prob/4)-1.325))))) -> -0.09357667176 | N10: =IF(OR(A10="",A10<$B$4),"",I10+J10+K10+L10+M10) -> -0.4542496736 | O10: =IF(Inputs!H13="",1,Inputs!H13) -> 1 | P10: =IF(OR(N10="",Inputs!J13="No",Method_BI=FALSE),NA(),EXP(LN($B$6/100)+N10)) -> 0.2231123602 | Q10: =IF(OR(A10="",Method_BI=FALSE),NA(),O10*EXP((F10/14.1)+(F10/126)^2-(F10/23.6)^3+(F10/25.4)^4-2.67)) -> 1.010930585 | R10: =IF(OR(N10="",Inputs!J13="No",Method_BI=FALSE),NA(),Q10/P10) -> 4.531038012 | S10: 19.14770508 | T10: =IF(OR(N10="",Method_BI=FALSE),NA(),_xlfn.NORM.S.DIST(-LN(R10)/$B$7,TRUE)) -> 2.452821811e-08 | U10: =IF(A10="","",C10*A10) -> 8.927986716 | V10: =IF(A10="","",IF(A10<IF(units=2,CONVERT(gw_depth,"ft","m"),gw_depth),U10,U10-((A10-IF(units=2,CONVERT(gw_depth,"ft","m"),gw_depth))*9.807))) -> 8.927986716 | W10: =IF(Inputs!C13="","",IF(Inputs!D13="Standard SS (2-in OD)",Inputs!C13,IF(Inputs!D13="Non-Standard (3-in OD)",Inputs!C13*0.44,IF(Inputs!D13="Non-Standard (2.5-in OD)",Inputs!C13*0.64, IF(Inputs!D13="D&M SS (3.25-in OD)",Inputs!C13*0.3786,IF(Inputs!D13="Custom Factor",Inputs!C13*NFACT)))))) -> 20 | X10: =IF(A10="","",IF(($X$3/V10)^(0.784-0.0768*SQRT(AC10))<=1.7,($X$3/V10)^(0.784-0.0768*SQRT(AC10)),1.7)) -> 1.7 | Y10: =IF(A10="","",Efficiency/60) -> 1.283333333 | Z10: =IF(A10="","",IF(Rod_L+A10<3,0.75,IF(Rod_L+A10<4,0.8,IF(Rod_L+A10<6,0.85,IF(Rod_L+A10<10,0.95,1))))) -> 0.75 | AA10: =IF(A43="","",IF(Bore_D<=115,1,IF(Bore_D<200,1.05,1.15))) -> 1 | AB10: =IF(A10="","",IF(no_liners="NL",IF(AC10<=10,1.1,IF(AC10>30,1.3,1+AC10/100)),1)) -> 1 | AC10: =IF($A10="","",IF($A10="","",$W10*$X10*$Y10*$Z10*$AA10*$AB10)) -> 32.725 | AE10: 32.725 | AH10: =MIN(1.09+(F10/31.5)^2,2.2) -> 2.2 | AI10: =MIN(1.09+(((1.237*(-LN($B$6/100))^4)-(4.918*(-LN($B$6/100))^3)+(1.762*(-LN($B$6/100))^2)-(5.473*(-LN($B$6/100)))+33.65)/31.5)^2,2.2) -> 1.756041297
A11: =IF(Inputs!B14="","",IF(units=2,CONVERT(Inputs!B14,"ft","m"),Inputs!B14)) -> 1.6764 | B11: =IF(AC11="","",AC11) -> 10.75125333 | C11: =IF(Inputs!E14="","",IF(units=2,Inputs!E14*0.1571,Inputs!E14)) -> 19.52753 | D11: =IF(Inputs!F14="","",Inputs!F14) -> 10 | E11: =IF(Inputs!G14="","",IF(units=2,CONVERT(Inputs!G14,"ft","m"),Inputs!G14)) -> 1.524 | F11: =IF(OR(B11="",Method_BI=FALSE),NA(),B11+EXP(1.63+9.7/(D11+0.01)-(15.7/(D11+0.01))^2)) -> 11.90043878 | G11: =IF(A11="","",G10+(SUM(E$10:E10)-A10)*C10+(A11-SUM(E$10:E10))*C11) -> 32.73595129 | H11: =IF(A11="","",IF(A11<$B$4,G11,G11-(A11-$B$4)*9.807)) -> 16.29549649 | I11: =IF(OR(A11<$B$4,A11=""),"",LN((G11/H11)/2)) -> 0.004437940501 | J11: =IF(OR(A11<$B$4,A11=""),"",-0.6712-1.126*SIN(A11/11.73+5.133)+(0.0675+0.118*SIN(A11/11.28+5.142))*$B$5) -> 0.06867774298 | K11: =IF(OR(A11="",A11<$B$4),"",LN($B$3/1)) -> 0.05826890812 | L11: =IF(OR(A11="",$A11<$B$4),"",LN(1.0672/(1-LN(H11/101.3)*MIN(0.3,1/(18.9-2.55*SQRT(F11)))))) -> -0.1011980277 | M11: 0.1228784902 | N11: =IF(OR(A11="",A11<$B$4),"",I11+J11+K11+L11+M11) -> 0.1530650542 | O11: =IF(Inputs!H14="",1,Inputs!H14) -> 1 | P11: =IF(OR(N11="",Inputs!J14="No",Method_BI=FALSE),NA(),EXP(LN($B$6/100)+N11)) -> 0.4095218378 | Q11: 0.1500014345 | R11: =IF(OR(N11="",Inputs!J14="No",Method_BI=FALSE),NA(),Q11/P11) -> 0.3662843361 | S11: 27.37555695 | T11: =IF(OR(N11="",Method_BI=FALSE),NA(),_xlfn.NORM.S.DIST(-LN(R11)/$B$7,TRUE)) -> 0.9998559634 | U11: =IF(A11="","",C11*A11) -> 32.73595129 | V11: 31.24136449 | W11: =IF(Inputs!C14="","",IF(Inputs!D14="Standard SS (2-in OD)",Inputs!C14,IF(Inputs!D14="Non-Standard (3-in OD)",Inputs!C14*0.44,IF(Inputs!D14="Non-Standard (2.5-in OD)",Inputs!C14*0.64, IF(Inputs!D14="D&M SS (3.25-in OD)",Inputs!C14*0.3786,IF(Inputs!D14="Custom Factor",Inputs!C14*NFACT)))))) -> 6.16 | X11: 1.7 | Y11: 1.283333333 | Z11: 0.8 | AA11: 1 | AB11: 1 | AC11: 10.75125333 | AE11: 10.75125333 | AH11: =MIN(1.09+(F11/31.5)^2,2.2) -> 1.232726574 | AI11: =MIN(1.09+(((1.237*(-LN($B$6/100))^4)-(4.918*(-LN($B$6/100))^3)+(1.762*(-LN($B$6/100))^2)-(5.473*(-LN($B$6/100)))+33.65)/31.5)^2,2.2) -> 1.756041297
A12: =IF(Inputs!B15="","",IF(units=2,CONVERT(Inputs!B15,"ft","m"),Inputs!B15)) -> 3.2004 | B12: 12.54421822 | C12: =IF(Inputs!E15="","",IF(units=2,Inputs!E15*0.1571,Inputs!E15)) -> 19.52753 | D12: =IF(Inputs!F15="","",Inputs!F15) -> 10 | E12: =IF(Inputs!G15="","",IF(units=2,CONVERT(Inputs!G15,"ft","m"),Inputs!G15)) -> 1.524 | F12: 13.69340367 | G12: =IF(A12="","",G11+(SUM(E$10:E11)-A11)*C11+(A12-SUM(E$10:E11))*C12) -> 62.49590701 | H12: =IF(A12="","",IF(A12<$B$4,G12,G12-(A12-$B$4)*9.807)) -> 31.10958421 | I12: =IF(OR(A12<$B$4,A12=""),"",LN((G12/H12)/2)) -> 0.004437940501 | J12: =IF(OR(A12<$B$4,A12=""),"",-0.6712-1.126*SIN(A12/11.73+5.133)+(0.0675+0.118*SIN(A12/11.28+5.142))*$B$5) -> 0.04763488039 | K12: =IF(OR(A12="",A12<$B$4),"",LN($B$3/1)) -> 0.05826890812 | L12: -0.05251844908 | M12: 0.1113901326 | N12: 0.1692134125 | O12: =IF(Inputs!H15="",1,Inputs!H15) -> 1 | P12: =IF(OR(N12="",Inputs!J15="No",Method_BI=FALSE),NA(),EXP(LN($B$6/100)+N12)) -> 0.4161886272 | Q12: 0.1656468263 | R12: =IF(OR(N12="",Inputs!J15="No",Method_BI=FALSE),NA(),Q12/P12) -> 0.3980090169 | S12: 27.53518677 | T12: 0.9995593684 | U12: 62.49590701 | V12: 46.05545221 | W12: =IF(Inputs!C15="","",IF(Inputs!D15="Standard SS (2-in OD)",Inputs!C15,IF(Inputs!D15="Non-Standard (3-in OD)",Inputs!C15*0.44,IF(Inputs!D15="Non-Standard (2.5-in OD)",Inputs!C15*0.64, IF(Inputs!D15="D&M SS (3.25-in OD)",Inputs!C15*0.3786,IF(Inputs!D15="Custom Factor",Inputs!C15*NFACT)))))) -> 7.68 | X12: 1.497352251 | Y12: 1.283333333 | Z12: 0.85 | AA12: 1 | AB12: 1 | AC12: 12.54421822 | AE12: 12.54421822 | AH12: 1.278973851 | AI12: 1.756041297
A13: =IF(Inputs!B16="","",IF(units=2,CONVERT(Inputs!B16,"ft","m"),Inputs!B16)) -> 4.572 | B13: 1.986780652 | C13: =IF(Inputs!E16="","",IF(units=2,Inputs!E16*0.1571,Inputs!E16)) -> 19.52753 | D13: =IF(Inputs!F16="","",Inputs!F16) -> 60 | E13: =IF(Inputs!G16="","",IF(units=2,CONVERT(Inputs!G16,"ft","m"),Inputs!G16)) -> 1.2192 | F13: 7.589169573 | G13: =IF(A13="","",G12+(SUM(E$10:E12)-A12)*C12+(A13-SUM(E$10:E12))*C13) -> 89.27986716 | H13: 44.44226316 | I13: 0.004437940501 | J13: 0.02562122978 | K13: 0.05826890812 | L13: -0.002040479668 | M13: 0.1442626014 | N13: 0.2305502002 | O13: =IF(Inputs!H16="",1,Inputs!H16) -> 1 | P13: =IF(OR(N13="",Inputs!J16="No",Method_BI=FALSE),NA(),EXP(LN($B$6/100)+N13)) ->  | Q13: 0.1160867288 | R13: =IF(OR(N13="",Inputs!J16="No",Method_BI=FALSE),NA(),Q13/P13) ->  | U13: 89.27986716 | V13: 59.38813116 | W13: =IF(Inputs!C16="","",IF(Inputs!D16="Standard SS (2-in OD)",Inputs!C16,IF(Inputs!D16="Non-Standard (3-in OD)",Inputs!C16*0.44,IF(Inputs!D16="Non-Standard (2.5-in OD)",Inputs!C16*0.64, IF(Inputs!D16="D&M SS (3.25-in OD)",Inputs!C16*0.3786,IF(Inputs!D16="Custom Factor",Inputs!C16*NFACT)))))) -> 1.1358 | X13: 1.434778888 | Y13: 1.283333333 | Z13: 0.95 | AA13: 1 | AB13: 1 | AC13: 1.986780652 | AE13: 1.986780652 | AH13: 1.148045346 | AI13: 1.756041297
A14: =IF(Inputs!B17="","",IF(units=2,CONVERT(Inputs!B17,"ft","m"),Inputs!B17)) -> 6.2484 | B14: 20.55928846 | C14: =IF(Inputs!E17="","",IF(units=2,Inputs!E17*0.1571,Inputs!E17)) -> 19.52753 | D14: =IF(Inputs!F17="","",Inputs!F17) -> 10 | E14: =IF(Inputs!G17="","",IF(units=2,CONVERT(Inputs!G17,"ft","m"),Inputs!G17)) -> 2.1336 | F14: 21.70847391 | G14: =IF(A14="","",G13+(SUM(E$10:E13)-A13)*C13+(A14-SUM(E$10:E13))*C14) -> 122.0158185 | H14: 60.73775965 | I14: 0.004437940501 | J14: -0.004899474666 | K14: 0.05826890812 | L14: -0.005305538591 | M14: 0.04314244454 | N14: 0.09564427991 | O14: =IF(Inputs!H17="",1,Inputs!H17) -> 1 | P14: =IF(OR(N14="",Inputs!J17="No",Method_BI=FALSE),NA(),EXP(LN($B$6/100)+N14)) -> 0.3866691646 | Q14: 0.2604203796 | R14: =IF(OR(N14="",Inputs!J17="No",Method_BI=FALSE),NA(),Q14/P14) -> 0.6734966309 | S14: 26.78862762 | T14: 0.9232065591 | U14: 122.0158185 | V14: 75.68362765 | W14: =IF(Inputs!C17="","",IF(Inputs!D17="Standard SS (2-in OD)",Inputs!C17,IF(Inputs!D17="Non-Standard (3-in OD)",Inputs!C17*0.44,IF(Inputs!D17="Non-Standard (2.5-in OD)",Inputs!C17*0.64, IF(Inputs!D17="D&M SS (3.25-in OD)",Inputs!C17*0.3786,IF(Inputs!D17="Custom Factor",Inputs!C17*NFACT)))))) -> 14.85 | X14: 1.135582121 | Y14: 1.283333333 | Z14: 0.95 | AA14: 1 | AB14: 1 | AC14: 20.55928846 | AE14: 20.55928846 | AH14: 1.564938614 | AI14: 1.756041297
A15: =IF(Inputs!B18="","",IF(units=2,CONVERT(Inputs!B18,"ft","m"),Inputs!B18)) -> 7.7724 | B15: 27.99121421 | C15: =IF(Inputs!E18="","",IF(units=2,Inputs!E18*0.1571,Inputs!E18)) -> 19.52753 | D15: =IF(Inputs!F18="","",Inputs!F18) -> 10 | E15: =IF(Inputs!G18="","",IF(units=2,CONVERT(Inputs!G18,"ft","m"),Inputs!G18)) -> 0.9144 | F15: 29.14039966 | G15: =IF(A15="","",G14+(SUM(E$10:E14)-A14)*C14+(A15-SUM(E$10:E14))*C15) -> 151.7757742 | H15: 75.55184737 | I15: 0.004437940501 | J15: -0.035726574 | K15: 0.05826890812 | L15: 0.009494352132 | M15: -0.04107193446 | N15: -0.004597307698 | O15: =IF(Inputs!H18="",1,Inputs!H18) -> 1 | P15: =IF(OR(N15="",Inputs!J18="No",Method_BI=FALSE),NA(),EXP(LN($B$6/100)+N15)) -> 0.3497882139 | Q15: 0.4965906967 | R15: =IF(OR(N15="",Inputs!J18="No",Method_BI=FALSE),NA(),Q15/P15) -> 1.419689621 | S15: 25.68392944 | T15: 0.1029141373 | U15: 151.7757742 | V15: 90.49771537 | W15: =IF(Inputs!C18="","",IF(Inputs!D18="Standard SS (2-in OD)",Inputs!C18,IF(Inputs!D18="Non-Standard (3-in OD)",Inputs!C18*0.44,IF(Inputs!D18="Non-Standard (2.5-in OD)",Inputs!C18*0.64, IF(Inputs!D18="D&M SS (3.25-in OD)",Inputs!C18*0.3786,IF(Inputs!D18="Custom Factor",Inputs!C18*NFACT)))))) -> 22 | X15: 1.043604581 | Y15: 1.283333333 | Z15: 0.95 | AA15: 1 | AB15: 1 | AC15: 27.99121421 | AE15: 27.99121421 | AH15: 1.945795306 | AI15: 1.756041297
A16: =IF(Inputs!B19="","",IF(units=2,CONVERT(Inputs!B19,"ft","m"),Inputs!B19)) -> 9.2964 | B16: 20.18844513 | C16: =IF(Inputs!E19="","",IF(units=2,Inputs!E19*0.1571,Inputs!E19)) -> 19.52753 | D16: =IF(Inputs!F19="","",Inputs!F19) -> 10 | E16: =IF(Inputs!G19="","",IF(units=2,CONVERT(Inputs!G19,"ft","m"),Inputs!G19)) -> 2.1336 | F16: 21.33763058 | G16: =IF(A16="","",G15+(SUM(E$10:E15)-A15)*C15+(A16-SUM(E$10:E15))*C16) -> 181.5357299 | H16: 90.36593509 | I16: 0.004437940501 | J16: -0.06908446638 | K16: 0.05826890812 | L16: 0.04912563473 | M16: 0.04686079494 | N16: 0.08960881192 | O16: =IF(Inputs!H19="",1,Inputs!H19) -> 1 | P16: =IF(OR(N16="",Inputs!J19="No",Method_BI=FALSE),NA(),EXP(LN($B$6/100)+N16)) -> 0.3843424637 | Q16: 0.2543382894 | R16: =IF(OR(N16="",Inputs!J19="No",Method_BI=FALSE),NA(),Q16/P16) -> 0.6617491258 | S16: 26.72507477 | T16: 0.9319537145 | U16: 181.5357299 | V16: 105.3118031 | W16: =IF(Inputs!C19="","",IF(Inputs!D19="Standard SS (2-in OD)",Inputs!C19,IF(Inputs!D19="Non-Standard (3-in OD)",Inputs!C19*0.44,IF(Inputs!D19="Non-Standard (2.5-in OD)",Inputs!C19*0.64, IF(Inputs!D19="D&M SS (3.25-in OD)",Inputs!C19*0.3786,IF(Inputs!D19="Custom Factor",Inputs!C19*NFACT)))))) -> 16 | X16: 0.9832034966 | Y16: 1.283333333 | Z16: 1 | AA16: 1 | AB16: 1 | AC16: 20.18844513 | AE16: 20.18844513 | AH16: 1.548850571 | AI16: 1.756041297
A17: =IF(Inputs!B20="","",IF(units=2,CONVERT(Inputs!B20,"ft","m"),Inputs!B20)) -> 10.8204 | B17: 8.338453565 | C17: =IF(Inputs!E20="","",IF(units=2,Inputs!E20*0.1571,Inputs!E20)) -> 19.52753 | D17: =IF(Inputs!F20="","",Inputs!F20) -> 10 | E17: =IF(Inputs!G20="","",IF(units=2,CONVERT(Inputs!G20,"ft","m"),Inputs!G20)) -> 0.9144 | F17: 9.487639011 | G17: =IF(A17="","",G16+(SUM(E$10:E16)-A16)*C16+(A17-SUM(E$10:E16))*C17) -> 211.2956856 | H17: 105.1800228 | I17: 0.004437940501 | J17: -0.1045477864 | K17: 0.05826890812 | L17: 0.06844712517 | M17: 0.1359575871 | N17: 0.1625637745 | O17: =IF(Inputs!H20="",1,Inputs!H20) -> 1 | P17: =IF(OR(N17="",Inputs!J20="No",Method_BI=FALSE),NA(),EXP(LN($B$6/100)+N17)) -> 0.4134303046 | Q17: 0.1304252794 | R17: =IF(OR(N17="",Inputs!J20="No",Method_BI=FALSE),NA(),Q17/P17) -> 0.3154710189 | S17: 27.46976471 | T17: 0.9999844283 | U17: 211.2956856 | V17: 120.1258908 | W17: =IF(Inputs!C20="","",IF(Inputs!D20="Standard SS (2-in OD)",Inputs!C20,IF(Inputs!D20="Non-Standard (3-in OD)",Inputs!C20*0.44,IF(Inputs!D20="Non-Standard (2.5-in OD)",Inputs!C20*0.64, IF(Inputs!D20="D&M SS (3.25-in OD)",Inputs!C20*0.3786,IF(Inputs!D20="Custom Factor",Inputs!C20*NFACT)))))) -> 7.15 | X17: 0.908740739 | Y17: 1.283333333 | Z17: 1 | AA17: 1 | AB17: 1 | AC17: 8.338453565 | AE17: 8.338453565 | AH17: 1.180718361 | AI17: 1.756041297
A18: =IF(Inputs!B21="","",IF(units=2,CONVERT(Inputs!B21,"ft","m"),Inputs!B21)) -> 12.4968 | B18: 1.728217142 | C18: =IF(Inputs!E21="","",IF(units=2,Inputs!E21*0.1571,Inputs!E21)) -> 19.52753 | D18: =IF(Inputs!F21="","",Inputs!F21) -> 70 | E18: =IF(Inputs!G21="","",IF(units=2,CONVERT(Inputs!G21,"ft","m"),Inputs!G21)) -> 2.4384 | F18: 7.303047698 | G18: =IF(A18="","",G17+(SUM(E$10:E17)-A17)*C17+(A18-SUM(E$10:E17))*C18) -> 244.0316369 | H18: 121.4755193 | I18: 0.004437940501 | J18: -0.1454458457 | K18: 0.05826890812 | L18: 0.0802783215 | M18: 0.1453592899 | N18: 0.1428986143 | O18: =IF(Inputs!H21="",1,Inputs!H21) -> 1 | P18: =IF(OR(N18="",Inputs!J21="No",Method_BI=FALSE),NA(),EXP(LN($B$6/100)+N18)) ->  | Q18: 0.1140072929 | R18: =IF(OR(N18="",Inputs!J21="No",Method_BI=FALSE),NA(),Q18/P18) ->  | U18: 244.0316369 | V18: 136.4213873 | W18: =IF(Inputs!C21="","",IF(Inputs!D21="Standard SS (2-in OD)",Inputs!C21,IF(Inputs!D21="Non-Standard (3-in OD)",Inputs!C21*0.44,IF(Inputs!D21="Non-Standard (2.5-in OD)",Inputs!C21*0.64, IF(Inputs!D21="D&M SS (3.25-in OD)",Inputs!C21*0.3786,IF(Inputs!D21="Custom Factor",Inputs!C21*NFACT)))))) -> 1.65 | X18: 0.8161592171 | Y18: 1.283333333 | Z18: 1 | AA18: 1 | AB18: 1 | AC18: 1.728217142 | AE18: 1.728217142 | AH18: 1.143751077 | AI18: 1.756041297
A19: =IF(Inputs!B22="","",IF(units=2,CONVERT(Inputs!B22,"ft","m"),Inputs!B22)) -> 13.716 | B19: 1.630834208 | C19: =IF(Inputs!E22="","",IF(units=2,Inputs!E22*0.1571,Inputs!E22)) -> 19.52753 | D19: =IF(Inputs!F22="","",Inputs!F22) -> 5 | E19: =IF(Inputs!G22="","",IF(units=2,CONVERT(Inputs!G22,"ft","m"),Inputs!G22)) -> 0.9144 | F19: 1.632756664 | G19: =IF(A19="","",G18+(SUM(E$10:E18)-A18)*C18+(A19-SUM(E$10:E18))*C19) -> 267.8396015 | H19: 133.3267895 | I19: 0.004437940501 | J19: -0.1760806592 | K19: 0.05826890812 | L19: 0.08275764349 | M19: 0.1584933475 | N19: 0.1278771804 | O19: =IF(Inputs!H22="",1,Inputs!H22) -> 1 | P19: =IF(OR(N19="",Inputs!J22="No",Method_BI=FALSE),NA(),EXP(LN($B$6/100)+N19)) -> 0.3993356759 | Q19: 0.07774291842 | R19: =IF(OR(N19="",Inputs!J22="No",Method_BI=FALSE),NA(),Q19/P19) -> 0.1946806236 | S19: 27.12171936 | T19: 0.9999999983 | U19: 267.8396015 | V19: 148.2726575 | W19: =IF(Inputs!C22="","",IF(Inputs!D22="Standard SS (2-in OD)",Inputs!C22,IF(Inputs!D22="Non-Standard (3-in OD)",Inputs!C22*0.44,IF(Inputs!D22="Non-Standard (2.5-in OD)",Inputs!C22*0.64, IF(Inputs!D22="D&M SS (3.25-in OD)",Inputs!C22*0.3786,IF(Inputs!D22="Custom Factor",Inputs!C22*NFACT)))))) -> 1.65 | X19: 0.7701696378 | Y19: 1.283333333 | Z19: 1 | AA19: 1 | AB19: 1 | AC19: 1.630834208 | AE19: 1.630834208 | AH19: 1.092686716 | AI19: 1.756041297
A20: =IF(Inputs!B23="","",IF(units=2,CONVERT(Inputs!B23,"ft","m"),Inputs!B23)) -> 15.6972 | B20: 9.657999112 | C20: =IF(Inputs!E23="","",IF(units=2,Inputs!E23*0.1571,Inputs!E23)) -> 19.52753 | D20: =IF(Inputs!F23="","",Inputs!F23) -> 5 | E20: =IF(Inputs!G23="","",IF(units=2,CONVERT(Inputs!G23,"ft","m"),Inputs!G23)) -> 2.1336 | F20: 9.659921568 | G20: =IF(A20="","",G19+(SUM(E$10:E19)-A19)*C19+(A20-SUM(E$10:E19))*C20) -> 306.5275439 | H20: 152.5851035 | I20: 0.004437940501 | J20: -0.226736422 | K20: 0.05826890812 | L20: 0.1030790458 | M20: 0.1351163857 | N20: 0.07416585805 | O20: =IF(Inputs!H23="",1,Inputs!H23) -> 1 | P20: =IF(OR(N20="",Inputs!J23="No",Method_BI=FALSE),NA(),EXP(LN($B$6/100)+N20)) -> 0.3784526757 | Q20: 0.1317723328 | R20: =IF(OR(N20="",Inputs!J23="No",Method_BI=FALSE),NA(),Q20/P20) -> 0.348187082 | S20: 26.56095886 | T20: 0.9999301559 | U20: 306.5275439 | V20: 167.5309715 | W20: =IF(Inputs!C23="","",IF(Inputs!D23="Standard SS (2-in OD)",Inputs!C23,IF(Inputs!D23="Non-Standard (3-in OD)",Inputs!C23*0.44,IF(Inputs!D23="Non-Standard (2.5-in OD)",Inputs!C23*0.64, IF(Inputs!D23="D&M SS (3.25-in OD)",Inputs!C23*0.3786,IF(Inputs!D23="Custom Factor",Inputs!C23*NFACT)))))) -> 9.9 | X20: 0.7601730903 | Y20: 1.283333333 | Z20: 1 | AA20: 1 | AB20: 1 | AC20: 9.657999112 | AE20: 9.657999112 | AH20: 1.184042917 | AI20: 1.756041297
A21: =IF(Inputs!B24="","",IF(units=2,CONVERT(Inputs!B24,"ft","m"),Inputs!B24)) -> 17.3736 | B21: 2.373936556 | C21: =IF(Inputs!E24="","",IF(units=2,Inputs!E24*0.1571,Inputs!E24)) -> 19.52753 | D21: =IF(Inputs!F24="","",Inputs!F24) -> 5 | E21: =IF(Inputs!G24="","",IF(units=2,CONVERT(Inputs!G24,"ft","m"),Inputs!G24)) -> 1.2192 | F21: 2.375859012 | G21: =IF(A21="","",G20+(SUM(E$10:E20)-A20)*C20+(A21-SUM(E$10:E20))*C21) -> 339.2634952 | H21: 168.8806 | I21: 0.004437940501 | J21: -0.2697236357 | K21: 0.05826890812 | L21: 0.09977807488 | M21: 0.1577164041 | N21: 0.05047769184 | O21: =IF(Inputs!H24="",1,Inputs!H24) -> 1 | P21: =IF(OR(N21="",Inputs!J24="No",Method_BI=FALSE),NA(),EXP(LN($B$6/100)+N21)) -> 0.3695931727 | Q21: 0.0819138203 | R21: =IF(OR(N21="",Inputs!J24="No",Method_BI=FALSE),NA(),Q21/P21) -> 0.2216323957 | S21: 26.30413055 | T21: 0.9999999733 | U21: 339.2634952 | V21: 183.826468 | W21: =IF(Inputs!C24="","",IF(Inputs!D24="Standard SS (2-in OD)",Inputs!C24,IF(Inputs!D24="Non-Standard (3-in OD)",Inputs!C24*0.44,IF(Inputs!D24="Non-Standard (2.5-in OD)",Inputs!C24*0.64, IF(Inputs!D24="D&M SS (3.25-in OD)",Inputs!C24*0.3786,IF(Inputs!D24="Custom Factor",Inputs!C24*NFACT)))))) -> 2.75 | X21: 0.6726620703 | Y21: 1.283333333 | Z21: 1 | AA21: 1 | AB21: 1 | AC21: 2.373936556 | AE21: 2.373936556 | AH21: 1.095688794 | AI21: 1.756041297
A22: =IF(Inputs!B25="","",IF(units=2,CONVERT(Inputs!B25,"ft","m"),Inputs!B25)) ->  | C22: =IF(Inputs!E25="","",IF(units=2,Inputs!E25*0.1571,Inputs!E25)) ->  | D22: =IF(Inputs!F25="","",Inputs!F25) ->  | E22: =IF(Inputs!G25="","",IF(units=2,CONVERT(Inputs!G25,"ft","m"),Inputs!G25)) ->  | G22: =IF(A22="","",G21+(SUM(E$10:E21)-A21)*C21+(A22-SUM(E$10:E21))*C22) ->  | O22: =IF(Inputs!H25="",1,Inputs!H25) -> 1 | P22: =IF(OR(N22="",Inputs!J25="No",Method_BI=FALSE),NA(),EXP(LN($B$6/100)+N22)) ->  | R22: =IF(OR(N22="",Inputs!J25="No",Method_BI=FALSE),NA(),Q22/P22) ->  | W22: =IF(Inputs!C25="","",IF(Inputs!D25="Standard SS (2-in OD)",Inputs!C25,IF(Inputs!D25="Non-Standard (3-in OD)",Inputs!C25*0.44,IF(Inputs!D25="Non-Standard (2.5-in OD)",Inputs!C25*0.64, IF(Inputs!D25="D&M SS (3.25-in OD)",Inputs!C25*0.3786,IF(Inputs!D25="Custom Factor",Inputs!C25*NFACT)))))) ->  | AI22: 1.756041297
A23: =IF(Inputs!B26="","",IF(units=2,CONVERT(Inputs!B26,"ft","m"),Inputs!B26)) ->  | C23: =IF(Inputs!E26="","",IF(units=2,Inputs!E26*0.1571,Inputs!E26)) ->  | D23: =IF(Inputs!F26="","",Inputs!F26) ->  | E23: =IF(Inputs!G26="","",IF(units=2,CONVERT(Inputs!G26,"ft","m"),Inputs!G26)) ->  | G23: =IF(A23="","",G22+(SUM(E$10:E22)-A22)*C22+(A23-SUM(E$10:E22))*C23) ->  | O23: =IF(Inputs!H26="",1,Inputs!H26) -> 1 | P23: =IF(OR(N23="",Inputs!J26="No",Method_BI=FALSE),NA(),EXP(LN($B$6/100)+N23)) ->  | R23: =IF(OR(N23="",Inputs!J26="No",Method_BI=FALSE),NA(),Q23/P23) ->  | W23: =IF(Inputs!C26="","",IF(Inputs!D26="Standard SS (2-in OD)",Inputs!C26,IF(Inputs!D26="Non-Standard (3-in OD)",Inputs!C26*0.44,IF(Inputs!D26="Non-Standard (2.5-in OD)",Inputs!C26*0.64, IF(Inputs!D26="D&M SS (3.25-in OD)",Inputs!C26*0.3786,IF(Inputs!D26="Custom Factor",Inputs!C26*NFACT)))))) ->  | AI23: 1.756041297
A24: =IF(Inputs!B27="","",IF(units=2,CONVERT(Inputs!B27,"ft","m"),Inputs!B27)) ->  | C24: =IF(Inputs!E27="","",IF(units=2,Inputs!E27*0.1571,Inputs!E27)) ->  | D24: =IF(Inputs!F27="","",Inputs!F27) ->  | E24: =IF(Inputs!G27="","",IF(units=2,CONVERT(Inputs!G27,"ft","m"),Inputs!G27)) ->  | G24: =IF(A24="","",G23+(SUM(E$10:E23)-A23)*C23+(A24-SUM(E$10:E23))*C24) ->  | O24: =IF(Inputs!H27="",1,Inputs!H27) -> 1 | P24: =IF(OR(N24="",Inputs!J27="No",Method_BI=FALSE),NA(),EXP(LN($B$6/100)+N24)) ->  | R24: =IF(OR(N24="",Inputs!J27="No",Method_BI=FALSE),NA(),Q24/P24) ->  | W24: =IF(Inputs!C27="","",IF(Inputs!D27="Standard SS (2-in OD)",Inputs!C27,IF(Inputs!D27="Non-Standard (3-in OD)",Inputs!C27*0.44,IF(Inputs!D27="Non-Standard (2.5-in OD)",Inputs!C27*0.64, IF(Inputs!D27="D&M SS (3.25-in OD)",Inputs!C27*0.3786,IF(Inputs!D27="Custom Factor",Inputs!C27*NFACT)))))) ->  | AI24: 1.756041297
A25: =IF(Inputs!B28="","",IF(units=2,CONVERT(Inputs!B28,"ft","m"),Inputs!B28)) ->  | C25: =IF(Inputs!E28="","",IF(units=2,Inputs!E28*0.1571,Inputs!E28)) ->  | D25: =IF(Inputs!F28="","",Inputs!F28) ->  | E25: =IF(Inputs!G28="","",IF(units=2,CONVERT(Inputs!G28,"ft","m"),Inputs!G28)) ->  | G25: =IF(A25="","",G24+(SUM(E$10:E24)-A24)*C24+(A25-SUM(E$10:E24))*C25) ->  | O25: =IF(Inputs!H28="",1,Inputs!H28) -> 1 | P25: =IF(OR(N25="",Inputs!J28="No",Method_BI=FALSE),NA(),EXP(LN($B$6/100)+N25)) ->  | R25: =IF(OR(N25="",Inputs!J28="No",Method_BI=FALSE),NA(),Q25/P25) ->  | W25: =IF(Inputs!C28="","",IF(Inputs!D28="Standard SS (2-in OD)",Inputs!C28,IF(Inputs!D28="Non-Standard (3-in OD)",Inputs!C28*0.44,IF(Inputs!D28="Non-Standard (2.5-in OD)",Inputs!C28*0.64, IF(Inputs!D28="D&M SS (3.25-in OD)",Inputs!C28*0.3786,IF(Inputs!D28="Custom Factor",Inputs!C28*NFACT)))))) ->  | AI25: 1.756041297
A26: =IF(Inputs!B29="","",IF(units=2,CONVERT(Inputs!B29,"ft","m"),Inputs!B29)) ->  | C26: =IF(Inputs!E29="","",IF(units=2,Inputs!E29*0.1571,Inputs!E29)) ->  | D26: =IF(Inputs!F29="","",Inputs!F29) ->  | E26: =IF(Inputs!G29="","",IF(units=2,CONVERT(Inputs!G29,"ft","m"),Inputs!G29)) ->  | G26: =IF(A26="","",G25+(SUM(E$10:E25)-A25)*C25+(A26-SUM(E$10:E25))*C26) ->  | O26: =IF(Inputs!H29="",1,Inputs!H29) -> 1 | P26: =IF(OR(N26="",Inputs!J29="No",Method_BI=FALSE),NA(),EXP(LN($B$6/100)+N26)) ->  | R26: =IF(OR(N26="",Inputs!J29="No",Method_BI=FALSE),NA(),Q26/P26) ->  | W26: =IF(Inputs!C29="","",IF(Inputs!D29="Standard SS (2-in OD)",Inputs!C29,IF(Inputs!D29="Non-Standard (3-in OD)",Inputs!C29*0.44,IF(Inputs!D29="Non-Standard (2.5-in OD)",Inputs!C29*0.64, IF(Inputs!D29="D&M SS (3.25-in OD)",Inputs!C29*0.3786,IF(Inputs!D29="Custom Factor",Inputs!C29*NFACT)))))) ->  | AI26: 1.756041297
A27: =IF(Inputs!B30="","",IF(units=2,CONVERT(Inputs!B30,"ft","m"),Inputs!B30)) ->  | C27: =IF(Inputs!E30="","",IF(units=2,Inputs!E30*0.1571,Inputs!E30)) ->  | D27: =IF(Inputs!F30="","",Inputs!F30) ->  | E27: =IF(Inputs!G30="","",IF(units=2,CONVERT(Inputs!G30,"ft","m"),Inputs!G30)) ->  | G27: =IF(A27="","",G26+(SUM(E$10:E26)-A26)*C26+(A27-SUM(E$10:E26))*C27) ->  | O27: =IF(Inputs!H30="",1,Inputs!H30) -> 1 | P27: =IF(OR(N27="",Inputs!J30="No",Method_BI=FALSE),NA(),EXP(LN($B$6/100)+N27)) ->  | R27: =IF(OR(N27="",Inputs!J30="No",Method_BI=FALSE),NA(),Q27/P27) ->  | W27: =IF(Inputs!C30="","",IF(Inputs!D30="Standard SS (2-in OD)",Inputs!C30,IF(Inputs!D30="Non-Standard (3-in OD)",Inputs!C30*0.44,IF(Inputs!D30="Non-Standard (2.5-in OD)",Inputs!C30*0.64, IF(Inputs!D30="D&M SS (3.25-in OD)",Inputs!C30*0.3786,IF(Inputs!D30="Custom Factor",Inputs!C30*NFACT)))))) ->  | AI27: 1.756041297
A28: =IF(Inputs!B31="","",IF(units=2,CONVERT(Inputs!B31,"ft","m"),Inputs!B31)) ->  | C28: =IF(Inputs!E31="","",IF(units=2,Inputs!E31*0.1571,Inputs!E31)) ->  | D28: =IF(Inputs!F31="","",Inputs!F31) ->  | E28: =IF(Inputs!G31="","",IF(units=2,CONVERT(Inputs!G31,"ft","m"),Inputs!G31)) ->  | G28: =IF(A28="","",G27+(SUM(E$10:E27)-A27)*C27+(A28-SUM(E$10:E27))*C28) ->  | I28: =IF(OR(A28<$B$4,A28=""),"",LN((G28/H28)/2)) ->  | J28: =IF(OR(A28<$B$4,A28=""),"",-0.6712-1.126*SIN(A28/11.73+5.133)+(0.0675+0.118*SIN(A28/11.28+5.142))*$B$5) ->  | K28: =IF(OR(A28="",A28<$B$4),"",LN($B$3/1)) ->  | O28: =IF(Inputs!H31="",1,Inputs!H31) -> 1 | P28: =IF(OR(N28="",Inputs!J31="No",Method_BI=FALSE),NA(),EXP(LN($B$6/100)+N28)) ->  | R28: =IF(OR(N28="",Inputs!J31="No",Method_BI=FALSE),NA(),Q28/P28) ->  | W28: =IF(Inputs!C31="","",IF(Inputs!D31="Standard SS (2-in OD)",Inputs!C31,IF(Inputs!D31="Non-Standard (3-in OD)",Inputs!C31*0.44,IF(Inputs!D31="Non-Standard (2.5-in OD)",Inputs!C31*0.64, IF(Inputs!D31="D&M SS (3.25-in OD)",Inputs!C31*0.3786,IF(Inputs!D31="Custom Factor",Inputs!C31*NFACT)))))) -> 
A29: =IF(Inputs!B32="","",IF(units=2,CONVERT(Inputs!B32,"ft","m"),Inputs!B32)) ->  | B29: =IF(AC29="","",AC29) ->  | C29: =IF(Inputs!E32="","",IF(units=2,Inputs!E32*0.1571,Inputs!E32)) ->  | D29: =IF(Inputs!F32="","",Inputs!F32) ->  | E29: =IF(Inputs!G32="","",IF(units=2,CONVERT(Inputs!G32,"ft","m"),Inputs!G32)) ->  | G29: =IF(A29="","",G28+(SUM(E$10:E28)-A28)*C28+(A29-SUM(E$10:E28))*C29) ->  | I29: =IF(OR(A29<$B$4,A29=""),"",LN((G29/H29)/2)) ->  | J29: =IF(OR(A29<$B$4,A29=""),"",-0.6712-1.126*SIN(A29/11.73+5.133)+(0.0675+0.118*SIN(A29/11.28+5.142))*$B$5) ->  | K29: =IF(OR(A29="",A29<$B$4),"",LN($B$3/1)) ->  | O29: =IF(Inputs!H32="",1,Inputs!H32) -> 1 | P29: =IF(OR(N29="",Inputs!J32="No",Method_BI=FALSE),NA(),EXP(LN($B$6/100)+N29)) ->  | R29: =IF(OR(N29="",Inputs!J32="No",Method_BI=FALSE),NA(),Q29/P29) ->  | W29: =IF(Inputs!C32="","",IF(Inputs!D32="Standard SS (2-in OD)",Inputs!C32,IF(Inputs!D32="Non-Standard (3-in OD)",Inputs!C32*0.44,IF(Inputs!D32="Non-Standard (2.5-in OD)",Inputs!C32*0.64, IF(Inputs!D32="D&M SS (3.25-in OD)",Inputs!C32*0.3786,IF(Inputs!D32="Custom Factor",Inputs!C32*NFACT)))))) -> 
R30: 1 | S30: 1
A34: Simplified Performance-based Liquefaction Triggering using Cetin et al. (2004), after Mayfield et al. (2010) | W34: Cetin et. al (2004) (N1)60 Corrections
A36: PGA: | B36: =B2 -> 0.44 | C36: g
A37: Fpga: | B37: =B3 -> 1.06
A38: Depth to Water: | B38: =B4 -> 0 | C38: m
A39: Vs,12: | B39: =IF(Inputs!C39="",NA(),IF(units=1,Inputs!C39,CONVERT(Inputs!C39,"ft","m"))) -> 189.8904 | C39: m/s
A40: Nreq: | B40: =IF(Inputs!$C$51="",NA(),Inputs!$C$51) -> 49.09
A41: Mw: | B41: =B5 -> 6.77
A42: Depth: | B42: (N1)60 | C42: Fines (%) | D42: (N1)60,cs | E42: DNs | F42: DNrd | G42: DNF | H42: DNreq | I42: KDR(aging) | J42: Nreqsite | K42: FSL | L42: PL | M42: CSR(site) | N42: CRR | W42: SPT N | X42: sv' (kPa) | Y42: CN | Z42: N1 | AA42: CE | AB42: CR | AC42: CB | AD42: CS | AE42: (N1)60 | AG42: (N1)60 (copy) | AO42: C_R (EQ) | AP42: C_R (EST) | AR42: Rod L (m)
A43: =IF(A10="","",A10) -> 0.4572 | B43: =IF(A43="","",AE43) -> 30.8 | C43: =IF(D10="","",D10) -> 10 | D43: =IF(OR(A43="",Method_Cetin=FALSE),NA(),IF(C43<5,B43,IF(C43>35,B43*(1+0.004*35)+0.06*35,B43*(1+0.004*C43)+0.06*C43))) -> 32.632 | E43: =IF(OR(A43<$B$38,A43=""),"",13.79*LN((1-0.2*$B$4/A43)/(1+0.6*$B$4/A43))+3.82*LN(A43/6*(1+0.6*$B$4/A43))) -> -9.834184378 | F43: =IF(OR(A43<$B$38,A43=""),"",13.79*(LN(((-1.412+0.0525*$B$39+2.671*EXP(0.0268*$B$39-0.341*A43))/(-1.412+0.0525*$B$39+2.671*EXP(0.0268*$B$39)))/((14.079+2.313*EXP(0.0268*$B$39-0.341*A43))/(16.258+2.671*EXP(0.0268*$B$39)))))) -> 1.945584835 | G43: =IF(OR(A43<$B$38,A43=""),"",13.79*LN($B$37/1)) -> 0.803528243 | H43: =IF(OR(A43<$B$38,A43=""),"",SUM(E43:G43)) -> -7.0850713 | I43: =IF(Inputs!H13="",1,Inputs!H13) -> 1 | J43: =IF(OR(A43<$B$38,A43="",Inputs!J13="No",Method_Cetin=FALSE),NA(),MAX(1,$B$40+H43)) -> 42.0049287 | K43: =IF(OR(A43<$B$38,A43="",Inputs!J13="No",Method_Cetin=FALSE),NA(),EXP((D43-J43)/13.79)) -> 0.5067739357 | L43: =IF(OR(A43<$B$38,A43="",Inputs!J13="No",Method_Cetin=FALSE),NA(),_xlfn.NORM.S.DIST(-(B43*(1+0.004*C43)-13.79*LN(M43)-29.06*LN($B$5)-3.82*LN(H10/101.325)+0.06*C43+15.25)/4.21,TRUE)) -> 0.9870045884 | M43: =IF(OR(A43<$B$38,A43="",Method_Cetin=FALSE),NA(),EXP((J43-29.06*LN($B$41)-3.82*LN(H10/101.325)+15.25+4.21*_xlfn.NORM.S.INV(0.5))/13.79)) -> 2.685317088 | N43: =IF(OR(A43="",Method_Cetin=FALSE),NA(),I43*EXP((D43-29.06*LN($B$41)-3.82*LN(H10/101.325)+15.25+4.21*_xlfn.NORM.S.INV(0.5))/13.79)) -> 1.360848709 | W43: =W10 -> 20 | X43: =V10 -> 8.927986716 | Y43: =IF(A43="","",MIN(1.6,(101.325/X43)^0.5)) -> 1.6 | Z43: =IF(A43="","",W43*Y43) -> 32 | AA43: =IF(A43="","",Efficiency/60) -> 1.283333333 | AB43: =IF(A43="","",IF(Rod_L+A43<3,0.75,IF(Rod_L+A43>20,1,IF(Rod_L+A43<9,((Rod_L+A43)/9.869)^(1/4.1397),((Rod_L+A43)/18.961)^(1/17.456))))) -> 0.75 | AC43: =IF(A43="","",IF(Bore_D<=115,1,IF(Bore_D<200,1.05,1.15))) -> 1 | AD43: =IF(A43="","",IF(no_liners="NL",IF(AE43<=10,1.1,IF(AE43>30,1.3,1+AE43/100)),1)) -> 1 | AE43: =IF($A43="","",$Z43*$AA43*$AB43*$AC43*$AD43) -> 30.8 | AG43: 30.8 | AO43: =(AR43/9.869)^(1/4.1397) -> 0.7500237762 | AP43: 0.75 | AR43: 3
A44: =IF(A11="","",A11) -> 1.6764 | B44: =IF(A44="","",AE44) -> 9.636049609 | C44: =IF(D11="","",D11) -> 10 | D44: 10.62149159 | E44: =IF(OR(A44<$B$38,A44=""),"",13.79*LN((1-0.2*$B$4/A44)/(1+0.6*$B$4/A44))+3.82*LN(A44/6*(1+0.6*$B$4/A44))) -> -4.870923379 | F44: =IF(OR(A44<$B$38,A44=""),"",13.79*(LN(((-1.412+0.0525*$B$39+2.671*EXP(0.0268*$B$39-0.341*A44))/(-1.412+0.0525*$B$39+2.671*EXP(0.0268*$B$39)))/((14.079+2.313*EXP(0.0268*$B$39-0.341*A44))/(16.258+2.671*EXP(0.0268*$B$39)))))) -> 1.809594907 | G44: =IF(OR(A44<$B$38,A44=""),"",13.79*LN($B$37/1)) -> 0.803528243 | H44: =IF(OR(A44<$B$38,A44=""),"",SUM(E44:G44)) -> -2.257800229 | I44: =IF(Inputs!H14="",1,Inputs!H14) -> 1 | J44: =IF(OR(A44<$B$38,A44="",Inputs!J14="No",Method_Cetin=FALSE),NA(),MAX(1,$B$40+H44)) -> 46.83219977 | K44: =IF(OR(A44<$B$38,A44="",Inputs!J14="No",Method_Cetin=FALSE),NA(),EXP((D44-J44)/13.79)) -> 0.07237696718 | L44: =IF(OR(A44<$B$38,A44="",Inputs!J14="No",Method_Cetin=FALSE),NA(),_xlfn.NORM.S.DIST(-(B44*(1+0.004*C44)-13.79*LN(M44)-29.06*LN($B$5)-3.82*LN(H11/101.325)+0.06*C44+15.25)/4.21,TRUE)) -> 1 | M44: =IF(OR(A44<$B$38,A44="",Method_Cetin=FALSE),NA(),EXP((J44-29.06*LN($B$41)-3.82*LN(H11/101.325)+15.25+4.21*_xlfn.NORM.S.INV(0.5))/13.79)) -> 2.658966009 | N44: 0.1924478955 | W44: =W11 -> 6.16 | X44: =V11 -> 31.24136449 | Y44: =IF(A44="","",MIN(1.6,(101.325/X44)^0.5)) -> 1.6 | Z44: =IF(A44="","",W44*Y44) -> 9.856 | AA44: 1.283333333 | AB44: 0.7618313804 | AC44: 1 | AD44: 1 | AE44: 9.636049609 | AG44: 9.636049609 | AO44: 0.8039992743 | AP44: 0.8 | AR44: 4
A45: 3.2004 | B45: =IF(A45="","",AE45) -> 12.23590076 | C45: 10 | D45: 13.32533679 | E45: -2.400807609 | F45: 1.550085204 | G45: 0.803528243 | H45: -0.04719416216 | I45: =IF(Inputs!H15="",1,Inputs!H15) -> 1 | J45: =IF(OR(A45<$B$38,A45="",Inputs!J15="No",Method_Cetin=FALSE),NA(),MAX(1,$B$40+H45)) -> 49.04280584 | K45: =IF(OR(A45<$B$38,A45="",Inputs!J15="No",Method_Cetin=FALSE),NA(),EXP((D45-J45)/13.79)) -> 0.07501259258 | L45: =IF(OR(A45<$B$38,A45="",Inputs!J15="No",Method_Cetin=FALSE),NA(),_xlfn.NORM.S.DIST(-(B45*(1+0.004*C45)-13.79*LN(M45)-29.06*LN($B$5)-3.82*LN(H12/101.325)+0.06*C45+15.25)/4.21,TRUE)) -> 1 | M45: 2.609395645 | N45: 0.1957375324 | W45: 7.68 | X45: 46.05545221 | Y45: 1.483261693 | Z45: 11.3914498 | AA45: 1.283333333 | AB45: 0.8369846058 | AC45: 1 | AD45: 1 | AE45: 12.23590076 | AG45: 12.23590076 | AO45: 0.8485268101 | AP45: 0.85 | AR45: 5
A46: 4.572 | B46: =IF(A46="","",AE46) -> 1.694758977 | C46: 60 | D46: 4.032025234 | E46: -1.038309323 | F46: 1.196751205 | G46: 0.803528243 | H46: 0.9619701252 | I46: =IF(Inputs!H16="",1,Inputs!H16) -> 1 | J46: =IF(OR(A46<$B$38,A46="",Inputs!J16="No",Method_Cetin=FALSE),NA(),MAX(1,$B$40+H46)) ->  | K46: =IF(OR(A46<$B$38,A46="",Inputs!J16="No",Method_Cetin=FALSE),NA(),EXP((D46-J46)/13.79)) ->  | L46: =IF(OR(A46<$B$38,A46="",Inputs!J16="No",Method_Cetin=FALSE),NA(),_xlfn.NORM.S.DIST(-(B46*(1+0.004*C46)-13.79*LN(M46)-29.06*LN($B$5)-3.82*LN(H13/101.325)+0.06*C46+15.25)/4.21,TRUE)) ->  | N46: 0.09038285262 | W46: 1.1358 | X46: 59.38813116 | Y46: 1.306196383 | Z46: 1.483577851 | AA46: 1.283333333 | AB46: 0.8901396105 | AC46: 1 | AD46: 1 | AE46: 1.694758977 | AG46: 1.694758977 | AO46: 0.8867329767 | AP46: 0.9 | AR46: 6
A47: 6.2484 | B47: 20.81463456 | C47: 10 | D47: 22.24721994 | E47: 0.1549619739 | F47: 0.5579857333 | G47: 0.803528243 | H47: 1.51647595 | I47: =IF(Inputs!H17="",1,Inputs!H17) -> 1 | J47: =IF(OR(A47<$B$38,A47="",Inputs!J17="No",Method_Cetin=FALSE),NA(),MAX(1,$B$40+H47)) -> 50.60647595 | K47: =IF(OR(A47<$B$38,A47="",Inputs!J17="No",Method_Cetin=FALSE),NA(),EXP((D47-J47)/13.79)) -> 0.127899718 | L47: =IF(OR(A47<$B$38,A47="",Inputs!J17="No",Method_Cetin=FALSE),NA(),_xlfn.NORM.S.DIST(-(B47*(1+0.004*C47)-13.79*LN(M47)-29.06*LN($B$5)-3.82*LN(H14/101.325)+0.06*C47+15.25)/4.21,TRUE)) -> 1 | M47: 2.428260706 | N47: 0.3105738596 | W47: 14.85 | X47: 75.68362765 | Y47: 1.157063879 | Z47: 17.1823986 | AA47: 1.283333333 | AB47: 0.9439424693 | AC47: 1 | AD47: 1 | AE47: 20.81463456 | AG47: 20.81463456 | AO47: 0.9203748734 | AP47: 0.92 | AR47: 7
A48: 7.7724 | B48: 28.67931015 | C48: 10 | D48: 30.42648255 | E48: 0.9886905961 | F48: -0.2528828996 | G48: 0.803528243 | H48: 1.539335939 | I48: =IF(Inputs!H18="",1,Inputs!H18) -> 1 | J48: =IF(OR(A48<$B$38,A48="",Inputs!J18="No",Method_Cetin=FALSE),NA(),MAX(1,$B$40+H48)) -> 50.62933594 | K48: =IF(OR(A48<$B$38,A48="",Inputs!J18="No",Method_Cetin=FALSE),NA(),EXP((D48-J48)/13.79)) -> 0.2310695564 | L48: =IF(OR(A48<$B$38,A48="",Inputs!J18="No",Method_Cetin=FALSE),NA(),_xlfn.NORM.S.DIST(-(B48*(1+0.004*C48)-13.79*LN(M48)-29.06*LN($B$5)-3.82*LN(H15/101.325)+0.06*C48+15.25)/4.21,TRUE)) -> 0.9999992018 | M48: 2.289592916 | N48: 0.5290552195 | W48: 22 | X48: 90.49771537 | Y48: 1.058131147 | Z48: 23.27888524 | AA48: 1.283333333 | AB48: 0.9599907458 | AC48: 1 | AD48: 1 | AE48: 28.67931015 | AG48: 28.67931015 | AO48: 0.9505467593 | AP48: 0.94 | AR48: 8
A49: 9.2964 | B49: 19.50397473 | C49: 10 | D49: 20.88413372 | E49: 1.67265484 | F49: -1.265255176 | G49: 0.803528243 | H49: 1.210927907 | I49: =IF(Inputs!H19="",1,Inputs!H19) -> 1 | J49: =IF(OR(A49<$B$38,A49="",Inputs!J19="No",Method_Cetin=FALSE),NA(),MAX(1,$B$40+H49)) -> 50.30092791 | K49: =IF(OR(A49<$B$38,A49="",Inputs!J19="No",Method_Cetin=FALSE),NA(),EXP((D49-J49)/13.79)) -> 0.1184579127 | L49: =IF(OR(A49<$B$38,A49="",Inputs!J19="No",Method_Cetin=FALSE),NA(),_xlfn.NORM.S.DIST(-(B49*(1+0.004*C49)-13.79*LN(M49)-29.06*LN($B$5)-3.82*LN(H16/101.325)+0.06*C49+15.25)/4.21,TRUE)) -> 1 | M49: 2.127527544 | N49: 0.2520224721 | W49: 16 | X49: 105.3118031 | Y49: 0.980888814 | Z49: 15.69422102 | AA49: 1.283333333 | AB49: 0.9683757073 | AC49: 1 | AD49: 1 | AE49: 19.50397473 | AG49: 19.50397473 | AO49: =(AR49/18.961)^(1/17.456) -> 0.9582104185 | AP49: 0.957 | AQ49: 0.957 | AR49: 9
A50: 10.8204 | B50: 8.222572974 | C50: 10 | D50: 9.151475893 | E50: 2.252553809 | F50: -2.39097073 | G50: 0.803528243 | H50: 0.6651113223 | I50: =IF(Inputs!H20="",1,Inputs!H20) -> 1 | J50: =IF(OR(A50<$B$38,A50="",Inputs!J20="No",Method_Cetin=FALSE),NA(),MAX(1,$B$40+H50)) -> 49.75511132 | K50: =IF(OR(A50<$B$38,A50="",Inputs!J20="No",Method_Cetin=FALSE),NA(),EXP((D50-J50)/13.79)) -> 0.05263225867 | L50: =IF(OR(A50<$B$38,A50="",Inputs!J20="No",Method_Cetin=FALSE),NA(),_xlfn.NORM.S.DIST(-(B50*(1+0.004*C50)-13.79*LN(M50)-29.06*LN($B$5)-3.82*LN(H17/101.325)+0.06*C50+15.25)/4.21,TRUE)) -> 1 | M50: 1.960751431 | N50: 0.1031987765 | W50: 7.15 | X50: 120.1258908 | Y50: 0.9184171726 | Z50: 6.566682784 | AA50: 1.283333333 | AB50: 0.9757132986 | AC50: 1 | AD50: 1 | AE50: 8.222572974 | AG50: 8.222572974 | AO50: =(AR50/18.961)^(1/17.456) -> 0.9640114518 | AQ50: 0.964 | AR50: 10
A51: 12.4968 | B51: 1.79362168 | C51: 70 | D51: 4.144728715 | E51: 2.802784204 | F51: -3.596562789 | G51: 0.803528243 | H51: 0.009749657189 | I51: =IF(Inputs!H21="",1,Inputs!H21) -> 1 | J51: =IF(OR(A51<$B$38,A51="",Inputs!J21="No",Method_Cetin=FALSE),NA(),MAX(1,$B$40+H51)) ->  | K51: =IF(OR(A51<$B$38,A51="",Inputs!J21="No",Method_Cetin=FALSE),NA(),EXP((D51-J51)/13.79)) ->  | L51: =IF(OR(A51<$B$38,A51="",Inputs!J21="No",Method_Cetin=FALSE),NA(),_xlfn.NORM.S.DIST(-(B51*(1+0.004*C51)-13.79*LN(M51)-29.06*LN($B$5)-3.82*LN(H18/101.325)+0.06*C51+15.25)/4.21,TRUE)) ->  | N51: 0.06897095367 | W51: 1.65 | X51: 136.4213873 | Y51: 0.861821006 | Z51: 1.42200466 | AA51: 1.283333333 | AB51: 0.9828570346 | AC51: 1 | AD51: 1 | AE51: 1.79362168 | AG51: 1.79362168 | AO51: 0.9692893732 | AQ51: 0.97 | AR51: 11
A52: 13.716 | B52: 1.728685633 | C52: 5 | D52: 2.063259346 | E52: 3.15838962 | F52: -4.35894571 | G52: 0.803528243 | H52: -0.3970278471 | I52: =IF(Inputs!H22="",1,Inputs!H22) -> 1 | J52: =IF(OR(A52<$B$38,A52="",Inputs!J22="No",Method_Cetin=FALSE),NA(),MAX(1,$B$40+H52)) -> 48.69297215 | K52: =IF(OR(A52<$B$38,A52="",Inputs!J22="No",Method_Cetin=FALSE),NA(),EXP((D52-J52)/13.79)) -> 0.03399931176 | L52: =IF(OR(A52<$B$38,A52="",Inputs!J22="No",Method_Cetin=FALSE),NA(),_xlfn.NORM.S.DIST(-(B52*(1+0.004*C52)-13.79*LN(M52)-29.06*LN($B$5)-3.82*LN(H19/101.325)+0.06*C52+15.25)/4.21,TRUE)) -> 1 | M52: 1.699981701 | N52: 0.05779820784 | W52: 1.65 | X52: 148.2726575 | Y52: 0.8266616118 | Z52: 1.363991659 | AA52: 1.283333333 | AB52: 0.9875630521 | AC52: 1 | AD52: 1 | AE52: 1.728685633 | AG52: 1.728685633 | AO52: 0.9741329657 | AQ52: 0.975 | AR52: 12
A53: 15.6972 | B53: 9.826321162 | C53: 5 | D53: 10.32284758 | E53: 3.673781414 | F53: -5.302902771 | G53: 0.803528243 | H53: -0.8255931139 | I53: =IF(Inputs!H23="",1,Inputs!H23) -> 1 | J53: =IF(OR(A53<$B$38,A53="",Inputs!J23="No",Method_Cetin=FALSE),NA(),MAX(1,$B$40+H53)) -> 48.26440689 | K53: =IF(OR(A53<$B$38,A53="",Inputs!J23="No",Method_Cetin=FALSE),NA(),EXP((D53-J53)/13.79)) -> 0.06383956688 | L53: =IF(OR(A53<$B$38,A53="",Inputs!J23="No",Method_Cetin=FALSE),NA(),_xlfn.NORM.S.DIST(-(B53*(1+0.004*C53)-13.79*LN(M53)-29.06*LN($B$5)-3.82*LN(H20/101.325)+0.06*C53+15.25)/4.21,TRUE)) -> 1 | M53: 1.587507535 | N53: 0.1013457935 | W53: 9.9 | X53: 167.5309715 | Y53: 0.7776975893 | Z53: 7.699206134 | AA53: 1.283333333 | AB53: 0.9945017057 | AC53: 1 | AD53: 1 | AE53: 9.826321162 | AG53: 9.826321162 | AO53: 0.9786100098 | AQ53: 0.98 | AR53: 13
A54: 17.3736 | B54: 2.619649117 | C54: 5 | D54: 2.9720421 | E54: 4.061394752 | F54: -5.826175413 | G54: 0.803528243 | H54: -0.9612524176 | I54: =IF(Inputs!H24="",1,Inputs!H24) -> 1 | J54: =IF(OR(A54<$B$38,A54="",Inputs!J24="No",Method_Cetin=FALSE),NA(),MAX(1,$B$40+H54)) -> 48.12874758 | K54: =IF(OR(A54<$B$38,A54="",Inputs!J24="No",Method_Cetin=FALSE),NA(),EXP((D54-J54)/13.79)) -> 0.03783207724 | L54: =IF(OR(A54<$B$38,A54="",Inputs!J24="No",Method_Cetin=FALSE),NA(),_xlfn.NORM.S.DIST(-(B54*(1+0.004*C54)-13.79*LN(M54)-29.06*LN($B$5)-3.82*LN(H21/101.325)+0.06*C54+15.25)/4.21,TRUE)) -> 1 | M54: 1.528396878 | N54: 0.05782242874 | W54: 2.75 | X54: 183.826468 | Y54: 0.7424279012 | Z54: 2.041676728 | AA54: 1.283333333 | AB54: 0.9998081469 | AC54: 1 | AD54: 1 | AE54: 2.619649117 | AG54: 2.619649117 | AO54: 0.9827734473 | AQ54: 0.984 | AR54: 14
I55: =IF(Inputs!H25="",1,Inputs!H25) -> 1 | J55: =IF(OR(A55<$B$38,A55="",Inputs!J25="No",Method_Cetin=FALSE),NA(),MAX(1,$B$40+H55)) ->  | K55: =IF(OR(A55<$B$38,A55="",Inputs!J25="No",Method_Cetin=FALSE),NA(),EXP((D55-J55)/13.79)) ->  | L55: =IF(OR(A55<$B$38,A55="",Inputs!J25="No",Method_Cetin=FALSE),NA(),_xlfn.NORM.S.DIST(-(B55*(1+0.004*C55)-13.79*LN(M55)-29.06*LN($B$5)-3.82*LN(H22/101.325)+0.06*C55+15.25)/4.21,TRUE)) ->  | AO55: 0.9866654348 | AQ55: 0.986 | AR55: 15
I56: =IF(Inputs!H26="",1,Inputs!H26) -> 1 | J56: =IF(OR(A56<$B$38,A56="",Inputs!J26="No",Method_Cetin=FALSE),NA(),MAX(1,$B$40+H56)) ->  | K56: =IF(OR(A56<$B$38,A56="",Inputs!J26="No",Method_Cetin=FALSE),NA(),EXP((D56-J56)/13.79)) ->  | L56: =IF(OR(A56<$B$38,A56="",Inputs!J26="No",Method_Cetin=FALSE),NA(),_xlfn.NORM.S.DIST(-(B56*(1+0.004*C56)-13.79*LN(M56)-29.06*LN($B$5)-3.82*LN(H23/101.325)+0.06*C56+15.25)/4.21,TRUE)) ->  | AO56: 0.9903200973 | AQ56: 0.988 | AR56: 16
I57: =IF(Inputs!H27="",1,Inputs!H27) -> 1 | J57: =IF(OR(A57<$B$38,A57="",Inputs!J27="No",Method_Cetin=FALSE),NA(),MAX(1,$B$40+H57)) ->  | K57: =IF(OR(A57<$B$38,A57="",Inputs!J27="No",Method_Cetin=FALSE),NA(),EXP((D57-J57)/13.79)) ->  | L57: =IF(OR(A57<$B$38,A57="",Inputs!J27="No",Method_Cetin=FALSE),NA(),_xlfn.NORM.S.DIST(-(B57*(1+0.004*C57)-13.79*LN(M57)-29.06*LN($B$5)-3.82*LN(H24/101.325)+0.06*C57+15.25)/4.21,TRUE)) ->  | AO57: 1 | AQ57: 1 | AR57: 20
I58: =IF(Inputs!H28="",1,Inputs!H28) -> 1 | J58: =IF(OR(A58<$B$38,A58="",Inputs!J28="No",Method_Cetin=FALSE),NA(),MAX(1,$B$40+H58)) ->  | K58: =IF(OR(A58<$B$38,A58="",Inputs!J28="No",Method_Cetin=FALSE),NA(),EXP((D58-J58)/13.79)) ->  | L58: =IF(OR(A58<$B$38,A58="",Inputs!J28="No",Method_Cetin=FALSE),NA(),_xlfn.NORM.S.DIST(-(B58*(1+0.004*C58)-13.79*LN(M58)-29.06*LN($B$5)-3.82*LN(H25/101.325)+0.06*C58+15.25)/4.21,TRUE)) ->  | AO58: 1 | AQ58: 1 | AR58: 25
I59: =IF(Inputs!H29="",1,Inputs!H29) -> 1 | J59: =IF(OR(A59<$B$38,A59="",Inputs!J29="No",Method_Cetin=FALSE),NA(),MAX(1,$B$40+H59)) ->  | K59: =IF(OR(A59<$B$38,A59="",Inputs!J29="No",Method_Cetin=FALSE),NA(),EXP((D59-J59)/13.79)) ->  | L59: =IF(OR(A59<$B$38,A59="",Inputs!J29="No",Method_Cetin=FALSE),NA(),_xlfn.NORM.S.DIST(-(B59*(1+0.004*C59)-13.79*LN(M59)-29.06*LN($B$5)-3.82*LN(H26/101.325)+0.06*C59+15.25)/4.21,TRUE)) ->  | AO59: 1 | AQ59: 1 | AR59: 30
I60: =IF(Inputs!H30="",1,Inputs!H30) -> 1 | J60: =IF(OR(A60<$B$38,A60="",Inputs!J30="No",Method_Cetin=FALSE),NA(),MAX(1,$B$40+H60)) ->  | K60: =IF(OR(A60<$B$38,A60="",Inputs!J30="No",Method_Cetin=FALSE),NA(),EXP((D60-J60)/13.79)) ->  | L60: =IF(OR(A60<$B$38,A60="",Inputs!J30="No",Method_Cetin=FALSE),NA(),_xlfn.NORM.S.DIST(-(B60*(1+0.004*C60)-13.79*LN(M60)-29.06*LN($B$5)-3.82*LN(H27/101.325)+0.06*C60+15.25)/4.21,TRUE)) -> 
I61: =IF(Inputs!H31="",1,Inputs!H31) -> 1 | J61: =IF(OR(A61<$B$38,A61="",Inputs!J31="No",Method_Cetin=FALSE),NA(),MAX(1,$B$40+H61)) ->  | K61: =IF(OR(A61<$B$38,A61="",Inputs!J31="No",Method_Cetin=FALSE),NA(),EXP((D61-J61)/13.79)) ->  | L61: =IF(OR(A61<$B$38,A61="",Inputs!J31="No",Method_Cetin=FALSE),NA(),_xlfn.NORM.S.DIST(-(B61*(1+0.004*C61)-13.79*LN(M61)-29.06*LN($B$5)-3.82*LN(H28/101.325)+0.06*C61+15.25)/4.21,TRUE)) -> 
I62: =IF(Inputs!H32="",1,Inputs!H32) -> 1 | J62: =IF(OR(A62<$B$38,A62="",Inputs!J32="No",Method_Cetin=FALSE),NA(),MAX(1,$B$40+H62)) ->  | K62: =IF(OR(A62<$B$38,A62="",Inputs!J32="No",Method_Cetin=FALSE),NA(),EXP((D62-J62)/13.79)) ->  | L62: =IF(OR(A62<$B$38,A62="",Inputs!J32="No",Method_Cetin=FALSE),NA(),_xlfn.NORM.S.DIST(-(B62*(1+0.004*C62)-13.79*LN(M62)-29.06*LN($B$5)-3.82*LN(H29/101.325)+0.06*C62+15.25)/4.21,TRUE)) -> 

Sheet Det Liquefaction Initiation
A1: Deterministic Liquefaction Triggering using Boulanger & Idriss (2008, 2014)
A2: PGA: | B2: =IF(PGA_det="",NA(),PGA_det) -> 0.73 | C2: g | D2: amax = | E2: =B2*B3 -> 0.73
A3: Fpga: | B3: =IF(Fpga_det="",NA(),Fpga_det) -> 1
A4: Depth to Water: | B4: ='PB Liquefaction Initiation'!B4 -> 0 | C4: m
A5: Mw: | B5: =IF(Mw_det="",NA(),Mw_det) -> 6.8
A7: σε : | B7: 0.277
U8: For 2014 MSF Factor
A9: Depth (m): | B9: (N1)60 | C9: g (kN/m3) | D9: Fines (%) | E9: Thickness (m) | F9: (N1)60,cs | G9: sv (kPa) | H9: sv' (kPa) | I9: α | J9: β | K9: rd | L9: MSF | M9: Csig | N9: Ksig | O9: KDR(aging) | P9: Nreqsite | Q9: FSL | R9: PL | S9: CSR(site) | T9: CRR | U9: MSFmax
A10: =IF('PB Liquefaction Initiation'!A10="","",'PB Liquefaction Initiation'!A10) -> 0.4572 | B10: ='PB Liquefaction Initiation'!B10 -> 32.725 | C10: =IF('PB Liquefaction Initiation'!C10="","",'PB Liquefaction Initiation'!C10) -> 19.52753 | D10: =IF('PB Liquefaction Initiation'!D10="","",'PB Liquefaction Initiation'!D10) -> 10 | E10: =IF('PB Liquefaction Initiation'!E10="","",'PB Liquefaction Initiation'!E10) -> 0.9144 | F10: =IF(OR('PB Liquefaction Initiation'!F10="",Method_BI=FALSE),NA(),'PB Liquefaction Initiation'!F10) -> 33.87418545 | G10: =IF('PB Liquefaction Initiation'!G10="","",'PB Liquefaction Initiation'!G10) -> 8.927986716 | H10: =IF('PB Liquefaction Initiation'!H10="","",'PB Liquefaction Initiation'!H10) -> 4.444226316 | I10: =IF(OR(A10<$B$4,A10=""),"",-1.012-1.126*SIN(A10/11.73+5.133)) -> -0.002839021425 | J10: =IF(OR(A10<$B$4,A10=""),"",0.106+0.118*SIN(A10/11.28+5.142)) -> 0.0008025815709 | K10: =IF(OR(A10<$B$4,A10=""),"",EXP(I10+J10*$B$5)) -> 1.002621965 | L10: =IF(OR(A10<$B$4,A10=""),"",IF(IB_MSF=2014,1+(U10-1)*(8.64*EXP(-Mw_det/4)-1.325),MIN(1.8,6.9*EXP(-$B$5/4)-0.058))) -> 1.304062777 | M10: =IF(OR(A10<$B$4,A10=""),"",MIN(0.3,1/(18.9-2.55*SQRT(F10)))) -> 0.2463898428 | N10: =IF(OR(A10<$B$4,A10=""),"",1-M10*LN(H10/101.325)) -> 1.770393867 | O10: =IF(Inputs!H13="",1,Inputs!H13) -> 1 | P10: 30.87283325 | Q10: =IF(OR(A10="",A10<$B$4,Method_BI=FALSE),NA(),T10/S10) -> 1.854069775 | R10: =IF(OR(A10<$B$4,A10="",Method_BI=FALSE),NA(),_xlfn.NORM.S.DIST(-(LN(T10)-LN(S10))/0.277,TRUE)) -> 0.01291294652 | S10: =IF(OR(A10<$B$4,A10="",Inputs!J13="No",Method_BI=FALSE),NA(),0.65*($B$2*$B$3)*G10/H10*K10/L10/N10) -> 0.4139638381 | T10: =IF(OR(A10="",Method_BI=FALSE),NA(),O10*EXP(F10/14.1+(F10/126)^2-(F10/23.6)^3+(F10/25.4)^4-2.67+0.277*_xlfn.NORM.S.INV(1-Percentile_Liq/100))) -> 0.76751784 | U10: =MIN(2.2,1.09+((F10/31.5)^2)) -> 2.2
A11: =IF('PB Liquefaction Initiation'!A11="","",'PB Liquefaction Initiation'!A11) -> 1.6764 | B11: ='PB Liquefaction Initiation'!B11 -> 10.75125333 | C11: =IF('PB Liquefaction Initiation'!C11="","",'PB Liquefaction Initiation'!C11) -> 19.52753 | D11: =IF('PB Liquefaction Initiation'!D11="","",'PB Liquefaction Initiation'!D11) -> 10 | E11: =IF('PB Liquefaction Initiation'!E11="","",'PB Liquefaction Initiation'!E11) -> 1.524 | F11: =IF(OR('PB Liquefaction Initiation'!F11="",Method_BI=FALSE),NA(),'PB Liquefaction Initiation'!F11) -> 11.90043878 | G11: =IF('PB Liquefaction Initiation'!G11="","",'PB Liquefaction Initiation'!G11) -> 32.73595129 | H11: =IF('PB Liquefaction Initiation'!H11="","",'PB Liquefaction Initiation'!H11) -> 16.29549649 | I11: =IF(OR(A11<$B$4,A11=""),"",-1.012-1.126*SIN(A11/11.73+5.133)) -> -0.06010600018 | J11: =IF(OR(A11<$B$4,A11=""),"",0.106+0.118*SIN(A11/11.28+5.142)) -> 0.007182975356 | K11: =IF(OR(A11<$B$4,A11=""),"",EXP(I11+J11*$B$5)) -> 0.9888014086 | L11: 1.058969574 | M11: =IF(OR(A11<$B$4,A11=""),"",MIN(0.3,1/(18.9-2.55*SQRT(F11)))) -> 0.09897793613 | N11: =IF(OR(A11<$B$4,A11=""),"",1-M11*LN(H11/101.325)) -> 1.180876674 | O11: =IF(Inputs!H14="",1,Inputs!H14) -> 1 | P11: 34.45656013 | Q11: 0.1510942438 | R11: 1 | S11: =IF(OR(A11<$B$4,A11="",Inputs!J14="No",Method_BI=FALSE),NA(),0.65*($B$2*$B$3)*G11/H11*K11/L11/N11) -> 0.7537279767 | T11: 0.1138839587 | U11: =MIN(2.2,1.09+((F11/31.5)^2)) -> 1.232726574
A12: =IF('PB Liquefaction Initiation'!A12="","",'PB Liquefaction Initiation'!A12) -> 3.2004 | B12: ='PB Liquefaction Initiation'!B12 -> 12.54421822 | C12: =IF('PB Liquefaction Initiation'!C12="","",'PB Liquefaction Initiation'!C12) -> 19.52753 | D12: =IF('PB Liquefaction Initiation'!D12="","",'PB Liquefaction Initiation'!D12) -> 10 | E12: =IF('PB Liquefaction Initiation'!E12="","",'PB Liquefaction Initiation'!E12) -> 1.524 | F12: =IF(OR('PB Liquefaction Initiation'!F12="",Method_BI=FALSE),NA(),'PB Liquefaction Initiation'!F12) -> 13.69340367 | G12: =IF('PB Liquefaction Initiation'!G12="","",'PB Liquefaction Initiation'!G12) -> 62.49590701 | H12: =IF('PB Liquefaction Initiation'!H12="","",'PB Liquefaction Initiation'!H12) -> 31.10958421 | I12: =IF(OR(A12<$B$4,A12=""),"",-1.012-1.126*SIN(A12/11.73+5.133)) -> -0.1460548303 | J12: =IF(OR(A12<$B$4,A12=""),"",0.106+0.118*SIN(A12/11.28+5.142)) -> 0.01677026746 | K12: =IF(OR(A12<$B$4,A12=""),"",EXP(I12+J12*$B$5)) -> 0.9684901064 | L12: 1.07068797 | M12: =IF(OR(A12<$B$4,A12=""),"",MIN(0.3,1/(18.9-2.55*SQRT(F12)))) -> 0.1056654967 | N12: =IF(OR(A12<$B$4,A12=""),"",1-M12*LN(H12/101.325)) -> 1.124771639 | O12: =IF(Inputs!H15="",1,Inputs!H15) -> 1 | P12: 34.54188919 | Q12: 0.1640547345 | R12: 1 | S12: =IF(OR(A12<$B$4,A12="",Inputs!J15="No",Method_BI=FALSE),NA(),0.65*($B$2*$B$3)*G12/H12*K12/L12/N12) -> 0.7665870774 | T12: 0.1257622395 | U12: 1.278973851
A13: =IF('PB Liquefaction Initiation'!A13="","",'PB Liquefaction Initiation'!A13) -> 4.572 | B13: ='PB Liquefaction Initiation'!B13 -> 1.986780652 | C13: =IF('PB Liquefaction Initiation'!C13="","",'PB Liquefaction Initiation'!C13) -> 19.52753 | D13: =IF('PB Liquefaction Initiation'!D13="","",'PB Liquefaction Initiation'!D13) -> 60 | E13: =IF('PB Liquefaction Initiation'!E13="","",'PB Liquefaction Initiation'!E13) -> 1.2192 | F13: =IF(OR('PB Liquefaction Initiation'!F13="",Method_BI=FALSE),NA(),'PB Liquefaction Initiation'!F13) -> 7.589169573 | G13: =IF('PB Liquefaction Initiation'!G13="","",'PB Liquefaction Initiation'!G13) -> 89.27986716 | H13: =IF('PB Liquefaction Initiation'!H13="","",'PB Liquefaction Initiation'!H13) -> 44.44226316 | I13: -0.2359354143 | J13: 0.02679492527 | K13: 0.9476880212 | L13: 1.037512566 | M13: 0.0842094917 | N13: 1.069400603 | O13: =IF(Inputs!H16="",1,Inputs!H16) -> 1 | S13: =IF(OR(A13<$B$4,A13="",Inputs!J16="No",Method_BI=FALSE),NA(),0.65*($B$2*$B$3)*G13/H13*K13/L13/N13) ->  | T13: 0.0881352653 | U13: 1.148045346
A14: =IF('PB Liquefaction Initiation'!A14="","",'PB Liquefaction Initiation'!A14) -> 6.2484 | B14: ='PB Liquefaction Initiation'!B14 -> 20.55928846 | C14: =IF('PB Liquefaction Initiation'!C14="","",'PB Liquefaction Initiation'!C14) -> 19.52753 | D14: =IF('PB Liquefaction Initiation'!D14="","",'PB Liquefaction Initiation'!D14) -> 10 | E14: =IF('PB Liquefaction Initiation'!E14="","",'PB Liquefaction Initiation'!E14) -> 2.1336 | F14: =IF(OR('PB Liquefaction Initiation'!F14="",Method_BI=FALSE),NA(),'PB Liquefaction Initiation'!F14) -> 21.70847391 | G14: =IF('PB Liquefaction Initiation'!G14="","",'PB Liquefaction Initiation'!G14) -> 122.0158185 | H14: =IF('PB Liquefaction Initiation'!H14="","",'PB Liquefaction Initiation'!H14) -> 60.73775965 | I14: -0.3600476246 | J14: 0.04061937222 | K14: 0.9195821531 | L14: 1.143147337 | M14: 0.1424714544 | N14: 1.072912274 | O14: =IF(Inputs!H17="",1,Inputs!H17) -> 1 | P14: 34.18375015 | Q14: 0.2766460116 | R14: 0.9999982499 | S14: =IF(OR(A14<$B$4,A14="",Inputs!J17="No",Method_BI=FALSE),NA(),0.65*($B$2*$B$3)*G14/H14*K14/L14/N14) -> 0.7146899863 | T14: 0.1977161342 | U14: 1.564938614
A15: =IF('PB Liquefaction Initiation'!A15="","",'PB Liquefaction Initiation'!A15) -> 7.7724 | B15: ='PB Liquefaction Initiation'!B15 -> 27.99121421 | C15: =IF('PB Liquefaction Initiation'!C15="","",'PB Liquefaction Initiation'!C15) -> 19.52753 | D15: =IF('PB Liquefaction Initiation'!D15="","",'PB Liquefaction Initiation'!D15) -> 10 | E15: =IF('PB Liquefaction Initiation'!E15="","",'PB Liquefaction Initiation'!E15) -> 0.9144 | F15: =IF(OR('PB Liquefaction Initiation'!F15="",Method_BI=FALSE),NA(),'PB Liquefaction Initiation'!F15) -> 29.14039966 | G15: =IF('PB Liquefaction Initiation'!G15="","",'PB Liquefaction Initiation'!G15) -> 151.7757742 | H15: =IF('PB Liquefaction Initiation'!H15="","",'PB Liquefaction Initiation'!H15) -> 75.55184737 | I15: -0.4844844566 | J15: 0.05444651146 | K15: 0.892036544 | L15: 1.239650956 | M15: 0.1947560517 | N15: 1.057163634 | O15: =IF(Inputs!H18="",1,Inputs!H18) -> 1 | P15: 33.66897202 | Q15: 0.5810735736 | R15: 0.9749932208 | S15: =IF(OR(A15<$B$4,A15="",Inputs!J18="No",Method_BI=FALSE),NA(),0.65*($B$2*$B$3)*G15/H15*K15/L15/N15) -> 0.6488354902 | T15: 0.377021157 | U15: 1.945795306
A16: =IF('PB Liquefaction Initiation'!A16="","",'PB Liquefaction Initiation'!A16) -> 9.2964 | B16: ='PB Liquefaction Initiation'!B16 -> 20.18844513 | C16: =IF('PB Liquefaction Initiation'!C16="","",'PB Liquefaction Initiation'!C16) -> 19.52753 | D16: =IF('PB Liquefaction Initiation'!D16="","",'PB Liquefaction Initiation'!D16) -> 10 | E16: =IF('PB Liquefaction Initiation'!E16="","",'PB Liquefaction Initiation'!E16) -> 2.1336 | F16: =IF(OR('PB Liquefaction Initiation'!F16="",Method_BI=FALSE),NA(),'PB Liquefaction Initiation'!F16) -> 21.33763058 | G16: =IF('PB Liquefaction Initiation'!G16="","",'PB Liquefaction Initiation'!G16) -> 181.5357299 | H16: =IF('PB Liquefaction Initiation'!H16="","",'PB Liquefaction Initiation'!H16) -> 90.36593509 | I16: -0.6178132623 | J16: 0.0692132638 | K16: 0.8631532129 | L16: 1.139070857 | M16: 0.1404323115 | N16: 1.016074697 | O16: =IF(Inputs!H19="",1,Inputs!H19) -> 1 | P16: 34.15599251 | Q16: 0.2716275328 | R16: 0.9999987315 | S16: =IF(OR(A16<$B$4,A16="",Inputs!J19="No",Method_BI=FALSE),NA(),0.65*($B$2*$B$3)*G16/H16*K16/L16/N16) -> 0.7108944109 | T16: 0.1930984949 | U16: 1.548850571
A17: =IF('PB Liquefaction Initiation'!A17="","",'PB Liquefaction Initiation'!A17) -> 10.8204 | B17: ='PB Liquefaction Initiation'!B17 -> 8.338453565 | C17: =IF('PB Liquefaction Initiation'!C17="","",'PB Liquefaction Initiation'!C17) -> 19.52753 | D17: =IF('PB Liquefaction Initiation'!D17="","",'PB Liquefaction Initiation'!D17) -> 10 | E17: =IF('PB Liquefaction Initiation'!E17="","",'PB Liquefaction Initiation'!E17) -> 0.9144 | F17: =IF(OR('PB Liquefaction Initiation'!F17="",Method_BI=FALSE),NA(),'PB Liquefaction Initiation'!F17) -> 9.487639011 | G17: =IF('PB Liquefaction Initiation'!G17="","",'PB Liquefaction Initiation'!G17) -> 211.2956856 | H17: =IF('PB Liquefaction Initiation'!H17="","",'PB Liquefaction Initiation'!H17) -> 105.1800228 | I17: -0.7577866081 | J17: 0.08465049065 | K17: 0.833465248 | L17: 1.045791439 | M17: 0.09053471247 | N17: 0.9966194146 | O17: =IF(Inputs!H20="",1,Inputs!H20) -> 1 | P17: 34.51347733 | Q17: 0.1299039217 | R17: 1 | S17: =IF(OR(A17<$B$4,A17="",Inputs!J20="No",Method_BI=FALSE),NA(),0.65*($B$2*$B$3)*G17/H17*K17/L17/N17) -> 0.7622661883 | T17: 0.09902136725 | U17: 1.180718361
A18: =IF('PB Liquefaction Initiation'!A18="","",'PB Liquefaction Initiation'!A18) -> 12.4968 | B18: ='PB Liquefaction Initiation'!B18 -> 1.728217142 | C18: =IF('PB Liquefaction Initiation'!C18="","",'PB Liquefaction Initiation'!C18) -> 19.52753 | D18: =IF('PB Liquefaction Initiation'!D18="","",'PB Liquefaction Initiation'!D18) -> 70 | E18: =IF('PB Liquefaction Initiation'!E18="","",'PB Liquefaction Initiation'!E18) -> 2.4384 | F18: =IF(OR('PB Liquefaction Initiation'!F18="",Method_BI=FALSE),NA(),'PB Liquefaction Initiation'!F18) -> 7.303047698 | G18: =IF('PB Liquefaction Initiation'!G18="","",'PB Liquefaction Initiation'!G18) -> 244.0316369 | H18: =IF('PB Liquefaction Initiation'!H18="","",'PB Liquefaction Initiation'!H18) -> 121.4755193 | I18: -0.916613371 | J18: 0.1020697969 | K18: 0.800483986 | L18: 1.03642446 | M18: 0.08327198033 | N18: 0.984896163 | O18: =IF(Inputs!H21="",1,Inputs!H21) -> 1 | S18: =IF(OR(A18<$B$4,A18="",Inputs!J21="No",Method_BI=FALSE),NA(),0.65*($B$2*$B$3)*G18/H18*K18/L18/N18) ->  | T18: 0.08655651776 | U18: 1.143751077
A19: =IF('PB Liquefaction Initiation'!A19="","",'PB Liquefaction Initiation'!A19) -> 13.716 | B19: ='PB Liquefaction Initiation'!B19 -> 1.630834208 | C19: =IF('PB Liquefaction Initiation'!C19="","",'PB Liquefaction Initiation'!C19) -> 19.52753 | D19: =IF('PB Liquefaction Initiation'!D19="","",'PB Liquefaction Initiation'!D19) -> 5 | E19: =IF('PB Liquefaction Initiation'!E19="","",'PB Liquefaction Initiation'!E19) -> 0.9144 | F19: =IF(OR('PB Liquefaction Initiation'!F19="",Method_BI=FALSE),NA(),'PB Liquefaction Initiation'!F19) -> 1.632756664 | G19: =IF('PB Liquefaction Initiation'!G19="","",'PB Liquefaction Initiation'!G19) -> 267.8396015 | H19: =IF('PB Liquefaction Initiation'!H19="","",'PB Liquefaction Initiation'!H19) -> 133.3267895 | I19: -1.033532487 | J19: 0.1148148933 | K19: 0.7766300156 | L19: 1.023485484 | M19: 0.06393197171 | N19: 0.9824525914 | O19: =IF(Inputs!H22="",1,Inputs!H22) -> 1 | P19: 34.33693123 | Q19: 0.08017030125 | R19: 1 | S19: =IF(OR(A19<$B$4,A19="",Inputs!J22="No",Method_BI=FALSE),NA(),0.65*($B$2*$B$3)*G19/H19*K19/L19/N19) -> 0.7362316221 | T19: 0.05902391094 | U19: 1.092686716
A20: =IF('PB Liquefaction Initiation'!A20="","",'PB Liquefaction Initiation'!A20) -> 15.6972 | B20: ='PB Liquefaction Initiation'!B20 -> 9.657999112 | C20: =IF('PB Liquefaction Initiation'!C20="","",'PB Liquefaction Initiation'!C20) -> 19.52753 | D20: =IF('PB Liquefaction Initiation'!D20="","",'PB Liquefaction Initiation'!D20) -> 5 | E20: =IF('PB Liquefaction Initiation'!E20="","",'PB Liquefaction Initiation'!E20) -> 2.1336 | F20: =IF(OR('PB Liquefaction Initiation'!F20="",Method_BI=FALSE),NA(),'PB Liquefaction Initiation'!F20) -> 9.659921568 | G20: =IF('PB Liquefaction Initiation'!G20="","",'PB Liquefaction Initiation'!G20) -> 306.5275439 | H20: =IF('PB Liquefaction Initiation'!H20="","",'PB Liquefaction Initiation'!H20) -> 152.5851035 | I20: -1.222470221 | J20: 0.1352405907 | K20: 0.7387215631 | L20: 1.046633834 | M20: 0.0911203714 | N20: 0.9626962928 | O20: =IF(Inputs!H23="",1,Inputs!H23) -> 1 | P20: 34.06664467 | Q20: 0.143153208 | R20: 1 | S20: =IF(OR(A20<$B$4,A20="",Inputs!J23="No",Method_BI=FALSE),NA(),0.65*($B$2*$B$3)*G20/H20*K20/L20/N20) -> 0.6988601747 | T20: 0.100044076 | U20: 1.184042917
A21: =IF('PB Liquefaction Initiation'!A21="","",'PB Liquefaction Initiation'!A21) -> 17.3736 | B21: ='PB Liquefaction Initiation'!B21 -> 2.373936556 | C21: =IF('PB Liquefaction Initiation'!C21="","",'PB Liquefaction Initiation'!C21) -> 19.52753 | D21: =IF('PB Liquefaction Initiation'!D21="","",'PB Liquefaction Initiation'!D21) -> 5 | E21: =IF('PB Liquefaction Initiation'!E21="","",'PB Liquefaction Initiation'!E21) -> 1.2192 | F21: =IF(OR('PB Liquefaction Initiation'!F21="",Method_BI=FALSE),NA(),'PB Liquefaction Initiation'!F21) -> 2.375859012 | G21: =IF('PB Liquefaction Initiation'!G21="","",'PB Liquefaction Initiation'!G21) -> 339.2634952 | H21: =IF('PB Liquefaction Initiation'!H21="","",'PB Liquefaction Initiation'!H21) -> 168.8806 | I21: -1.377873631 | J21: 0.1518456418 | K21: 0.7079914466 | L21: 1.024246167 | M21: 0.06680260796 | N21: 0.9658733009 | O21: =IF(Inputs!H24="",1,Inputs!H24) -> 1 | P21: 33.93888474 | Q21: 0.09116481105 | R21: 1 | S21: =IF(OR(A21<$B$4,A21="",Inputs!J24="No",Method_BI=FALSE),NA(),0.65*($B$2*$B$3)*G21/H21*K21/L21/N21) -> 0.6821770233 | T21: 0.06219053943 | U21: 1.095688794
A22: =IF('PB Liquefaction Initiation'!A22="","",'PB Liquefaction Initiation'!A22) ->  | B22: ='PB Liquefaction Initiation'!B22 ->  | C22: =IF('PB Liquefaction Initiation'!C22="","",'PB Liquefaction Initiation'!C22) ->  | D22: =IF('PB Liquefaction Initiation'!D22="","",'PB Liquefaction Initiation'!D22) ->  | E22: =IF('PB Liquefaction Initiation'!E22="","",'PB Liquefaction Initiation'!E22) ->  | F22: =IF(OR('PB Liquefaction Initiation'!F22="",Method_BI=FALSE),NA(),'PB Liquefaction Initiation'!F22) ->  | G22: =IF('PB Liquefaction Initiation'!G22="","",'PB Liquefaction Initiation'!G22) ->  | H22: =IF('PB Liquefaction Initiation'!H22="","",'PB Liquefaction Initiation'!H22) ->  | O22: =IF(Inputs!H25="",1,Inputs!H25) -> 1 | S22: =IF(OR(A22<$B$4,A22="",Inputs!J25="No",Method_BI=FALSE),NA(),0.65*($B$2*$B$3)*G22/H22*K22/L22/N22) -> 
A23: =IF('PB Liquefaction Initiation'!A23="","",'PB Liquefaction Initiation'!A23) ->  | B23: ='PB Liquefaction Initiation'!B23 ->  | C23: =IF('PB Liquefaction Initiation'!C23="","",'PB Liquefaction Initiation'!C23) ->  | D23: =IF('PB Liquefaction Initiation'!D23="","",'PB Liquefaction Initiation'!D23) ->  | E23: =IF('PB Liquefaction Initiation'!E23="","",'PB Liquefaction Initiation'!E23) ->  | F23: =IF(OR('PB Liquefaction Initiation'!F23="",Method_BI=FALSE),NA(),'PB Liquefaction Initiation'!F23) ->  | G23: =IF('PB Liquefaction Initiation'!G23="","",'PB Liquefaction Initiation'!G23) ->  | H23: =IF('PB Liquefaction Initiation'!H23="","",'PB Liquefaction Initiation'!H23) ->  | O23: =IF(Inputs!H26="",1,Inputs!H26) -> 1 | S23: =IF(OR(A23<$B$4,A23="",Inputs!J26="No",Method_BI=FALSE),NA(),0.65*($B$2*$B$3)*G23/H23*K23/L23/N23) -> 
A24: =IF('PB Liquefaction Initiation'!A24="","",'PB Liquefaction Initiation'!A24) ->  | B24: ='PB Liquefaction Initiation'!B24 ->  | C24: =IF('PB Liquefaction Initiation'!C24="","",'PB Liquefaction Initiation'!C24) ->  | D24: =IF('PB Liquefaction Initiation'!D24="","",'PB Liquefaction Initiation'!D24) ->  | E24: =IF('PB Liquefaction Initiation'!E24="","",'PB Liquefaction Initiation'!E24) ->  | F24: =IF(OR('PB Liquefaction Initiation'!F24="",Method_BI=FALSE),NA(),'PB Liquefaction Initiation'!F24) ->  | G24: =IF('PB Liquefaction Initiation'!G24="","",'PB Liquefaction Initiation'!G24) ->  | H24: =IF('PB Liquefaction Initiation'!H24="","",'PB Liquefaction Initiation'!H24) ->  | O24: =IF(Inputs!H27="",1,Inputs!H27) -> 1 | S24: =IF(OR(A24<$B$4,A24="",Inputs!J27="No",Method_BI=FALSE),NA(),0.65*($B$2*$B$3)*G24/H24*K24/L24/N24) -> 
A25: =IF('PB Liquefaction Initiation'!A25="","",'PB Liquefaction Initiation'!A25) ->  | B25: ='PB Liquefaction Initiation'!B25 ->  | C25: =IF('PB Liquefaction Initiation'!C25="","",'PB Liquefaction Initiation'!C25) ->  | D25: =IF('PB Liquefaction Initiation'!D25="","",'PB Liquefaction Initiation'!D25) ->  | E25: =IF('PB Liquefaction Initiation'!E25="","",'PB Liquefaction Initiation'!E25) ->  | F25: =IF(OR('PB Liquefaction Initiation'!F25="",Method_BI=FALSE),NA(),'PB Liquefaction Initiation'!F25) ->  | G25: =IF('PB Liquefaction Initiation'!G25="","",'PB Liquefaction Initiation'!G25) ->  | H25: =IF('PB Liquefaction Initiation'!H25="","",'PB Liquefaction Initiation'!H25) ->  | O25: =IF(Inputs!H28="",1,Inputs!H28) -> 1 | S25: =IF(OR(A25<$B$4,A25="",Inputs!J28="No",Method_BI=FALSE),NA(),0.65*($B$2*$B$3)*G25/H25*K25/L25/N25) -> 
A26: =IF('PB Liquefaction Initiation'!A26="","",'PB Liquefaction Initiation'!A26) ->  | B26: ='PB Liquefaction Initiation'!B26 ->  | C26: =IF('PB Liquefaction Initiation'!C26="","",'PB Liquefaction Initiation'!C26) ->  | D26: =IF('PB Liquefaction Initiation'!D26="","",'PB Liquefaction Initiation'!D26) ->  | E26: =IF('PB Liquefaction Initiation'!E26="","",'PB Liquefaction Initiation'!E26) ->  | F26: =IF(OR('PB Liquefaction Initiation'!F26="",Method_BI=FALSE),NA(),'PB Liquefaction Initiation'!F26) ->  | G26: =IF('PB Liquefaction Initiation'!G26="","",'PB Liquefaction Initiation'!G26) ->  | H26: =IF('PB Liquefaction Initiation'!H26="","",'PB Liquefaction Initiation'!H26) ->  | O26: =IF(Inputs!H29="",1,Inputs!H29) -> 1 | S26: =IF(OR(A26<$B$4,A26="",Inputs!J29="No",Method_BI=FALSE),NA(),0.65*($B$2*$B$3)*G26/H26*K26/L26/N26) -> 
A27: =IF('PB Liquefaction Initiation'!A27="","",'PB Liquefaction Initiation'!A27) ->  | B27: ='PB Liquefaction Initiation'!B27 ->  | C27: =IF('PB Liquefaction Initiation'!C27="","",'PB Liquefaction Initiation'!C27) ->  | D27: =IF('PB Liquefaction Initiation'!D27="","",'PB Liquefaction Initiation'!D27) ->  | E27: =IF('PB Liquefaction Initiation'!E27="","",'PB Liquefaction Initiation'!E27) ->  | F27: =IF(OR('PB Liquefaction Initiation'!F27="",Method_BI=FALSE),NA(),'PB Liquefaction Initiation'!F27) ->  | G27: =IF('PB Liquefaction Initiation'!G27="","",'PB Liquefaction Initiation'!G27) ->  | H27: =IF('PB Liquefaction Initiation'!H27="","",'PB Liquefaction Initiation'!H27) ->  | O27: =IF(Inputs!H30="",1,Inputs!H30) -> 1 | S27: =IF(OR(A27<$B$4,A27="",Inputs!J30="No",Method_BI=FALSE),NA(),0.65*($B$2*$B$3)*G27/H27*K27/L27/N27) -> 
A28: =IF('PB Liquefaction Initiation'!A28="","",'PB Liquefaction Initiation'!A28) ->  | B28: ='PB Liquefaction Initiation'!B28 ->  | C28: =IF('PB Liquefaction Initiation'!C28="","",'PB Liquefaction Initiation'!C28) ->  | D28: =IF('PB Liquefaction Initiation'!D28="","",'PB Liquefaction Initiation'!D28) ->  | E28: =IF('PB Liquefaction Initiation'!E28="","",'PB Liquefaction Initiation'!E28) ->  | F28: =IF(OR('PB Liquefaction Initiation'!F28="",Method_BI=FALSE),NA(),'PB Liquefaction Initiation'!F28) ->  | G28: =IF('PB Liquefaction Initiation'!G28="","",'PB Liquefaction Initiation'!G28) ->  | H28: =IF('PB Liquefaction Initiation'!H28="","",'PB Liquefaction Initiation'!H28) ->  | O28: =IF(Inputs!H31="",1,Inputs!H31) -> 1 | S28: =IF(OR(A28<$B$4,A28="",Inputs!J31="No",Method_BI=FALSE),NA(),0.65*($B$2*$B$3)*G28/H28*K28/L28/N28) -> 
A29: =IF('PB Liquefaction Initiation'!A29="","",'PB Liquefaction Initiation'!A29) ->  | B29: ='PB Liquefaction Initiation'!B29 ->  | C29: =IF('PB Liquefaction Initiation'!C29="","",'PB Liquefaction Initiation'!C29) ->  | D29: =IF('PB Liquefaction Initiation'!D29="","",'PB Liquefaction Initiation'!D29) ->  | E29: =IF('PB Liquefaction Initiation'!E29="","",'PB Liquefaction Initiation'!E29) ->  | F29: =IF(OR('PB Liquefaction Initiation'!F29="",Method_BI=FALSE),NA(),'PB Liquefaction Initiation'!F29) ->  | G29: =IF('PB Liquefaction Initiation'!G29="","",'PB Liquefaction Initiation'!G29) ->  | H29: =IF('PB Liquefaction Initiation'!H29="","",'PB Liquefaction Initiation'!H29) ->  | O29: =IF(Inputs!H32="",1,Inputs!H32) -> 1 | S29: =IF(OR(A29<$B$4,A29="",Inputs!J32="No",Method_BI=FALSE),NA(),0.65*($B$2*$B$3)*G29/H29*K29/L29/N29) -> 
P30: 1
A34: Deterministic Triggering using Cetin et al. (2004)
A36: PGA: | B36: =IF(PGA_det="",NA(),PGA_det) -> 0.73 | C36: g | D36: amax = | E36: =B36*B37 -> 0.73
A37: Fpga: | B37: =IF(Fpga_det="",NA(),Fpga_det) -> 1
A38: Depth to Water: | B38: ='PB Liquefaction Initiation'!B38 -> 0 | C38: m
A39: Vs,12: | B39: ='PB Liquefaction Initiation'!B39 -> 189.8904 | C39: m/s
A41: Mw: | B41: =Mw_det -> 6.8
A42: Depth: | B42: (N1)60 | C42: g (kN/m3) | D42: Fines (%) | E42: Thickness (m) | F42: (N1)60,cs | G42: sv (kPa) | H42: sv' (kPa) | I42: rd | J42: KDR(aging) | K42: Nreqsite | L42: FSL | M42: PL | N42: CSR(site) | O42: CRR
A43: =IF('PB Liquefaction Initiation'!A10="","",'PB Liquefaction Initiation'!A10) -> 0.4572 | B43: =IF('PB Liquefaction Initiation'!B43="","",'PB Liquefaction Initiation'!B43) -> 30.8 | C43: =IF('PB Liquefaction Initiation'!C10="","",'PB Liquefaction Initiation'!C10) -> 19.52753 | D43: =IF('PB Liquefaction Initiation'!D10="","",'PB Liquefaction Initiation'!D10) -> 10 | E43: =IF('PB Liquefaction Initiation'!E10="","",'PB Liquefaction Initiation'!E10) -> 0.9144 | F43: =IF(OR(A43="",Method_Cetin=FALSE),NA(),IF(D43<5,B43,IF(D43>35,B43*(1+0.004*35)+0.06*35,B43*(1+0.004*D43)+0.06*D43))) -> 32.632 | G43: =IF(A43="","",C43*A43) -> 8.927986716 | H43: =IF(A43="","",IF(A43<$B$4,G43,G43-(A43-$B$4)*9.81)) -> 4.442854716 | I43: =IF(OR(A43<$B$38,A43=""),"",IF(A43<20,(1+((-23.013)-2.949*$E$36+0.999*$B$41+0.0525*$B$39)/(16.258+0.201*EXP(0.341*((-A43*0.3048)+0.0785*$B$39+7.586))))/(1+((-23.013)-2.949*$E$36+0.999*$B$41+0.0525*$B$39)/(16.258+0.201*EXP(0.341*(0.0785*$B$39+7.586)))),(1+((-23.013)-2.949*$E$36+0.999*$B$41+0.0525*$B$39)/(16.258+0.201*EXP(0.341*((-20*0.3048)+0.0785*$B$39+7.586))))/(1+((-23.013)-2.949*$E$36+0.999*$B$41+0.0525*$B$39)/(16.258+0.201*EXP(0.341*(0.0785*$B$39+7.586))))-0.0046*(A43-20))) -> 0.9991030171 | J43: =IF(Inputs!H13="",1,Inputs!H13) -> 1 | K43: =IF(OR(A43<$B$38,A43="",Inputs!J13="No",Method_Cetin=FALSE),NA(),13.79*LN(0.65*$B$37*$B$36*G43/H43*I43)+29.06*LN($B$41)+3.82*LN(H43/101.325)-15.25-4.21*_xlfn.NORM.S.INV(1-Percentile_Liq/100)) -> 32.02838398 | L43: =IF(OR(A43<$B$38,A43="",Method_Cetin=FALSE),NA(),O43/N43) -> 1.681060554 | M43: =IF(OR(A43<$B$38,A43="",Method_Cetin=FALSE),NA(),_xlfn.NORM.S.DIST(-(B43*(1+0.004*D43)-13.79*LN(N43)-29.06*LN($B$41)-3.82*LN(H43/101.325)+0.06*D43+16.85)/4.21,TRUE)) -> 0.06452205959 | N43: =IF(OR(A43<$B$38,A43="",Inputs!J13="No",Method_Cetin=FALSE),NA(),$E$36*0.65*G43/H43*I43) -> 0.9526599567 | O43: =IF(OR(A43="",Method_Cetin=FALSE),NA(),J43*EXP((F43-29.06*LN($B$41)-3.82*LN(H43/101.325)+15.25+4.21*_xlfn.NORM.S.DIST((1-Percentile_Liq/100),TRUE))/13.79)) -> 1.601479075
A44: =IF('PB Liquefaction Initiation'!A11="","",'PB Liquefaction Initiation'!A11) -> 1.6764 | B44: =IF('PB Liquefaction Initiation'!B44="","",'PB Liquefaction Initiation'!B44) -> 9.636049609 | C44: =IF('PB Liquefaction Initiation'!C11="","",'PB Liquefaction Initiation'!C11) -> 19.52753 | D44: =IF('PB Liquefaction Initiation'!D11="","",'PB Liquefaction Initiation'!D11) -> 10 | E44: =IF('PB Liquefaction Initiation'!E11="","",'PB Liquefaction Initiation'!E11) -> 1.524 | F44: 10.62149159 | G44: =IF(A44="","",C44*A44) -> 32.73595129 | H44: =IF(A44="","",IF(A44<$B$4,G44,G44-(A44-$B$4)*9.81)) -> 16.29046729 | I44: =IF(OR(A44<$B$38,A44=""),"",IF(A44<20,(1+((-23.013)-2.949*$E$36+0.999*$B$41+0.0525*$B$39)/(16.258+0.201*EXP(0.341*((-A44*0.3048)+0.0785*$B$39+7.586))))/(1+((-23.013)-2.949*$E$36+0.999*$B$41+0.0525*$B$39)/(16.258+0.201*EXP(0.341*(0.0785*$B$39+7.586)))),(1+((-23.013)-2.949*$E$36+0.999*$B$41+0.0525*$B$39)/(16.258+0.201*EXP(0.341*((-20*0.3048)+0.0785*$B$39+7.586))))/(1+((-23.013)-2.949*$E$36+0.999*$B$41+0.0525*$B$39)/(16.258+0.201*EXP(0.341*(0.0785*$B$39+7.586))))-0.0046*(A44-20))) -> 0.9965097822 | J44: =IF(Inputs!H14="",1,Inputs!H14) -> 1 | K44: =IF(OR(A44<$B$38,A44="",Inputs!J14="No",Method_Cetin=FALSE),NA(),13.79*LN(0.65*$B$37*$B$36*G44/H44*I44)+29.06*LN($B$41)+3.82*LN(H44/101.325)-15.25-4.21*_xlfn.NORM.S.INV(1-Percentile_Liq/100)) -> 36.95580563 | L44: 0.2383501241 | M44: 0.9999994714 | N44: =IF(OR(A44<$B$38,A44="",Inputs!J14="No",Method_Cetin=FALSE),NA(),$E$36*0.65*G44/H44*I44) -> 0.9501872677 | O44: 0.2264772532
A45: =IF('PB Liquefaction Initiation'!A12="","",'PB Liquefaction Initiation'!A12) -> 3.2004 | B45: =IF('PB Liquefaction Initiation'!B45="","",'PB Liquefaction Initiation'!B45) -> 12.23590076 | C45: =IF('PB Liquefaction Initiation'!C12="","",'PB Liquefaction Initiation'!C12) -> 19.52753 | D45: =IF('PB Liquefaction Initiation'!D12="","",'PB Liquefaction Initiation'!D12) -> 10 | E45: =IF('PB Liquefaction Initiation'!E12="","",'PB Liquefaction Initiation'!E12) -> 1.524 | F45: 13.32533679 | G45: 62.49590701 | H45: 31.09998301 | I45: 0.9928165509 | J45: =IF(Inputs!H15="",1,Inputs!H15) -> 1 | K45: =IF(OR(A45<$B$38,A45="",Inputs!J15="No",Method_Cetin=FALSE),NA(),13.79*LN(0.65*$B$37*$B$36*G45/H45*I45)+29.06*LN($B$41)+3.82*LN(H45/101.325)-15.25-4.21*_xlfn.NORM.S.INV(1-Percentile_Liq/100)) -> 39.37471842 | L45: 0.243326205 | M45: 0.9999992566 | N45: =IF(OR(A45<$B$38,A45="",Inputs!J15="No",Method_Cetin=FALSE),NA(),$E$36*0.65*G45/H45*I45) -> 0.9466657154 | O45: 0.2303485759
A46: =IF('PB Liquefaction Initiation'!A13="","",'PB Liquefaction Initiation'!A13) -> 4.572 | B46: =IF('PB Liquefaction Initiation'!B46="","",'PB Liquefaction Initiation'!B46) -> 1.694758977 | C46: =IF('PB Liquefaction Initiation'!C13="","",'PB Liquefaction Initiation'!C13) -> 19.52753 | D46: =IF('PB Liquefaction Initiation'!D13="","",'PB Liquefaction Initiation'!D13) -> 60 | E46: =IF('PB Liquefaction Initiation'!E13="","",'PB Liquefaction Initiation'!E13) -> 1.2192 | F46: 4.032025234 | G46: 89.27986716 | H46: 44.42854716 | I46: 0.9890110942 | J46: =IF(Inputs!H16="",1,Inputs!H16) -> 1 | K46: =IF(OR(A46<$B$38,A46="",Inputs!J16="No",Method_Cetin=FALSE),NA(),13.79*LN(0.65*$B$37*$B$36*G46/H46*I46)+29.06*LN($B$41)+3.82*LN(H46/101.325)-15.25-4.21*_xlfn.NORM.S.INV(1-Percentile_Liq/100)) ->  | N46: =IF(OR(A46<$B$38,A46="",Inputs!J16="No",Method_Cetin=FALSE),NA(),$E$36*0.65*G46/H46*I46) ->  | O46: 0.1063646871
A47: =IF('PB Liquefaction Initiation'!A14="","",'PB Liquefaction Initiation'!A14) -> 6.2484 | B47: =IF('PB Liquefaction Initiation'!B47="","",'PB Liquefaction Initiation'!B47) -> 20.81463456 | C47: =IF('PB Liquefaction Initiation'!C14="","",'PB Liquefaction Initiation'!C14) -> 19.52753 | D47: =IF('PB Liquefaction Initiation'!D14="","",'PB Liquefaction Initiation'!D14) -> 10 | E47: =IF('PB Liquefaction Initiation'!E14="","",'PB Liquefaction Initiation'!E14) -> 2.1336 | F47: 22.24721994 | G47: 122.0158185 | H47: 60.71901445 | I47: 0.983659171 | J47: =IF(Inputs!H17="",1,Inputs!H17) -> 1 | K47: =IF(OR(A47<$B$38,A47="",Inputs!J17="No",Method_Cetin=FALSE),NA(),13.79*LN(0.65*$B$37*$B$36*G47/H47*I47)+29.06*LN($B$41)+3.82*LN(H47/101.325)-15.25-4.21*_xlfn.NORM.S.INV(1-Percentile_Liq/100)) -> 41.80270382 | L47: 0.3896763387 | M47: 0.9994632173 | N47: =IF(OR(A47<$B$38,A47="",Inputs!J17="No",Method_Cetin=FALSE),NA(),$E$36*0.65*G47/H47*I47) -> 0.937934014 | O47: 0.3654906926
A48: =IF('PB Liquefaction Initiation'!A15="","",'PB Liquefaction Initiation'!A15) -> 7.7724 | B48: =IF('PB Liquefaction Initiation'!B48="","",'PB Liquefaction Initiation'!B48) -> 28.67931015 | C48: =IF('PB Liquefaction Initiation'!C15="","",'PB Liquefaction Initiation'!C15) -> 19.52753 | D48: =IF('PB Liquefaction Initiation'!D15="","",'PB Liquefaction Initiation'!D15) -> 10 | E48: =IF('PB Liquefaction Initiation'!E15="","",'PB Liquefaction Initiation'!E15) -> 0.9144 | F48: 30.42648255 | G48: 151.7757742 | H48: 75.52853017 | I48: 0.9780415384 | J48: =IF(Inputs!H18="",1,Inputs!H18) -> 1 | K48: =IF(OR(A48<$B$38,A48="",Inputs!J18="No",Method_Cetin=FALSE),NA(),13.79*LN(0.65*$B$37*$B$36*G48/H48*I48)+29.06*LN($B$41)+3.82*LN(H48/101.325)-15.25-4.21*_xlfn.NORM.S.INV(1-Percentile_Liq/100)) -> 42.55745264 | L48: 0.6676171516 | M48: 0.9340895691 | N48: =IF(OR(A48<$B$38,A48="",Inputs!J18="No",Method_Cetin=FALSE),NA(),$E$36*0.65*G48/H48*I48) -> 0.9325775157 | O48: 0.6226047447
A49: =IF('PB Liquefaction Initiation'!A16="","",'PB Liquefaction Initiation'!A16) -> 9.2964 | B49: =IF('PB Liquefaction Initiation'!B49="","",'PB Liquefaction Initiation'!B49) -> 19.50397473 | C49: =IF('PB Liquefaction Initiation'!C16="","",'PB Liquefaction Initiation'!C16) -> 19.52753 | D49: =IF('PB Liquefaction Initiation'!D16="","",'PB Liquefaction Initiation'!D16) -> 10 | E49: =IF('PB Liquefaction Initiation'!E16="","",'PB Liquefaction Initiation'!E16) -> 2.1336 | F49: 20.88413372 | G49: 181.5357299 | H49: 90.33804589 | I49: 0.971621007 | J49: =IF(Inputs!H19="",1,Inputs!H19) -> 1 | K49: =IF(OR(A49<$B$38,A49="",Inputs!J19="No",Method_Cetin=FALSE),NA(),13.79*LN(0.65*$B$37*$B$36*G49/H49*I49)+29.06*LN($B$41)+3.82*LN(H49/101.325)-15.25-4.21*_xlfn.NORM.S.INV(1-Percentile_Liq/100)) -> 43.15059148 | L49: 0.3201298371 | M49: 0.9999546928 | N49: =IF(OR(A49<$B$38,A49="",Inputs!J19="No",Method_Cetin=FALSE),NA(),$E$36*0.65*G49/H49*I49) -> 0.9264554412 | O49: 0.2965860295
A50: =IF('PB Liquefaction Initiation'!A17="","",'PB Liquefaction Initiation'!A17) -> 10.8204 | B50: =IF('PB Liquefaction Initiation'!B50="","",'PB Liquefaction Initiation'!B50) -> 8.222572974 | C50: =IF('PB Liquefaction Initiation'!C17="","",'PB Liquefaction Initiation'!C17) -> 19.52753 | D50: =IF('PB Liquefaction Initiation'!D17="","",'PB Liquefaction Initiation'!D17) -> 10 | E50: =IF('PB Liquefaction Initiation'!E17="","",'PB Liquefaction Initiation'!E17) -> 0.9144 | F50: 9.151475893 | G50: 211.2956856 | H50: 105.1475616 | I50: 0.964311166 | J50: =IF(Inputs!H20="",1,Inputs!H20) -> 1 | K50: =IF(OR(A50<$B$38,A50="",Inputs!J20="No",Method_Cetin=FALSE),NA(),13.79*LN(0.65*$B$37*$B$36*G50/H50*I50)+29.06*LN($B$41)+3.82*LN(H50/101.325)-15.25-4.21*_xlfn.NORM.S.INV(1-Percentile_Liq/100)) -> 43.62635127 | L50: 0.1320812393 | M50: 1 | N50: =IF(OR(A50<$B$38,A50="",Inputs!J20="No",Method_Cetin=FALSE),NA(),$E$36*0.65*G50/H50*I50) -> 0.9194853964 | O50: 0.1214467706
A51: =IF('PB Liquefaction Initiation'!A18="","",'PB Liquefaction Initiation'!A18) -> 12.4968 | B51: =IF('PB Liquefaction Initiation'!B51="","",'PB Liquefaction Initiation'!B51) -> 1.79362168 | C51: =IF('PB Liquefaction Initiation'!C18="","",'PB Liquefaction Initiation'!C18) -> 19.52753 | D51: =IF('PB Liquefaction Initiation'!D18="","",'PB Liquefaction Initiation'!D18) -> 70 | E51: =IF('PB Liquefaction Initiation'!E18="","",'PB Liquefaction Initiation'!E18) -> 2.4384 | F51: 4.144728715 | G51: 244.0316369 | H51: 121.4380289 | I51: 0.9551399007 | J51: =IF(Inputs!H21="",1,Inputs!H21) -> 1 | K51: =IF(OR(A51<$B$38,A51="",Inputs!J21="No",Method_Cetin=FALSE),NA(),13.79*LN(0.65*$B$37*$B$36*G51/H51*I51)+29.06*LN($B$41)+3.82*LN(H51/101.325)-15.25-4.21*_xlfn.NORM.S.INV(1-Percentile_Liq/100)) ->  | N51: =IF(OR(A51<$B$38,A51="",Inputs!J21="No",Method_Cetin=FALSE),NA(),$E$36*0.65*G51/H51*I51) ->  | O51: 0.081166656
A52: =IF('PB Liquefaction Initiation'!A19="","",'PB Liquefaction Initiation'!A19) -> 13.716 | B52: =IF('PB Liquefaction Initiation'!B52="","",'PB Liquefaction Initiation'!B52) -> 1.728685633 | C52: =IF('PB Liquefaction Initiation'!C19="","",'PB Liquefaction Initiation'!C19) -> 19.52753 | D52: =IF('PB Liquefaction Initiation'!D19="","",'PB Liquefaction Initiation'!D19) -> 5 | E52: =IF('PB Liquefaction Initiation'!E19="","",'PB Liquefaction Initiation'!E19) -> 0.9144 | F52: 2.063259346 | G52: 267.8396015 | H52: 133.2856415 | I52: 0.9476646699 | J52: =IF(Inputs!H22="",1,Inputs!H22) -> 1 | K52: =IF(OR(A52<$B$38,A52="",Inputs!J22="No",Method_Cetin=FALSE),NA(),13.79*LN(0.65*$B$37*$B$36*G52/H52*I52)+29.06*LN($B$41)+3.82*LN(H52/101.325)-15.25-4.21*_xlfn.NORM.S.INV(1-Percentile_Liq/100)) -> 44.2920575 | L52: 0.07527373483 | M52: 1 | N52: =IF(OR(A52<$B$38,A52="",Inputs!J22="No",Method_Cetin=FALSE),NA(),$E$36*0.65*G52/H52*I52) -> 0.9036127086 | O52: 0.06801830341
A53: =IF('PB Liquefaction Initiation'!A20="","",'PB Liquefaction Initiation'!A20) -> 15.6972 | B53: =IF('PB Liquefaction Initiation'!B53="","",'PB Liquefaction Initiation'!B53) -> 9.826321162 | C53: =IF('PB Liquefaction Initiation'!C20="","",'PB Liquefaction Initiation'!C20) -> 19.52753 | D53: =IF('PB Liquefaction Initiation'!D20="","",'PB Liquefaction Initiation'!D20) -> 5 | E53: =IF('PB Liquefaction Initiation'!E20="","",'PB Liquefaction Initiation'!E20) -> 2.1336 | F53: 10.32284758 | G53: 306.5275439 | H53: 152.5380119 | I53: 0.9339608844 | J53: =IF(Inputs!H23="",1,Inputs!H23) -> 1 | K53: =IF(OR(A53<$B$38,A53="",Inputs!J23="No",Method_Cetin=FALSE),NA(),13.79*LN(0.65*$B$37*$B$36*G53/H53*I53)+29.06*LN($B$41)+3.82*LN(H53/101.325)-15.25-4.21*_xlfn.NORM.S.INV(1-Percentile_Liq/100)) -> 44.60658197 | L53: 0.133924743 | M53: 1 | N53: =IF(OR(A53<$B$38,A53="",Inputs!J23="No",Method_Cetin=FALSE),NA(),$E$36*0.65*G53/H53*I53) -> 0.8905459401 | O53: 0.1192661362
A54: =IF('PB Liquefaction Initiation'!A21="","",'PB Liquefaction Initiation'!A21) -> 17.3736 | B54: =IF('PB Liquefaction Initiation'!B54="","",'PB Liquefaction Initiation'!B54) -> 2.619649117 | C54: =IF('PB Liquefaction Initiation'!C21="","",'PB Liquefaction Initiation'!C21) -> 19.52753 | D54: =IF('PB Liquefaction Initiation'!D21="","",'PB Liquefaction Initiation'!D21) -> 5 | E54: =IF('PB Liquefaction Initiation'!E21="","",'PB Liquefaction Initiation'!E21) -> 1.2192 | F54: 2.9720421 | G54: 339.2634952 | H54: 168.8284792 | I54: 0.9207728057 | J54: =IF(Inputs!H24="",1,Inputs!H24) -> 1 | K54: =IF(OR(A54<$B$38,A54="",Inputs!J24="No",Method_Cetin=FALSE),NA(),13.79*LN(0.65*$B$37*$B$36*G54/H54*I54)+29.06*LN($B$41)+3.82*LN(H54/101.325)-15.25-4.21*_xlfn.NORM.S.INV(1-Percentile_Liq/100)) -> 44.79808449 | L54: 0.07750462648 | M54: 1 | N54: =IF(OR(A54<$B$38,A54="",Inputs!J24="No",Method_Cetin=FALSE),NA(),$E$36*0.65*G54/H54*I54) -> 0.8779709061 | O54: 0.06804680714
A55: =IF('PB Liquefaction Initiation'!A22="","",'PB Liquefaction Initiation'!A22) ->  | B55: =IF('PB Liquefaction Initiation'!B55="","",'PB Liquefaction Initiation'!B55) ->  | C55: =IF('PB Liquefaction Initiation'!C22="","",'PB Liquefaction Initiation'!C22) ->  | D55: =IF('PB Liquefaction Initiation'!D22="","",'PB Liquefaction Initiation'!D22) ->  | E55: =IF('PB Liquefaction Initiation'!E22="","",'PB Liquefaction Initiation'!E22) ->  | J55: =IF(Inputs!H25="",1,Inputs!H25) -> 1 | K55: =IF(OR(A55<$B$38,A55="",Inputs!J25="No",Method_Cetin=FALSE),NA(),13.79*LN(0.65*$B$37*$B$36*G55/H55*I55)+29.06*LN($B$41)+3.82*LN(H55/101.325)-15.25-4.21*_xlfn.NORM.S.INV(1-Percentile_Liq/100)) ->  | N55: =IF(OR(A55<$B$38,A55="",Inputs!J25="No",Method_Cetin=FALSE),NA(),$E$36*0.65*G55/H55*I55) -> 
A56: =IF('PB Liquefaction Initiation'!A23="","",'PB Liquefaction Initiation'!A23) ->  | B56: =IF('PB Liquefaction Initiation'!B56="","",'PB Liquefaction Initiation'!B56) ->  | C56: =IF('PB Liquefaction Initiation'!C23="","",'PB Liquefaction Initiation'!C23) ->  | D56: =IF('PB Liquefaction Initiation'!D23="","",'PB Liquefaction Initiation'!D23) ->  | E56: =IF('PB Liquefaction Initiation'!E23="","",'PB Liquefaction Initiation'!E23) ->  | J56: =IF(Inputs!H26="",1,Inputs!H26) -> 1 | K56: =IF(OR(A56<$B$38,A56="",Inputs!J26="No",Method_Cetin=FALSE),NA(),13.79*LN(0.65*$B$37*$B$36*G56/H56*I56)+29.06*LN($B$41)+3.82*LN(H56/101.325)-15.25-4.21*_xlfn.NORM.S.INV(1-Percentile_Liq/100)) ->  | N56: =IF(OR(A56<$B$38,A56="",Inputs!J26="No",Method_Cetin=FALSE),NA(),$E$36*0.65*G56/H56*I56) -> 
A57: =IF('PB Liquefaction Initiation'!A24="","",'PB Liquefaction Initiation'!A24) ->  | B57: =IF('PB Liquefaction Initiation'!B57="","",'PB Liquefaction Initiation'!B57) ->  | C57: =IF('PB Liquefaction Initiation'!C24="","",'PB Liquefaction Initiation'!C24) ->  | D57: =IF('PB Liquefaction Initiation'!D24="","",'PB Liquefaction Initiation'!D24) ->  | E57: =IF('PB Liquefaction Initiation'!E24="","",'PB Liquefaction Initiation'!E24) ->  | J57: =IF(Inputs!H27="",1,Inputs!H27) -> 1 | K57: =IF(OR(A57<$B$38,A57="",Inputs!J27="No",Method_Cetin=FALSE),NA(),13.79*LN(0.65*$B$37*$B$36*G57/H57*I57)+29.06*LN($B$41)+3.82*LN(H57/101.325)-15.25-4.21*_xlfn.NORM.S.INV(1-Percentile_Liq/100)) ->  | N57: =IF(OR(A57<$B$38,A57="",Inputs!J27="No",Method_Cetin=FALSE),NA(),$E$36*0.65*G57/H57*I57) -> 
A58: =IF('PB Liquefaction Initiation'!A25="","",'PB Liquefaction Initiation'!A25) ->  | B58: =IF('PB Liquefaction Initiation'!B58="","",'PB Liquefaction Initiation'!B58) ->  | C58: =IF('PB Liquefaction Initiation'!C25="","",'PB Liquefaction Initiation'!C25) ->  | D58: =IF('PB Liquefaction Initiation'!D25="","",'PB Liquefaction Initiation'!D25) ->  | E58: =IF('PB Liquefaction Initiation'!E25="","",'PB Liquefaction Initiation'!E25) ->  | J58: =IF(Inputs!H28="",1,Inputs!H28) -> 1 | K58: =IF(OR(A58<$B$38,A58="",Inputs!J28="No",Method_Cetin=FALSE),NA(),13.79*LN(0.65*$B$37*$B$36*G58/H58*I58)+29.06*LN($B$41)+3.82*LN(H58/101.325)-15.25-4.21*_xlfn.NORM.S.INV(1-Percentile_Liq/100)) ->  | N58: =IF(OR(A58<$B$38,A58="",Inputs!J28="No",Method_Cetin=FALSE),NA(),$E$36*0.65*G58/H58*I58) -> 
A59: =IF('PB Liquefaction Initiation'!A26="","",'PB Liquefaction Initiation'!A26) ->  | B59: =IF('PB Liquefaction Initiation'!B59="","",'PB Liquefaction Initiation'!B59) ->  | C59: =IF('PB Liquefaction Initiation'!C26="","",'PB Liquefaction Initiation'!C26) ->  | D59: =IF('PB Liquefaction Initiation'!D26="","",'PB Liquefaction Initiation'!D26) ->  | E59: =IF('PB Liquefaction Initiation'!E26="","",'PB Liquefaction Initiation'!E26) ->  | J59: =IF(Inputs!H29="",1,Inputs!H29) -> 1 | K59: =IF(OR(A59<$B$38,A59="",Inputs!J29="No",Method_Cetin=FALSE),NA(),13.79*LN(0.65*$B$37*$B$36*G59/H59*I59)+29.06*LN($B$41)+3.82*LN(H59/101.325)-15.25-4.21*_xlfn.NORM.S.INV(1-Percentile_Liq/100)) ->  | N59: =IF(OR(A59<$B$38,A59="",Inputs!J29="No",Method_Cetin=FALSE),NA(),$E$36*0.65*G59/H59*I59) -> 
A60: =IF('PB Liquefaction Initiation'!A27="","",'PB Liquefaction Initiation'!A27) ->  | B60: =IF('PB Liquefaction Initiation'!B60="","",'PB Liquefaction Initiation'!B60) ->  | C60: =IF('PB Liquefaction Initiation'!C27="","",'PB Liquefaction Initiation'!C27) ->  | D60: =IF('PB Liquefaction Initiation'!D27="","",'PB Liquefaction Initiation'!D27) ->  | E60: =IF('PB Liquefaction Initiation'!E27="","",'PB Liquefaction Initiation'!E27) ->  | J60: =IF(Inputs!H30="",1,Inputs!H30) -> 1 | K60: =IF(OR(A60<$B$38,A60="",Inputs!J30="No",Method_Cetin=FALSE),NA(),13.79*LN(0.65*$B$37*$B$36*G60/H60*I60)+29.06*LN($B$41)+3.82*LN(H60/101.325)-15.25-4.21*_xlfn.NORM.S.INV(1-Percentile_Liq/100)) ->  | N60: =IF(OR(A60<$B$38,A60="",Inputs!J30="No",Method_Cetin=FALSE),NA(),$E$36*0.65*G60/H60*I60) -> 
A61: =IF('PB Liquefaction Initiation'!A28="","",'PB Liquefaction Initiation'!A28) ->  | B61: =IF('PB Liquefaction Initiation'!B61="","",'PB Liquefaction Initiation'!B61) ->  | C61: =IF('PB Liquefaction Initiation'!C28="","",'PB Liquefaction Initiation'!C28) ->  | D61: =IF('PB Liquefaction Initiation'!D28="","",'PB Liquefaction Initiation'!D28) ->  | E61: =IF('PB Liquefaction Initiation'!E28="","",'PB Liquefaction Initiation'!E28) ->  | J61: =IF(Inputs!H31="",1,Inputs!H31) -> 1 | K61: =IF(OR(A61<$B$38,A61="",Inputs!J31="No",Method_Cetin=FALSE),NA(),13.79*LN(0.65*$B$37*$B$36*G61/H61*I61)+29.06*LN($B$41)+3.82*LN(H61/101.325)-15.25-4.21*_xlfn.NORM.S.INV(1-Percentile_Liq/100)) ->  | N61: =IF(OR(A61<$B$38,A61="",Inputs!J31="No",Method_Cetin=FALSE),NA(),$E$36*0.65*G61/H61*I61) -> 
A62: =IF('PB Liquefaction Initiation'!A29="","",'PB Liquefaction Initiation'!A29) ->  | B62: =IF('PB Liquefaction Initiation'!B62="","",'PB Liquefaction Initiation'!B62) ->  | C62: =IF('PB Liquefaction Initiation'!C29="","",'PB Liquefaction Initiation'!C29) ->  | D62: =IF('PB Liquefaction Initiation'!D29="","",'PB Liquefaction Initiation'!D29) ->  | E62: =IF('PB Liquefaction Initiation'!E29="","",'PB Liquefaction Initiation'!E29) ->  | J62: =IF(Inputs!H32="",1,Inputs!H32) -> 1 | K62: =IF(OR(A62<$B$38,A62="",Inputs!J32="No",Method_Cetin=FALSE),NA(),13.79*LN(0.65*$B$37*$B$36*G62/H62*I62)+29.06*LN($B$41)+3.82*LN(H62/101.325)-15.25-4.21*_xlfn.NORM.S.INV(1-Percentile_Liq/100)) ->  | N62: =IF(OR(A62<$B$38,A62="",Inputs!J32="No",Method_Cetin=FALSE),NA(),$E$36*0.65*G62/H62*I62) -> 

Sheet PB Settlement
A1: Simplified Performance-based Settlement using Ishihara & Yoshimine (1992)
A3: Depth to Water: | B3: =IF(design_gw="",NA(),IF(units=2,CONVERT(design_gw,"ft","m"),design_gw)) -> 0 | C3: m
A4: εv,IYref (%): | B4: =IF(Inputs!C53="",NA(),Inputs!C53) -> 2.3
A5: CSRref (%): | B5: =IF(CSR_ref_BI="",NA(),CSR_ref_BI) -> 35.14
D6: Compute Approximate Site Strain | M6: Compute Approximate Reference Strain | V6: Compute Corrrection Factor and Site Strain | X6: Calibrated Strain | Z6: Compute Ground Surface Settlment | AE6: Compute Settlement for Each Layer
A7: Depth (m) | B7: Thickness (m) | C7: Susceptible? | D7: (N1)60,Cssite | E7: CRR(Nsite) | F7: CSRsite | G7: FSLsite | H7: Fαsite | I7: γLIMsite | J7: γMAXsite | K7: εv,approx.site | L7: PLIQsite | M7: (N1)60,Csref | N7: CSRref | O7: CRRref | P7: FSLref | Q7: Fαref | R7: γLIMref | S7: γMAXref | T7: εv,approx.ref | U7: PLIQref | V7: Δε | W7: εvsite | X7: εv,calibratedsite | Y7: εv,calibratedsite (%) | Z7: DFi | AA7: ε*t*DFi | AB7: t*DFi | AC7: εv,eqv.site | AD7: Ssite (m) | AE7: εi*Dfi*Σti | AF7: Σ(ti*DFi) | AG7: εisite | AH7: Si (cm) | AI7: Ssite (cm)
A8: =IF(Inputs!B13="","",IF(units=2,CONVERT(Inputs!B13,"ft","m"),Inputs!B13)) -> 0.4572 | B8: =IF(Inputs!G13="","",IF(units=2,CONVERT(Inputs!G13,"ft","m"),Inputs!G13)) -> 0.9144 | C8: =IF(A8="","",IF(OR(A8<$B$3,Inputs!J13="No"),"Not_susc.","Susceptible")) -> Susceptible | D8: =IF(OR(A8="",Method_BI=FALSE),NA(),'PB Liquefaction Initiation'!F10) -> 33.87418545 | E8: =IF(OR(A8="",Method_BI=FALSE),NA(),'PB Liquefaction Initiation'!Q10) -> 1.010930585 | F8: =IF('PB Liquefaction Initiation'!P10="",NA(),'PB Liquefaction Initiation'!P10) -> 0.2231123602 | G8: =E8/F8 -> 4.531038012 | H8: =0.032+(0.69*SQRT(D8))-(0.13*D8) -> -0.3557382711 | I8: =MAX(0,1.859*(1.1-SQRT(D8/46))^3) -> 0.02630265233 | J8: =IF(G8<H8,I8,IF(G8<2,MIN(I8,0.035*(2-G8)*((1-H8)/(G8-H8))),0)) -> 0 | K8: =MAX(0,1.5*EXP(-0.369*SQRT(D8))*MIN(0.08,J8))*L8 -> 0 | L8: =_xlfn.NORM.S.DIST(LN(G8^-3.61),TRUE) -> 2.455081548e-08 | M8: =IF(A8="",NA(),18) -> 18 | N8: =IF(A8="",NA(),$B$5/100) -> 0.3514 | O8: =EXP((M8/14.1)+((M8/126)^2)-((M8/23.6)^3)+((M8/25.4)^4)-2.67) -> 0.2091963176 | P8: =O8/N8 -> 0.5953224746 | Q8: =IF(A8="",NA(),0.6194) -> 0.6194 | R8: =MAX(0,1.859*(1.1-SQRT(M8/46))^3) -> 0.1985497297 | S8: =IF(P8<Q8,R8,IF(P8<2,MIN(R8,0.035*(2-P8)*((1-Q8)/(P8-Q8))),0)) -> 0.1985497297 | T8: =MAX(0,1.5*EXP(-0.369*SQRT(M8))*MIN(0.08,S8))*U8 -> 0.02431029165 | U8: =_xlfn.NORM.S.DIST(LN(P8^-3.61),TRUE) -> 0.9694197873 | V8: =LN(K8+0.01)/LN(T8+0.01) -> 1.365583322 | W8: =MAX(0,EXP(V8*LN($B$4/100+0.01))-0.01) -> 0 | X8: =(142.92*(W8^3))+(16.3285*(W8^2))+(0.6802*W8) -> 0 | Y8: =X8*100 -> 0 | Z8: =IF(A8="",NA(),MAX(0,1-(A8/18))) -> 0.9746 | AA8: =X8*B8*Z8 -> 0 | AB8: =IF(OR(A8="",C8="Not_susc."),NA(),B8*Z8) -> 0.89117424 | AC8: =SUMIFS(AA8:AA27,C8:C27,"=Susceptible",A8:A27,"<18")/SUMIFS(AB8:AB27,C8:C27,"=Susceptible",A8:A27,"<18") -> 0.03206719065 | AD8: =0.9*AC8*SUMIFS(B8:B27,C8:C27,"=Susceptible",A8:A27,"<18") -> 0.4134435717 | AE8: =X8*Z8*SUMIFS($B$8:$B$27,$C$8:$C$27,"=Susceptible",$A$8:$A$27,"<18") -> 0 | AF8: =SUMIF(C8:C27,"=Susceptible",AB8:$AB$27) -> 7.36819456 | AG8: =AE8/$AF$8 -> 0 | AH8: =0.9*AG8*B8*100 -> 0 | AI8: =SUMIF(C8:C27,"=Susceptible",(AH8:AH27)) -> 41.34435717
A9: =IF(Inputs!B14="","",IF(units=2,CONVERT(Inputs!B14,"ft","m"),Inputs!B14)) -> 1.6764 | B9: =IF(Inputs!G14="","",IF(units=2,CONVERT(Inputs!G14,"ft","m"),Inputs!G14)) -> 1.524 | C9: =IF(A9="","",IF(OR(A9<$B$3,Inputs!J14="No"),"Not_susc.","Susceptible")) -> Susceptible | D9: =IF(OR(A9="",Method_BI=FALSE),NA(),'PB Liquefaction Initiation'!F11) -> 11.90043878 | E9: =IF(OR(A9="",Method_BI=FALSE),NA(),'PB Liquefaction Initiation'!Q11) -> 0.1500014345 | F9: =IF('PB Liquefaction Initiation'!P11="",NA(),'PB Liquefaction Initiation'!P11) -> 0.4095218378 | G9: =E9/F9 -> 0.3662843361 | H9: =0.032+(0.69*SQRT(D9))-(0.13*D9) -> 0.8652368277 | I9: =MAX(0,1.859*(1.1-SQRT(D9/46))^3) -> 0.3844640273 | J9: =IF(G9<H9,I9,IF(G9<2,MIN(I9,0.035*(2-G9)*((1-H9)/(G9-H9))),0)) -> 0.3844640273 | K9: =MAX(0,1.5*EXP(-0.369*SQRT(D9))*MIN(0.08,J9))*L9 -> 0.03359602883 | L9: =_xlfn.NORM.S.DIST(LN(G9^-3.61),TRUE) -> 0.9998559028 | M9: =IF(A9="",NA(),18) -> 18 | N9: 0.3514 | O9: =EXP((M9/14.1)+((M9/126)^2)-((M9/23.6)^3)+((M9/25.4)^4)-2.67) -> 0.2091963176 | P9: =O9/N9 -> 0.5953224746 | Q9: =IF(A9="",NA(),0.6194) -> 0.6194 | R9: =MAX(0,1.859*(1.1-SQRT(M9/46))^3) -> 0.1985497297 | S9: =IF(P9<Q9,R9,IF(P9<2,MIN(R9,0.035*(2-P9)*((1-Q9)/(P9-Q9))),0)) -> 0.1985497297 | T9: =MAX(0,1.5*EXP(-0.369*SQRT(M9))*MIN(0.08,S9))*U9 -> 0.02431029165 | U9: =_xlfn.NORM.S.DIST(LN(P9^-3.61),TRUE) -> 0.9694197873 | V9: =LN(K9+0.01)/LN(T9+0.01) -> 0.9289742898 | W9: 0.03204724442 | X9: 0.04327230352 | Y9: =X9*100 -> 4.327230352 | Z9: =IF(A9="",NA(),MAX(0,1-(A9/18))) -> 0.9068666667 | AA9: =X9*B9*Z9 -> 0.0598051275 | AB9: =IF(OR(A9="",C9="Not_susc."),NA(),B9*Z9) -> 1.3820648 | AE9: =X9*Z9*SUMIFS($B$8:$B$27,$C$8:$C$27,"=Susceptible",$A$8:$A$27,"<18") -> 0.5621681985 | AG9: =AE9/$AF$8 -> 0.07629660074 | AH9: =0.9*AG9*B9*100 -> 10.46484176 | AI9: =IF(OR(C9="",C9="Not_susc."),AI10,AI10+AH9) -> 41.34435717
A10: =IF(Inputs!B15="","",IF(units=2,CONVERT(Inputs!B15,"ft","m"),Inputs!B15)) -> 3.2004 | B10: =IF(Inputs!G15="","",IF(units=2,CONVERT(Inputs!G15,"ft","m"),Inputs!G15)) -> 1.524 | C10: =IF(A10="","",IF(OR(A10<$B$3,Inputs!J15="No"),"Not_susc.","Susceptible")) -> Susceptible | D10: =IF(OR(A10="",Method_BI=FALSE),NA(),'PB Liquefaction Initiation'!F12) -> 13.69340367 | E10: =IF(OR(A10="",Method_BI=FALSE),NA(),'PB Liquefaction Initiation'!Q12) -> 0.1656468263 | F10: =IF('PB Liquefaction Initiation'!P12="",NA(),'PB Liquefaction Initiation'!P12) -> 0.4161886272 | G10: 0.3980090169 | H10: 0.8051748725 | I10: 0.3167684257 | J10: 0.3167684257 | K10: 0.03061778788 | L10: 0.9995592106 | M10: 18 | N10: 0.3514 | O10: 0.2091963176 | P10: 0.5953224746 | Q10: 0.6194 | R10: 0.1985497297 | S10: 0.1985497297 | T10: 0.02431029165 | U10: 0.9694197873 | V10: 0.9499569309 | W10: 0.02914281445 | X10: 0.03722822374 | Y10: 3.722822374 | Z10: 0.8222 | AA10: =X10*B10*Z10 -> 0.04664818544 | AB10: 1.2530328 | AE10: 0.4384929431 | AG10: 0.05951158585 | AH10: 8.162609115 | AI10: =IF(OR(C10="",C10="Not_susc."),AI11,AI11+AH10) -> 30.87951541
A11: =IF(Inputs!B16="","",IF(units=2,CONVERT(Inputs!B16,"ft","m"),Inputs!B16)) -> 4.572 | B11: =IF(Inputs!G16="","",IF(units=2,CONVERT(Inputs!G16,"ft","m"),Inputs!G16)) -> 1.2192 | C11: =IF(A11="","",IF(OR(A11<$B$3,Inputs!J16="No"),"Not_susc.","Susceptible")) -> Not_susc. | D11: =IF(OR(A11="",Method_BI=FALSE),NA(),'PB Liquefaction Initiation'!F13) -> 7.589169573 | E11: =IF(OR(A11="",Method_BI=FALSE),NA(),'PB Liquefaction Initiation'!Q13) -> 0.1160867288 | F11: =IF('PB Liquefaction Initiation'!P13="",NA(),'PB Liquefaction Initiation'!P13) ->  | H11: 0.9462508301 | I11: 0.6208981994 | M11: 18 | N11: 0.3514 | O11: 0.2091963176 | P11: 0.5953224746 | Q11: 0.6194 | R11: 0.1985497297 | S11: 0.1985497297 | T11: 0.02431029165 | U11: 0.9694197873 | Z11: 0.746 | AI11: 22.7169063
A12: =IF(Inputs!B17="","",IF(units=2,CONVERT(Inputs!B17,"ft","m"),Inputs!B17)) -> 6.2484 | B12: =IF(Inputs!G17="","",IF(units=2,CONVERT(Inputs!G17,"ft","m"),Inputs!G17)) -> 2.1336 | C12: =IF(A12="","",IF(OR(A12<$B$3,Inputs!J17="No"),"Not_susc.","Susceptible")) -> Susceptible | D12: =IF(OR(A12="",Method_BI=FALSE),NA(),'PB Liquefaction Initiation'!F14) -> 21.70847391 | E12: =IF(OR(A12="",Method_BI=FALSE),NA(),'PB Liquefaction Initiation'!Q14) -> 0.2604203796 | F12: =IF('PB Liquefaction Initiation'!P14="",NA(),'PB Liquefaction Initiation'!P14) -> 0.3866691646 | G12: 0.6734966309 | H12: 0.424770773 | I12: 0.1309888605 | J12: 0.1073733266 | K12: 0.01985240071 | L12: 0.923200389 | M12: 18 | N12: 0.3514 | O12: 0.2091963176 | P12: 0.5953224746 | Q12: 0.6194 | R12: 0.1985497297 | S12: 0.1985497297 | T12: 0.02431029165 | U12: 0.9694197873 | V12: 1.041271442 | W12: 0.01866624928 | X12: 0.01931563511 | Y12: 1.931563511 | Z12: 0.6528666667 | AA12: 0.026905836 | AB12: 1.39295632 | AE12: 0.1806534703 | AG12: 0.02451801032 | AH12: 4.708046414 | AI12: 22.7169063
A13: =IF(Inputs!B18="","",IF(units=2,CONVERT(Inputs!B18,"ft","m"),Inputs!B18)) -> 7.7724 | B13: =IF(Inputs!G18="","",IF(units=2,CONVERT(Inputs!G18,"ft","m"),Inputs!G18)) -> 0.9144 | C13: =IF(A13="","",IF(OR(A13<$B$3,Inputs!J18="No"),"Not_susc.","Susceptible")) -> Susceptible | D13: =IF(OR(A13="",Method_BI=FALSE),NA(),'PB Liquefaction Initiation'!F15) -> 29.14039966 | E13: =IF(OR(A13="",Method_BI=FALSE),NA(),'PB Liquefaction Initiation'!Q15) -> 0.4965906967 | F13: =IF('PB Liquefaction Initiation'!P15="",NA(),'PB Liquefaction Initiation'!P15) -> 0.3497882139 | G13: 1.419689621 | H13: -0.03150441026 | I13: 0.05226940158 | J13: 0.01443690133 | K13: 0.0003040777825 | L13: 0.1029209391 | M13: 18 | N13: 0.3514 | O13: 0.2091963176 | P13: 0.5953224746 | Q13: 0.6194 | R13: 0.1985497297 | S13: 0.1985497297 | T13: 0.02431029165 | U13: 0.9694197873 | V13: 1.356700798 | W13: 0 | X13: 0 | Y13: 0 | Z13: 0.5682 | AA13: 0 | AB13: 0.51956208 | AE13: 0 | AG13: 0 | AH13: 0 | AI13: 18.00885988
A14: =IF(Inputs!B19="","",IF(units=2,CONVERT(Inputs!B19,"ft","m"),Inputs!B19)) -> 9.2964 | B14: =IF(Inputs!G19="","",IF(units=2,CONVERT(Inputs!G19,"ft","m"),Inputs!G19)) -> 2.1336 | C14: =IF(A14="","",IF(OR(A14<$B$3,Inputs!J19="No"),"Not_susc.","Susceptible")) -> Susceptible | D14: =IF(OR(A14="",Method_BI=FALSE),NA(),'PB Liquefaction Initiation'!F16) -> 21.33763058 | E14: =IF(OR(A14="",Method_BI=FALSE),NA(),'PB Liquefaction Initiation'!Q16) -> 0.2543382894 | F14: =IF('PB Liquefaction Initiation'!P16="",NA(),'PB Liquefaction Initiation'!P16) -> 0.3843424637 | G14: 0.6617491258 | H14: 0.4454024761 | I14: 0.1366758951 | J14: 0.1200696742 | K14: 0.02033825652 | L14: 0.9319478401 | M14: 18 | N14: 0.3514 | O14: 0.2091963176 | P14: 0.5953224746 | Q14: 0.6194 | R14: 0.1985497297 | S14: 0.1985497297 | T14: 0.02431029165 | U14: 0.9694197873 | V14: 1.036484147 | W14: 0.01913823122 | X14: 0.02000033557 | Y14: 2.000033557 | Z14: 0.4835333333 | AA14: 0.0206336806 | AB14: 1.03166672 | AE14: 0.1385404269 | AG14: 0.01880249303 | AH14: 3.610529922 | AI14: 18.00885988
A15: =IF(Inputs!B20="","",IF(units=2,CONVERT(Inputs!B20,"ft","m"),Inputs!B20)) -> 10.8204 | B15: =IF(Inputs!G20="","",IF(units=2,CONVERT(Inputs!G20,"ft","m"),Inputs!G20)) -> 0.9144 | C15: =IF(A15="","",IF(OR(A15<$B$3,Inputs!J20="No"),"Not_susc.","Susceptible")) -> Susceptible | D15: =IF(OR(A15="",Method_BI=FALSE),NA(),'PB Liquefaction Initiation'!F17) -> 9.487639011 | E15: =IF(OR(A15="",Method_BI=FALSE),NA(),'PB Liquefaction Initiation'!Q17) -> 0.1304252794 | F15: =IF('PB Liquefaction Initiation'!P17="",NA(),'PB Liquefaction Initiation'!P17) -> 0.4134303046 | G15: 0.3154710189 | H15: 0.9239457094 | I15: 0.5008095546 | J15: 0.5008095546 | K15: 0.03850861355 | L15: 0.9999844198 | M15: 18 | N15: 0.3514 | O15: 0.2091963176 | P15: 0.5953224746 | Q15: 0.6194 | R15: 0.1985497297 | S15: 0.1985497297 | T15: 0.02431029165 | U15: 0.9694197873 | V15: 0.8973119221 | W15: 0.036843021 | X15: 0.05437263741 | Y15: 5.437263741 | Z15: 0.3988666667 | AA15: 0.01983098841 | AB15: 0.36472368 | AE15: 0.310685485 | AG15: 0.04216575479 | AH15: 3.470072956 | AI15: 14.39832996
A16: =IF(Inputs!B21="","",IF(units=2,CONVERT(Inputs!B21,"ft","m"),Inputs!B21)) -> 12.4968 | B16: =IF(Inputs!G21="","",IF(units=2,CONVERT(Inputs!G21,"ft","m"),Inputs!G21)) -> 2.4384 | C16: =IF(A16="","",IF(OR(A16<$B$3,Inputs!J21="No"),"Not_susc.","Susceptible")) -> Not_susc. | D16: =IF(OR(A16="",Method_BI=FALSE),NA(),'PB Liquefaction Initiation'!F18) -> 7.303047698 | E16: =IF(OR(A16="",Method_BI=FALSE),NA(),'PB Liquefaction Initiation'!Q18) -> 0.1140072929 | F16: =IF('PB Liquefaction Initiation'!P18="",NA(),'PB Liquefaction Initiation'!P18) ->  | H16: 0.9472702598 | I16: 0.641883826 | M16: 18 | N16: 0.3514 | O16: 0.2091963176 | P16: 0.5953224746 | Q16: 0.6194 | R16: 0.1985497297 | S16: 0.1985497297 | T16: 0.02431029165 | U16: 0.9694197873 | Z16: 0.3057333333 | AI16: 10.928257
A17: =IF(Inputs!B22="","",IF(units=2,CONVERT(Inputs!B22,"ft","m"),Inputs!B22)) -> 13.716 | B17: =IF(Inputs!G22="","",IF(units=2,CONVERT(Inputs!G22,"ft","m"),Inputs!G22)) -> 0.9144 | C17: =IF(A17="","",IF(OR(A17<$B$3,Inputs!J22="No"),"Not_susc.","Susceptible")) -> Susceptible | D17: =IF(OR(A17="",Method_BI=FALSE),NA(),'PB Liquefaction Initiation'!F19) -> 1.632756664 | E17: =IF(OR(A17="",Method_BI=FALSE),NA(),'PB Liquefaction Initiation'!Q19) -> 0.07774291842 | F17: =IF('PB Liquefaction Initiation'!P19="",NA(),'PB Liquefaction Initiation'!P19) -> 0.3993356759 | G17: 0.1946806236 | H17: 0.7014192662 | I17: 1.408288945 | J17: 1.408288945 | K17: 0.07488741682 | L17: 0.9999999983 | M17: 18 | N17: 0.3514 | O17: 0.2091963176 | P17: 0.5953224746 | Q17: 0.6194 | R17: 0.1985497297 | S17: 0.1985497297 | T17: 0.02431029165 | U17: 0.9694197873 | V17: 0.7313768502 | W17: 0.07250407352 | X17: 0.1896264603 | Y17: 18.96264603 | Z17: 0.238 | AA17: 0.04126787561 | AB17: 0.2176272 | AE17: 0.6465300512 | AG17: 0.08774606125 | AH17: 7.221149857 | AI17: 10.928257
A18: =IF(Inputs!B23="","",IF(units=2,CONVERT(Inputs!B23,"ft","m"),Inputs!B23)) -> 15.6972 | B18: =IF(Inputs!G23="","",IF(units=2,CONVERT(Inputs!G23,"ft","m"),Inputs!G23)) -> 2.1336 | C18: =IF(A18="","",IF(OR(A18<$B$3,Inputs!J23="No"),"Not_susc.","Susceptible")) -> Susceptible | D18: =IF(OR(A18="",Method_BI=FALSE),NA(),'PB Liquefaction Initiation'!F20) -> 9.659921568 | E18: =IF(OR(A18="",Method_BI=FALSE),NA(),'PB Liquefaction Initiation'!Q20) -> 0.1317723328 | F18: =IF('PB Liquefaction Initiation'!P20="",NA(),'PB Liquefaction Initiation'!P20) -> 0.3784526757 | G18: 0.348187082 | H18: 0.920758787 | I18: 0.4913211176 | J18: 0.4913211176 | K18: 0.03811296733 | L18: 0.9999301236 | M18: 18 | N18: 0.3514 | O18: 0.2091963176 | P18: 0.5953224746 | Q18: 0.6194 | R18: 0.1985497297 | S18: 0.1985497297 | T18: 0.02431029165 | U18: 0.9694197873 | V18: 0.8997404205 | W18: 0.03645656653 | X18: 0.05342466799 | Y18: 5.342466799 | Z18: 0.1279333333 | AA18: 0.01458272044 | AB18: 0.27295856 | AE18: 0.09791255154 | AG18: 0.01328854046 | AH18: 2.551718694 | AI18: 3.707107147
A19: =IF(Inputs!B24="","",IF(units=2,CONVERT(Inputs!B24,"ft","m"),Inputs!B24)) -> 17.3736 | B19: =IF(Inputs!G24="","",IF(units=2,CONVERT(Inputs!G24,"ft","m"),Inputs!G24)) -> 1.2192 | C19: =IF(A19="","",IF(OR(A19<$B$3,Inputs!J24="No"),"Not_susc.","Susceptible")) -> Susceptible | D19: =IF(OR(A19="",Method_BI=FALSE),NA(),'PB Liquefaction Initiation'!F21) -> 2.375859012 | E19: =IF(OR(A19="",Method_BI=FALSE),NA(),'PB Liquefaction Initiation'!Q21) -> 0.0819138203 | F19: =IF('PB Liquefaction Initiation'!P21="",NA(),'PB Liquefaction Initiation'!P21) -> 0.3695931727 | G19: 0.2216323957 | H19: 0.7866920298 | I19: 1.235741012 | J19: 1.235741012 | K19: 0.06794657218 | L19: 0.9999999733 | M19: 18 | N19: 0.3514 | O19: 0.2091963176 | P19: 0.5953224746 | Q19: 0.6194 | R19: 0.1985497297 | S19: 0.1985497297 | T19: 0.02431029165 | U19: 0.9694197873 | V19: 0.7566717527 | W19: 0.06568352412 | X19: 0.1556250773 | Y19: 15.56250773 | Z19: 0.0348 | AA19: 0.006602885679 | AB19: 0.04242816 | AE19: 0.07758390673 | AG19: 0.01052956815 | AH19: 1.155388453 | AI19: 1.155388453
A20: =IF(Inputs!B25="","",IF(units=2,CONVERT(Inputs!B25,"ft","m"),Inputs!B25)) ->  | B20: =IF(Inputs!G25="","",IF(units=2,CONVERT(Inputs!G25,"ft","m"),Inputs!G25)) ->  | C20: =IF(A20="","",IF(OR(A20<$B$3,Inputs!J25="No"),"Not_susc.","Susceptible")) ->  | D20: =IF(OR(A20="",Method_BI=FALSE),NA(),'PB Liquefaction Initiation'!F22) ->  | E20: =IF(OR(A20="",Method_BI=FALSE),NA(),'PB Liquefaction Initiation'!Q22) ->  | F20: =IF('PB Liquefaction Initiation'!P22="",NA(),'PB Liquefaction Initiation'!P22) ->  | AI20: 0
A21: =IF(Inputs!B26="","",IF(units=2,CONVERT(Inputs!B26,"ft","m"),Inputs!B26)) ->  | B21: =IF(Inputs!G26="","",IF(units=2,CONVERT(Inputs!G26,"ft","m"),Inputs!G26)) ->  | C21: =IF(A21="","",IF(OR(A21<$B$3,Inputs!J26="No"),"Not_susc.","Susceptible")) ->  | D21: =IF(OR(A21="",Method_BI=FALSE),NA(),'PB Liquefaction Initiation'!F23) ->  | E21: =IF(OR(A21="",Method_BI=FALSE),NA(),'PB Liquefaction Initiation'!Q23) ->  | F21: =IF('PB Liquefaction Initiation'!P23="",NA(),'PB Liquefaction Initiation'!P23) ->  | AI21: =IF(OR(C21="",C21="Not_susc."),AI22,AI22+AH21) -> 0
A22: =IF(Inputs!B27="","",IF(units=2,CONVERT(Inputs!B27,"ft","m"),Inputs!B27)) ->  | B22: =IF(Inputs!G27="","",IF(units=2,CONVERT(Inputs!G27,"ft","m"),Inputs!G27)) ->  | C22: =IF(A22="","",IF(OR(A22<$B$3,Inputs!J27="No"),"Not_susc.","Susceptible")) ->  | D22: =IF(OR(A22="",Method_BI=FALSE),NA(),'PB Liquefaction Initiation'!F24) ->  | E22: =IF(OR(A22="",Method_BI=FALSE),NA(),'PB Liquefaction Initiation'!Q24) ->  | F22: =IF('PB Liquefaction Initiation'!P24="",NA(),'PB Liquefaction Initiation'!P24) ->  | AI22: 0
A23: =IF(Inputs!B28="","",IF(units=2,CONVERT(Inputs!B28,"ft","m"),Inputs!B28)) ->  | B23: =IF(Inputs!G28="","",IF(units=2,CONVERT(Inputs!G28,"ft","m"),Inputs!G28)) ->  | C23: =IF(A23="","",IF(OR(A23<$B$3,Inputs!J28="No"),"Not_susc.","Susceptible")) ->  | D23: =IF(OR(A23="",Method_BI=FALSE),NA(),'PB Liquefaction Initiation'!F25) ->  | E23: =IF(OR(A23="",Method_BI=FALSE),NA(),'PB Liquefaction Initiation'!Q25) ->  | F23: =IF('PB Liquefaction Initiation'!P25="",NA(),'PB Liquefaction Initiation'!P25) ->  | AI23: =IF(OR(C23="",C23="Not_susc."),AI24,AI24+AH23) -> 0
A24: =IF(Inputs!B29="","",IF(units=2,CONVERT(Inputs!B29,"ft","m"),Inputs!B29)) ->  | B24: =IF(Inputs!G29="","",IF(units=2,CONVERT(Inputs!G29,"ft","m"),Inputs!G29)) ->  | C24: =IF(A24="","",IF(OR(A24<$B$3,Inputs!J29="No"),"Not_susc.","Susceptible")) ->  | D24: =IF(OR(A24="",Method_BI=FALSE),NA(),'PB Liquefaction Initiation'!F26) ->  | E24: =IF(OR(A24="",Method_BI=FALSE),NA(),'PB Liquefaction Initiation'!Q26) ->  | F24: =IF('PB Liquefaction Initiation'!P26="",NA(),'PB Liquefaction Initiation'!P26) ->  | AI24: 0
A25: =IF(Inputs!B30="","",IF(units=2,CONVERT(Inputs!B30,"ft","m"),Inputs!B30)) ->  | B25: =IF(Inputs!G30="","",IF(units=2,CONVERT(Inputs!G30,"ft","m"),Inputs!G30)) ->  | C25: =IF(A25="","",IF(OR(A25<$B$3,Inputs!J30="No"),"Not_susc.","Susceptible")) ->  | D25: =IF(OR(A25="",Method_BI=FALSE),NA(),'PB Liquefaction Initiation'!F27) ->  | E25: =IF(OR(A25="",Method_BI=FALSE),NA(),'PB Liquefaction Initiation'!Q27) ->  | F25: =IF('PB Liquefaction Initiation'!P27="",NA(),'PB Liquefaction Initiation'!P27) ->  | AI25: 0
A26: =IF(Inputs!B31="","",IF(units=2,CONVERT(Inputs!B31,"ft","m"),Inputs!B31)) ->  | B26: =IF(Inputs!G31="","",IF(units=2,CONVERT(Inputs!G31,"ft","m"),Inputs!G31)) ->  | C26: =IF(A26="","",IF(OR(A26<$B$3,Inputs!J31="No"),"Not_susc.","Susceptible")) ->  | D26: =IF(OR(A26="",Method_BI=FALSE),NA(),'PB Liquefaction Initiation'!F28) ->  | E26: =IF(OR(A26="",Method_BI=FALSE),NA(),'PB Liquefaction Initiation'!Q28) ->  | F26: =IF('PB Liquefaction Initiation'!P28="",NA(),'PB Liquefaction Initiation'!P28) ->  | AI26: =IF(OR(C26="",C26="Not_susc."),AI27,AI27+AH26) -> 0
A27: =IF(Inputs!B32="","",IF(units=2,CONVERT(Inputs!B32,"ft","m"),Inputs!B32)) ->  | B27: =IF(Inputs!G32="","",IF(units=2,CONVERT(Inputs!G32,"ft","m"),Inputs!G32)) ->  | C27: =IF(A27="","",IF(OR(A27<$B$3,Inputs!J32="No"),"Not_susc.","Susceptible")) ->  | D27: =IF(OR(A27="",Method_BI=FALSE),NA(),'PB Liquefaction Initiation'!F29) ->  | E27: =IF(OR(A27="",Method_BI=FALSE),NA(),'PB Liquefaction Initiation'!Q29) ->  | F27: =IF('PB Liquefaction Initiation'!P29="",NA(),'PB Liquefaction Initiation'!P29) ->  | AI27: =IF(OR(C27="",C27="Not_susc."),0,AH27) -> 0
A30: Simplified Performance-based Settlement using Cetin et al. (2009)
A32: εv,Cetinref (%): | B32: =IF(Inputs!C52="",NA(),Inputs!C52) -> 2.3
A33: Nreqref (%): | B33: =IF(Nreq_ref_Cet="",NA(),Nreq_ref_Cet) -> 49.09
D34: Compute Approximate Site Strain | M34: Compute Approximate Reference Strain | V34: Compute Corrrection Factor and Site Strain | X34: Calibrated Strain | Z34: Compute Ground Surface Settlment | AE34: Compute Settlement for Each Layer
A35: Depth (m) | B35: Thickness (m) | C35: Susceptible? | D35: (N1)60,Cssite | E35: CRR(Nreq)site | F35: DR (%)site | G35: PLIQsite | H35: εv,approx.site | M35: (N1)60,Csref | N35: CRR(Nreq)ref | O35: DR (%)ref | P35: PLIQref | Q35: εv,approx.ref | V35: Δε | W35: εvsite | X35: εv,calibratedsite | Y35: εv,calibratedsite (%) | Z35: DFi | AA35: ε*t*DFi | AB35: t*DFi | AC35: εv,eqv.site | AD35: Ssite (m) | AE35: εi*Dfi*Σti | AF35: Σ(ti*DFi) | AG35: εisite | AH35: Si (cm) | AI35: Ssite (cm)
A36: =IF(Inputs!B13="","",IF(units=2,CONVERT(Inputs!B13,"ft","m"),Inputs!B13)) -> 0.4572 | B36: =IF(Inputs!G13="","",IF(units=2,CONVERT(Inputs!G13,"ft","m"),Inputs!G13)) -> 0.9144 | C36: =C8 -> Susceptible | D36: =IF(A36="",NA(),'PB Liquefaction Initiation'!D43) -> 32.632 | E36: =EXP(('PB Liquefaction Initiation'!J43-(29.06*LN(7.5))+15.25)/13.79) -> 0.9101578081 | F36: =SQRT(D36/60)*100 -> 73.74731634 | G36: =_xlfn.NORM.S.DIST(-(D36-'PB Liquefaction Initiation'!J43)/4.21,TRUE) -> 0.9870045884 | H36: =MAX(0,((1.879*LN((780.416*LN(E36/(0.361*LN(F36)-0.579))-D36+2442.465)/(636.613*D36+306.732))+5.583)/100)*G36) -> 0.01447354626 | M36: =IF(A36="",NA(),17.79) -> 17.79 | N36: =IF(A36="",NA(),EXP(($B$33-(29.06*LN(7.5))+15.25)/13.79)) -> 1.521422864 | O36: =SQRT(M36/60)*100 -> 54.45181356 | P36: =_xlfn.NORM.S.DIST(-(M36-$B$33)/4.21,TRUE) -> 1 | Q36: =MAX(0,((1.879*LN((780.416*LN(N36/(0.361*LN(O36)-0.579))-M36+2442.465)/(636.613*M36+306.732))+5.583)/100)*P36) -> 0.02950954089 | V36: =LN(H36+0.01)/LN(Q36+0.01) -> 1.148225877 | W36: =MAX(0,EXP(V36*LN($B$32/100+0.01))-0.01) -> 0.009903037875 | X36: =6.6896*W36^2+0.883*W36 -> 0.009400432581 | Y36: =X36*100 -> 0.9400432581 | Z36: =IF(A36="",NA(),MAX(0,1-(A36/18))) -> 0.9746 | AA36: =X36*B36*Z36 -> 0.008377423361 | AB36: =IF(OR(A36="",C36="Not_susc."),NA(),B36*Z36) -> 0.89117424 | AC36: =SUMIFS(AA36:AA55,C36:C55,"=Susceptible",A36:A55,"<18")/SUMIFS(AB36:AB55,C36:C55,"=Susceptible",A36:A55,"<18") -> 0.02611255942 | AD36: =1.15*AC36*SUMIFS(B36:B55,C36:C55,"=Susceptible",A36:A55,"<18") -> 0.4301897934 | AE36: =X36*Z36*SUMIFS($B$36:$B$55,$C$36:$C$55,"=Susceptible",$A$36:$A$55,"<18") -> 0.1312462993 | AF36: =SUMIF(C36:C55,"=Susceptible",AB36:AB55) -> 7.36819456 | AG36: =AE36/$AF$36 -> 0.01781254529 | AH36: =1.15*AG36*B36*100 -> 1.873096013 | AI36: =SUMIF(C36:C55,"=Susceptible",AH36:AH55) -> 43.01897934
A37: =IF(Inputs!B14="","",IF(units=2,CONVERT(Inputs!B14,"ft","m"),Inputs!B14)) -> 1.6764 | B37: =IF(Inputs!G14="","",IF(units=2,CONVERT(Inputs!G14,"ft","m"),Inputs!G14)) -> 1.524 | C37: =C9 -> Susceptible | D37: =IF(A37="",NA(),'PB Liquefaction Initiation'!D44) -> 10.62149159 | E37: =EXP(('PB Liquefaction Initiation'!J44-(29.06*LN(7.5))+15.25)/13.79) -> 1.29164763 | F37: =SQRT(D37/60)*100 -> 42.07432232 | G37: =_xlfn.NORM.S.DIST(-(D37-'PB Liquefaction Initiation'!J44)/4.21,TRUE) -> 1 | H37: =MAX(0,((1.879*LN((780.416*LN(E37/(0.361*LN(F37)-0.579))-D37+2442.465)/(636.613*D37+306.732))+5.583)/100)*G37) -> 0.03866059246 | M37: 17.79 | N37: 1.521422864 | O37: =SQRT(M37/60)*100 -> 54.45181356 | P37: 1 | Q37: =MAX(0,((1.879*LN((780.416*LN(N37/(0.361*LN(O37)-0.579))-M37+2442.465)/(636.613*M37+306.732))+5.583)/100)*P37) -> 0.02950954089 | V37: 0.9355265894 | W37: 0.0311178501 | X37: =6.6896*W37^2+0.883*W37 -> 0.03395473909 | Y37: =X37*100 -> 3.395473909 | Z37: =IF(A37="",NA(),MAX(0,1-(A37/18))) -> 0.9068666667 | AA37: =X37*B37*Z37 -> 0.04692764969 | AB37: =IF(OR(A37="",C37="Not_susc."),NA(),B37*Z37) -> 1.3820648 | AE37: =X37*Z37*SUMIFS($B$36:$B$55,$C$36:$C$55,"=Susceptible",$A$36:$A$55,"<18") -> 0.4411199071 | AG37: =AE37/$AF$36 -> 0.05986811334 | AH37: =1.15*AG37*B37*100 -> 10.49248554 | AI37: =IF(OR(C37="",C37="Not_susc."),AI38,AI38+AH37) -> 41.14588332
A38: =IF(Inputs!B15="","",IF(units=2,CONVERT(Inputs!B15,"ft","m"),Inputs!B15)) -> 3.2004 | B38: =IF(Inputs!G15="","",IF(units=2,CONVERT(Inputs!G15,"ft","m"),Inputs!G15)) -> 1.524 | C38: Susceptible | D38: =IF(A38="",NA(),'PB Liquefaction Initiation'!D45) -> 13.32533679 | E38: =EXP(('PB Liquefaction Initiation'!J45-(29.06*LN(7.5))+15.25)/13.79) -> 1.516224927 | F38: 47.12631393 | G38: =_xlfn.NORM.S.DIST(-(D38-'PB Liquefaction Initiation'!J45)/4.21,TRUE) -> 1 | H38: 0.03510144096 | M38: 17.79 | N38: 1.521422864 | O38: =SQRT(M38/60)*100 -> 54.45181356 | P38: 1 | Q38: =MAX(0,((1.879*LN((780.416*LN(N38/(0.361*LN(O38)-0.579))-M38+2442.465)/(636.613*M38+306.732))+5.583)/100)*P38) -> 0.02950954089 | V38: 0.9590333388 | W38: 0.02794944924 | X38: 0.02990508997 | Y38: 2.990508997 | Z38: 0.8222 | AA38: =X38*B38*Z38 -> 0.03747205861 | AB38: 1.2530328 | AE38: 0.352237351 | AG38: 0.04780510994 | AH38: 8.378323567 | AI38: 30.65339778
A39: =IF(Inputs!B16="","",IF(units=2,CONVERT(Inputs!B16,"ft","m"),Inputs!B16)) -> 4.572 | B39: =IF(Inputs!G16="","",IF(units=2,CONVERT(Inputs!G16,"ft","m"),Inputs!G16)) -> 1.2192 | C39: Not_susc. | D39: =IF(A39="",NA(),'PB Liquefaction Initiation'!D46) -> 4.032025234 | E39: =EXP(('PB Liquefaction Initiation'!J46-(29.06*LN(7.5))+15.25)/13.79) ->  | F39: 25.92304391 | G39: =_xlfn.NORM.S.DIST(-(D39-'PB Liquefaction Initiation'!J46)/4.21,TRUE) ->  | M39: 17.79 | N39: 1.521422864 | O39: 54.45181356 | P39: 1 | Q39: 0.02950954089 | Z39: 0.746 | AI39: 22.27507421
A40: =IF(Inputs!B17="","",IF(units=2,CONVERT(Inputs!B17,"ft","m"),Inputs!B17)) -> 6.2484 | B40: =IF(Inputs!G17="","",IF(units=2,CONVERT(Inputs!G17,"ft","m"),Inputs!G17)) -> 2.1336 | C40: Susceptible | D40: =IF(A40="",NA(),'PB Liquefaction Initiation'!D47) -> 22.24721994 | E40: =EXP(('PB Liquefaction Initiation'!J47-(29.06*LN(7.5))+15.25)/13.79) -> 1.698278755 | F40: 60.89228187 | G40: =_xlfn.NORM.S.DIST(-(D40-'PB Liquefaction Initiation'!J47)/4.21,TRUE) -> 1 | H40: 0.02570547887 | M40: 17.79 | N40: 1.521422864 | O40: 54.45181356 | P40: 1 | Q40: 0.02950954089 | V40: 1.031331279 | W40: 0.01965494258 | X40: 0.01993961895 | Y40: 1.993961895 | Z40: 0.6528666667 | AA40: 0.02777501824 | AB40: 1.39295632 | AE40: 0.1864894082 | AG40: 0.02531005481 | AH40: 6.210176289 | AI40: 22.27507421
A41: =IF(Inputs!B18="","",IF(units=2,CONVERT(Inputs!B18,"ft","m"),Inputs!B18)) -> 7.7724 | B41: =IF(Inputs!G18="","",IF(units=2,CONVERT(Inputs!G18,"ft","m"),Inputs!G18)) -> 0.9144 | C41: Susceptible | D41: =IF(A41="",NA(),'PB Liquefaction Initiation'!D48) -> 30.42648255 | E41: =EXP(('PB Liquefaction Initiation'!J48-(29.06*LN(7.5))+15.25)/13.79) -> 1.701096364 | F41: 71.21151891 | G41: =_xlfn.NORM.S.DIST(-(D41-'PB Liquefaction Initiation'!J48)/4.21,TRUE) -> 0.9999992018 | H41: 0.01957680312 | M41: 17.79 | N41: 1.521422864 | O41: 54.45181356 | P41: 1 | Q41: 0.02950954089 | V41: 1.089610868 | W41: 0.01430841761 | X41: 0.01400390001 | Y41: 1.400390001 | Z41: 0.5682 | AA41: 0.007275895415 | AB41: 0.51956208 | AE41: 0.1139890282 | AG41: 0.01547041507 | AH41: 1.626806967 | AI41: 16.06489792
A42: =IF(Inputs!B19="","",IF(units=2,CONVERT(Inputs!B19,"ft","m"),Inputs!B19)) -> 9.2964 | B42: =IF(Inputs!G19="","",IF(units=2,CONVERT(Inputs!G19,"ft","m"),Inputs!G19)) -> 2.1336 | C42: Susceptible | D42: =IF(A42="",NA(),'PB Liquefaction Initiation'!D49) -> 20.88413372 | E42: =EXP(('PB Liquefaction Initiation'!J49-(29.06*LN(7.5))+15.25)/13.79) -> 1.661063438 | F42: 58.99736395 | G42: =_xlfn.NORM.S.DIST(-(D42-'PB Liquefaction Initiation'!J49)/4.21,TRUE) -> 1 | H42: 0.02682866851 | M42: 17.79 | N42: 1.521422864 | O42: 54.45181356 | P42: 1 | Q42: 0.02950954089 | V42: 1.021745891 | W42: 0.02064063108 | X42: 0.02107568534 | Y42: 2.107568534 | Z42: 0.4835333333 | AA42: 0.02174308317 | AB42: 1.03166672 | AE42: 0.1459892727 | AG42: 0.0198134389 | AH42: 4.861504622 | AI42: 14.43809095
A43: =IF(Inputs!B20="","",IF(units=2,CONVERT(Inputs!B20,"ft","m"),Inputs!B20)) -> 10.8204 | B43: =IF(Inputs!G20="","",IF(units=2,CONVERT(Inputs!G20,"ft","m"),Inputs!G20)) -> 0.9144 | C43: Susceptible | D43: =IF(A43="",NA(),'PB Liquefaction Initiation'!D50) -> 9.151475893 | E43: =EXP(('PB Liquefaction Initiation'!J50-(29.06*LN(7.5))+15.25)/13.79) -> 1.59660167 | F43: 39.05439773 | G43: =_xlfn.NORM.S.DIST(-(D43-'PB Liquefaction Initiation'!J50)/4.21,TRUE) -> 1 | H43: 0.04257667017 | M43: 17.79 | N43: 1.521422864 | O43: 54.45181356 | P43: 1 | Q43: 0.02950954089 | V43: 0.9115718166 | W43: 0.03461892072 | X43: 0.03858578971 | Y43: 3.858578971 | Z43: 0.3988666667 | AA43: 0.01407315122 | AB43: 0.36472368 | AE43: 0.2204793691 | AG43: 0.02992311988 | AH43: 3.146595594 | AI43: 9.576586333
A44: =IF(Inputs!B21="","",IF(units=2,CONVERT(Inputs!B21,"ft","m"),Inputs!B21)) -> 12.4968 | B44: =IF(Inputs!G21="","",IF(units=2,CONVERT(Inputs!G21,"ft","m"),Inputs!G21)) -> 2.4384 | C44: Not_susc. | D44: =IF(A44="",NA(),'PB Liquefaction Initiation'!D51) -> 4.144728715 | E44: =EXP(('PB Liquefaction Initiation'!J51-(29.06*LN(7.5))+15.25)/13.79) ->  | F44: 26.28284838 | G44: =_xlfn.NORM.S.DIST(-(D44-'PB Liquefaction Initiation'!J51)/4.21,TRUE) ->  | M44: 17.79 | N44: 1.521422864 | O44: 54.45181356 | P44: 1 | Q44: 0.02950954089 | Z44: 0.3057333333 | AI44: 6.429990739
A45: =IF(Inputs!B22="","",IF(units=2,CONVERT(Inputs!B22,"ft","m"),Inputs!B22)) -> 13.716 | B45: =IF(Inputs!G22="","",IF(units=2,CONVERT(Inputs!G22,"ft","m"),Inputs!G22)) -> 0.9144 | C45: Susceptible | D45: =IF(A45="",NA(),'PB Liquefaction Initiation'!D52) -> 2.063259346 | E45: =EXP(('PB Liquefaction Initiation'!J52-(29.06*LN(7.5))+15.25)/13.79) -> 1.478244145 | F45: 18.54390891 | G45: =_xlfn.NORM.S.DIST(-(D45-'PB Liquefaction Initiation'!J52)/4.21,TRUE) -> 1 | H45: 0.06934451167 | M45: 17.79 | N45: 1.521422864 | O45: 54.45181356 | P45: 1 | Q45: 0.02950954089 | V45: 0.7842119743 | W45: 0.05889709204 | X45: 0.07521146797 | Y45: 7.521146797 | Z45: 0.238 | AA45: 0.01636806118 | AB45: 0.2176272 | AE45: 0.2564329585 | AG45: 0.03480268557 | AH45: 3.659711204 | AI45: 6.429990739
A46: =IF(Inputs!B23="","",IF(units=2,CONVERT(Inputs!B23,"ft","m"),Inputs!B23)) -> 15.6972 | B46: =IF(Inputs!G23="","",IF(units=2,CONVERT(Inputs!G23,"ft","m"),Inputs!G23)) -> 2.1336 | C46: Susceptible | D46: =IF(A46="",NA(),'PB Liquefaction Initiation'!D53) -> 10.32284758 | E46: =EXP(('PB Liquefaction Initiation'!J53-(29.06*LN(7.5))+15.25)/13.79) -> 1.433009847 | F46: 41.47860409 | G46: =_xlfn.NORM.S.DIST(-(D46-'PB Liquefaction Initiation'!J53)/4.21,TRUE) -> 1 | H46: 0.03973823818 | M46: 17.79 | N46: 1.521422864 | O46: 54.45181356 | P46: 1 | Q46: 0.02950954089 | V46: 0.9287475551 | W46: 0.03207977837 | X46: 0.03521079314 | Y46: 3.521079314 | Z46: 0.1279333333 | AA46: 0.009611087391 | AB46: 0.27295856 | AE46: 0.06453158677 | AG46: 0.008758127414 | AH46: 2.148929175 | AI46: 2.770279535
A47: =IF(Inputs!B24="","",IF(units=2,CONVERT(Inputs!B24,"ft","m"),Inputs!B24)) -> 17.3736 | B47: =IF(Inputs!G24="","",IF(units=2,CONVERT(Inputs!G24,"ft","m"),Inputs!G24)) -> 1.2192 | C47: Susceptible | D47: =IF(A47="",NA(),'PB Liquefaction Initiation'!D54) -> 2.9720421 | E47: =EXP(('PB Liquefaction Initiation'!J54-(29.06*LN(7.5))+15.25)/13.79) -> 1.418981708 | F47: 22.25624294 | G47: =_xlfn.NORM.S.DIST(-(D47-'PB Liquefaction Initiation'!J54)/4.21,TRUE) -> 1 | H47: 0.06283371559 | M47: 17.79 | N47: 1.521422864 | O47: 54.45181356 | P47: 1 | Q47: 0.02950954089 | V47: 0.8107098566 | W47: 0.05294259566 | X47: 0.06549871513 | Y47: 6.549871513 | Z47: 0.0348 | AA47: 0.002778989965 | AB47: 0.04242816 | AE47: 0.03265313209 | AG47: 0.004431632719 | AH47: 0.6213503603 | AI47: 0.6213503603
A48: =IF(Inputs!B25="","",IF(units=2,CONVERT(Inputs!B25,"ft","m"),Inputs!B25)) ->  | B48: =IF(Inputs!G25="","",IF(units=2,CONVERT(Inputs!G25,"ft","m"),Inputs!G25)) ->  | D48: =IF(A48="",NA(),'PB Liquefaction Initiation'!D55) ->  | E48: =EXP(('PB Liquefaction Initiation'!J55-(29.06*LN(7.5))+15.25)/13.79) ->  | G48: =_xlfn.NORM.S.DIST(-(D48-'PB Liquefaction Initiation'!J55)/4.21,TRUE) ->  | AI48: 0
A49: =IF(Inputs!B26="","",IF(units=2,CONVERT(Inputs!B26,"ft","m"),Inputs!B26)) ->  | B49: =IF(Inputs!G26="","",IF(units=2,CONVERT(Inputs!G26,"ft","m"),Inputs!G26)) ->  | D49: =IF(A49="",NA(),'PB Liquefaction Initiation'!D56) ->  | E49: =EXP(('PB Liquefaction Initiation'!J56-(29.06*LN(7.5))+15.25)/13.79) ->  | G49: =_xlfn.NORM.S.DIST(-(D49-'PB Liquefaction Initiation'!J56)/4.21,TRUE) ->  | AI49: 0
A50: =IF(Inputs!B27="","",IF(units=2,CONVERT(Inputs!B27,"ft","m"),Inputs!B27)) ->  | B50: =IF(Inputs!G27="","",IF(units=2,CONVERT(Inputs!G27,"ft","m"),Inputs!G27)) ->  | D50: =IF(A50="",NA(),'PB Liquefaction Initiation'!D57) ->  | E50: =EXP(('PB Liquefaction Initiation'!J57-(29.06*LN(7.5))+15.25)/13.79) ->  | G50: =_xlfn.NORM.S.DIST(-(D50-'PB Liquefaction Initiation'!J57)/4.21,TRUE) ->  | AI50: 0
A51: =IF(Inputs!B28="","",IF(units=2,CONVERT(Inputs!B28,"ft","m"),Inputs!B28)) ->  | B51: =IF(Inputs!G28="","",IF(units=2,CONVERT(Inputs!G28,"ft","m"),Inputs!G28)) ->  | D51: =IF(A51="",NA(),'PB Liquefaction Initiation'!D58) ->  | E51: =EXP(('PB Liquefaction Initiation'!J58-(29.06*LN(7.5))+15.25)/13.79) ->  | G51: =_xlfn.NORM.S.DIST(-(D51-'PB Liquefaction Initiation'!J58)/4.21,TRUE) ->  | AI51: 0
A52: =IF(Inputs!B29="","",IF(units=2,CONVERT(Inputs!B29,"ft","m"),Inputs!B29)) ->  | B52: =IF(Inputs!G29="","",IF(units=2,CONVERT(Inputs!G29,"ft","m"),Inputs!G29)) ->  | D52: =IF(A52="",NA(),'PB Liquefaction Initiation'!D59) ->  | E52: =EXP(('PB Liquefaction Initiation'!J59-(29.06*LN(7.5))+15.25)/13.79) ->  | G52: =_xlfn.NORM.S.DIST(-(D52-'PB Liquefaction Initiation'!J59)/4.21,TRUE) ->  | AI52: 0
A53: =IF(Inputs!B30="","",IF(units=2,CONVERT(Inputs!B30,"ft","m"),Inputs!B30)) ->  | B53: =IF(Inputs!G30="","",IF(units=2,CONVERT(Inputs!G30,"ft","m"),Inputs!G30)) ->  | D53: =IF(A53="",NA(),'PB Liquefaction Initiation'!D60) ->  | E53: =EXP(('PB Liquefaction Initiation'!J60-(29.06*LN(7.5))+15.25)/13.79) ->  | G53: =_xlfn.NORM.S.DIST(-(D53-'PB Liquefaction Initiation'!J60)/4.21,TRUE) ->  | AI53: 0
A54: =IF(Inputs!B31="","",IF(units=2,CONVERT(Inputs!B31,"ft","m"),Inputs!B31)) ->  | B54: =IF(Inputs!G31="","",IF(units=2,CONVERT(Inputs!G31,"ft","m"),Inputs!G31)) ->  | D54: =IF(A54="",NA(),'PB Liquefaction Initiation'!D61) ->  | E54: =EXP(('PB Liquefaction Initiation'!J61-(29.06*LN(7.5))+15.25)/13.79) ->  | G54: =_xlfn.NORM.S.DIST(-(D54-'PB Liquefaction Initiation'!J61)/4.21,TRUE) ->  | AI54: 0
A55: =IF(Inputs!B32="","",IF(units=2,CONVERT(Inputs!B32,"ft","m"),Inputs!B32)) ->  | B55: =IF(Inputs!G32="","",IF(units=2,CONVERT(Inputs!G32,"ft","m"),Inputs!G32)) ->  | D55: =IF(A55="",NA(),'PB Liquefaction Initiation'!D62) ->  | E55: =EXP(('PB Liquefaction Initiation'!J62-(29.06*LN(7.5))+15.25)/13.79) ->  | G55: =_xlfn.NORM.S.DIST(-(D55-'PB Liquefaction Initiation'!J62)/4.21,TRUE) ->  | AI55: =IF(OR(C55="",C55="Not_susc."),0,AH55) -> 0

Sheet Det Settlement
A1: Simplified Performance-based Settlement using Ishihara & Yoshimine (1992)
A3: Depth to Water: | B3: =IF(design_gw="",NA(),IF(units=2,CONVERT(design_gw,"ft","m"),design_gw)) -> 0 | C3: m
D5: Compute Deterministic Vertical Strain | L5: Compute Ground Surface Settlment | Q5: Compute Settlement for Each Layer
A6: Depth (m) | B6: Thickness (m) | C6: Susceptible? | D6: (N1)60,Cssite | E6: CRR(Nsite) | F6: CSRsite | G6: FSLsite | H6: Fαsite | I6: γLIMsite | J6: γMAXsite | K6: εvsite | L6: DFi | M6: ε*t*DFi | N6: t*DFi | O6: εv,eqv.site | P6: Ssite (m) | Q6: εi*Dfi*Σti | R6: Σ(ti*DFi) | S6: εisite | T6: Si (cm) | U6: Ssite (cm)
A7: =IF(Inputs!B13="","",IF(units=2,CONVERT(Inputs!B13,"ft","m"),Inputs!B13)) -> 0.4572 | B7: =IF(Inputs!G13="","",IF(units=2,CONVERT(Inputs!G13,"ft","m"),Inputs!G13)) -> 0.9144 | C7: =IF(A7="","",IF(OR(A7<$B$3,Inputs!J13="No"),"Not_susc.","Susceptible")) -> Susceptible | D7: =IF(OR(A7="",Method_BI=FALSE),NA(),'PB Liquefaction Initiation'!F10) -> 33.87418545 | E7: =IF(OR(A7="",Method_BI=FALSE),NA(),'Det Liquefaction Initiation'!T10) -> 0.76751784 | F7: =IF('PB Liquefaction Initiation'!P10="",NA(),'Det Liquefaction Initiation'!S10) -> 0.4139638381 | G7: =E7/F7 -> 1.854069775 | H7: =0.032+(0.69*SQRT(D7))-(0.13*D7) -> -0.3557382711 | I7: =MAX(0,1.859*(1.1-SQRT(D7/46))^3) -> 0.02630265233 | J7: =IF(G7<H7,I7,IF(G7<2,MIN(I7,0.035*(2-G7)*((1-H7)/(G7-H7))),0)) -> 0.003133535384 | K7: =MAX(0,1.5*EXP(-0.369*SQRT(D7))*MIN(0.08,J7)) -> 0.0005488063627 | L7: =IF(A7="",NA(),MAX(0,1-(A7/18))) -> 0.9746 | M7: =K7*B7*L7 -> 0.0004890820932 | N7: =IF(OR(A7="",C7="Not_susc."),NA(),B7*L7) -> 0.89117424 | O7: =SUMIFS(M7:M26,C7:C26,"=Susceptible",A7:A26,"<18")/SUMIFS(N7:N26,C7:C26,"=Susceptible",A7:A26,"<18") -> 0.02537465173 | P7: =0.9*O7*SUMIFS(B7:B26,C7:C26,"=Susceptible",A7:A26,"<18") -> 0.3271563998 | Q7: =K7*L7*SUMIFS($B$7:$B$26,$C$7:$C$26,"=Susceptible",$A$7:$A$26,"<18") -> 0.007662286127 | R7: =SUMIF(C7:C26,"=Susceptible",N7:$N$26) -> 7.36819456 | S7: =Q7/$R$7 -> 0.001039913654 | T7: =0.9*S7*B7*100 -> 0.08558073405 | U7: =SUMIF(C7:C26,"=Susceptible",(T7:T26)) -> 32.71563998
A8: =IF(Inputs!B14="","",IF(units=2,CONVERT(Inputs!B14,"ft","m"),Inputs!B14)) -> 1.6764 | B8: =IF(Inputs!G14="","",IF(units=2,CONVERT(Inputs!G14,"ft","m"),Inputs!G14)) -> 1.524 | C8: =IF(A8="","",IF(OR(A8<$B$3,Inputs!J14="No"),"Not_susc.","Susceptible")) -> Susceptible | D8: =IF(OR(A8="",Method_BI=FALSE),NA(),'PB Liquefaction Initiation'!F11) -> 11.90043878 | E8: =IF(OR(A8="",Method_BI=FALSE),NA(),'Det Liquefaction Initiation'!T11) -> 0.1138839587 | F8: =IF('PB Liquefaction Initiation'!P11="",NA(),'Det Liquefaction Initiation'!S11) -> 0.7537279767 | G8: =E8/F8 -> 0.1510942438 | H8: =0.032+(0.69*SQRT(D8))-(0.13*D8) -> 0.8652368277 | I8: =MAX(0,1.859*(1.1-SQRT(D8/46))^3) -> 0.3844640273 | J8: =IF(G8<H8,I8,IF(G8<2,MIN(I8,0.035*(2-G8)*((1-H8)/(G8-H8))),0)) -> 0.3844640273 | K8: =MAX(0,1.5*EXP(-0.369*SQRT(D8))*MIN(0.08,J8)) -> 0.03360087062 | L8: 0.9068666667 | M8: =K8*B8*L8 -> 0.04643858054 | N8: 1.3820648 | Q8: =K8*L8*SUMIFS($B$7:$B$26,$C$7:$C$26,"=Susceptible",$A$7:$A$26,"<18") -> 0.436522657 | S8: 0.05924418166 | T8: 8.125931957 | U8: =IF(OR(C8="",C8="Not_susc."),U9,U9+T8) -> 32.63005925
A9: =IF(Inputs!B15="","",IF(units=2,CONVERT(Inputs!B15,"ft","m"),Inputs!B15)) -> 3.2004 | B9: =IF(Inputs!G15="","",IF(units=2,CONVERT(Inputs!G15,"ft","m"),Inputs!G15)) -> 1.524 | C9: =IF(A9="","",IF(OR(A9<$B$3,Inputs!J15="No"),"Not_susc.","Susceptible")) -> Susceptible | D9: =IF(OR(A9="",Method_BI=FALSE),NA(),'PB Liquefaction Initiation'!F12) -> 13.69340367 | E9: =IF(OR(A9="",Method_BI=FALSE),NA(),'Det Liquefaction Initiation'!T12) -> 0.1257622395 | F9: =IF('PB Liquefaction Initiation'!P12="",NA(),'Det Liquefaction Initiation'!S12) -> 0.7665870774 | G9: 0.1640547345 | H9: 0.8051748725 | I9: 0.3167684257 | J9: 0.3167684257 | K9: 0.03063128983 | L9: 0.8222 | M9: =K9*B9*L9 -> 0.03838201086 | N9: 1.2530328 | Q9: 0.3607909021 | S9: 0.0489659847 | T9: 6.716174461 | U9: 24.50412729
A10: =IF(Inputs!B16="","",IF(units=2,CONVERT(Inputs!B16,"ft","m"),Inputs!B16)) -> 4.572 | B10: =IF(Inputs!G16="","",IF(units=2,CONVERT(Inputs!G16,"ft","m"),Inputs!G16)) -> 1.2192 | C10: =IF(A10="","",IF(OR(A10<$B$3,Inputs!J16="No"),"Not_susc.","Susceptible")) -> Not_susc. | D10: =IF(OR(A10="",Method_BI=FALSE),NA(),'PB Liquefaction Initiation'!F13) -> 7.589169573 | E10: =IF(OR(A10="",Method_BI=FALSE),NA(),'Det Liquefaction Initiation'!T13) -> 0.0881352653 | F10: =IF('PB Liquefaction Initiation'!P13="",NA(),'Det Liquefaction Initiation'!S13) ->  | H10: 0.9462508301 | I10: 0.6208981994 | L10: 0.746 | U10: 17.78795283
A11: =IF(Inputs!B17="","",IF(units=2,CONVERT(Inputs!B17,"ft","m"),Inputs!B17)) -> 6.2484 | B11: =IF(Inputs!G17="","",IF(units=2,CONVERT(Inputs!G17,"ft","m"),Inputs!G17)) -> 2.1336 | C11: =IF(A11="","",IF(OR(A11<$B$3,Inputs!J17="No"),"Not_susc.","Susceptible")) -> Susceptible | D11: =IF(OR(A11="",Method_BI=FALSE),NA(),'PB Liquefaction Initiation'!F14) -> 21.70847391 | E11: =IF(OR(A11="",Method_BI=FALSE),NA(),'Det Liquefaction Initiation'!T14) -> 0.1977161342 | F11: =IF('PB Liquefaction Initiation'!P14="",NA(),'Det Liquefaction Initiation'!S14) -> 0.7146899863 | G11: 0.2766460116 | H11: 0.424770773 | I11: 0.1309888605 | J11: 0.1309888605 | K11: 0.02150389118 | L11: 0.6528666667 | M11: 0.02995398113 | N11: 1.39295632 | Q11: 0.2011195876 | S11: 0.02729564019 | T11: 5.241418012 | U11: 17.78795283
A12: =IF(Inputs!B18="","",IF(units=2,CONVERT(Inputs!B18,"ft","m"),Inputs!B18)) -> 7.7724 | B12: =IF(Inputs!G18="","",IF(units=2,CONVERT(Inputs!G18,"ft","m"),Inputs!G18)) -> 0.9144 | C12: =IF(A12="","",IF(OR(A12<$B$3,Inputs!J18="No"),"Not_susc.","Susceptible")) -> Susceptible | D12: =IF(OR(A12="",Method_BI=FALSE),NA(),'PB Liquefaction Initiation'!F15) -> 29.14039966 | E12: =IF(OR(A12="",Method_BI=FALSE),NA(),'Det Liquefaction Initiation'!T15) -> 0.377021157 | F12: =IF('PB Liquefaction Initiation'!P15="",NA(),'Det Liquefaction Initiation'!S15) -> 0.6488354902 | G12: 0.5810735736 | H12: -0.03150441026 | I12: 0.05226940158 | J12: 0.05226940158 | K12: 0.0106968151 | L12: 0.5682 | M12: 0.005557659503 | N12: 0.51956208 | Q12: 0.08706999888 | S12: 0.01181700594 | T12: 0.9724923208 | U12: 12.54653482
A13: =IF(Inputs!B19="","",IF(units=2,CONVERT(Inputs!B19,"ft","m"),Inputs!B19)) -> 9.2964 | B13: =IF(Inputs!G19="","",IF(units=2,CONVERT(Inputs!G19,"ft","m"),Inputs!G19)) -> 2.1336 | C13: =IF(A13="","",IF(OR(A13<$B$3,Inputs!J19="No"),"Not_susc.","Susceptible")) -> Susceptible | D13: =IF(OR(A13="",Method_BI=FALSE),NA(),'PB Liquefaction Initiation'!F16) -> 21.33763058 | E13: =IF(OR(A13="",Method_BI=FALSE),NA(),'Det Liquefaction Initiation'!T16) -> 0.1930984949 | F13: =IF('PB Liquefaction Initiation'!P16="",NA(),'Det Liquefaction Initiation'!S16) -> 0.7108944109 | G13: 0.2716275328 | H13: 0.4454024761 | I13: 0.1366758951 | J13: 0.1366758951 | K13: 0.02182338501 | L13: 0.4835333333 | M13: 0.02251446003 | N13: 1.03166672 | Q13: 0.1511685173 | S13: 0.02051635799 | T13: 3.939633127 | U13: 11.5740425
A14: =IF(Inputs!B20="","",IF(units=2,CONVERT(Inputs!B20,"ft","m"),Inputs!B20)) -> 10.8204 | B14: =IF(Inputs!G20="","",IF(units=2,CONVERT(Inputs!G20,"ft","m"),Inputs!G20)) -> 0.9144 | C14: =IF(A14="","",IF(OR(A14<$B$3,Inputs!J20="No"),"Not_susc.","Susceptible")) -> Susceptible | D14: =IF(OR(A14="",Method_BI=FALSE),NA(),'PB Liquefaction Initiation'!F17) -> 9.487639011 | E14: =IF(OR(A14="",Method_BI=FALSE),NA(),'Det Liquefaction Initiation'!T17) -> 0.09902136725 | F14: =IF('PB Liquefaction Initiation'!P17="",NA(),'Det Liquefaction Initiation'!S17) -> 0.7622661883 | G14: 0.1299039217 | H14: 0.9239457094 | I14: 0.5008095546 | J14: 0.5008095546 | K14: 0.03850921353 | L14: 0.3988666667 | M14: 0.01404522207 | N14: 0.36472368 | Q14: 0.2200418125 | S14: 0.02986373537 | T14: 2.457665966 | U14: 7.634409368
A15: =IF(Inputs!B21="","",IF(units=2,CONVERT(Inputs!B21,"ft","m"),Inputs!B21)) -> 12.4968 | B15: =IF(Inputs!G21="","",IF(units=2,CONVERT(Inputs!G21,"ft","m"),Inputs!G21)) -> 2.4384 | C15: =IF(A15="","",IF(OR(A15<$B$3,Inputs!J21="No"),"Not_susc.","Susceptible")) -> Not_susc. | D15: =IF(OR(A15="",Method_BI=FALSE),NA(),'PB Liquefaction Initiation'!F18) -> 7.303047698 | E15: =IF(OR(A15="",Method_BI=FALSE),NA(),'Det Liquefaction Initiation'!T18) -> 0.08655651776 | F15: =IF('PB Liquefaction Initiation'!P18="",NA(),'Det Liquefaction Initiation'!S18) ->  | H15: 0.9472702598 | I15: 0.641883826 | L15: 0.3057333333 | U15: 5.176743403
A16: =IF(Inputs!B22="","",IF(units=2,CONVERT(Inputs!B22,"ft","m"),Inputs!B22)) -> 13.716 | B16: =IF(Inputs!G22="","",IF(units=2,CONVERT(Inputs!G22,"ft","m"),Inputs!G22)) -> 0.9144 | C16: =IF(A16="","",IF(OR(A16<$B$3,Inputs!J22="No"),"Not_susc.","Susceptible")) -> Susceptible | D16: =IF(OR(A16="",Method_BI=FALSE),NA(),'PB Liquefaction Initiation'!F19) -> 1.632756664 | E16: =IF(OR(A16="",Method_BI=FALSE),NA(),'Det Liquefaction Initiation'!T19) -> 0.05902391094 | F16: =IF('PB Liquefaction Initiation'!P19="",NA(),'Det Liquefaction Initiation'!S19) -> 0.7362316221 | G16: 0.08017030125 | H16: 0.7014192662 | I16: 1.408288945 | J16: 1.408288945 | K16: 0.07488741695 | L16: 0.238 | M16: 0.01629753887 | N16: 0.2176272 | Q16: 0.2553281089 | S16: 0.03465273709 | T16: 2.851781652 | U16: 5.176743403
A17: =IF(Inputs!B23="","",IF(units=2,CONVERT(Inputs!B23,"ft","m"),Inputs!B23)) -> 15.6972 | B17: =IF(Inputs!G23="","",IF(units=2,CONVERT(Inputs!G23,"ft","m"),Inputs!G23)) -> 2.1336 | C17: =IF(A17="","",IF(OR(A17<$B$3,Inputs!J23="No"),"Not_susc.","Susceptible")) -> Susceptible | D17: =IF(OR(A17="",Method_BI=FALSE),NA(),'PB Liquefaction Initiation'!F20) -> 9.659921568 | E17: =IF(OR(A17="",Method_BI=FALSE),NA(),'Det Liquefaction Initiation'!T20) -> 0.100044076 | F17: =IF('PB Liquefaction Initiation'!P20="",NA(),'Det Liquefaction Initiation'!S20) -> 0.6988601747 | G17: 0.143153208 | H17: 0.920758787 | I17: 0.4913211176 | J17: 0.4913211176 | K17: 0.03811563071 | L17: 0.1279333333 | M17: 0.01040398767 | N17: 0.27295856 | Q17: 0.0698553458 | S17: 0.009480659778 | T17: 1.820514213 | U17: 2.324961751
A18: =IF(Inputs!B24="","",IF(units=2,CONVERT(Inputs!B24,"ft","m"),Inputs!B24)) -> 17.3736 | B18: =IF(Inputs!G24="","",IF(units=2,CONVERT(Inputs!G24,"ft","m"),Inputs!G24)) -> 1.2192 | C18: =IF(A18="","",IF(OR(A18<$B$3,Inputs!J24="No"),"Not_susc.","Susceptible")) -> Susceptible | D18: =IF(OR(A18="",Method_BI=FALSE),NA(),'PB Liquefaction Initiation'!F21) -> 2.375859012 | E18: =IF(OR(A18="",Method_BI=FALSE),NA(),'Det Liquefaction Initiation'!T21) -> 0.06219053943 | F18: =IF('PB Liquefaction Initiation'!P21="",NA(),'Det Liquefaction Initiation'!S21) -> 0.6821770233 | G18: 0.09116481105 | H18: 0.7866920298 | I18: 1.235741012 | J18: 1.235741012 | K18: 0.067946574 | L18: 0.0348 | M18: 0.002882848113 | N18: 0.04242816 | Q18: 0.03387346533 | S18: 0.004597254463 | T18: 0.5044475378 | U18: 0.5044475378
A19: =IF(Inputs!B25="","",IF(units=2,CONVERT(Inputs!B25,"ft","m"),Inputs!B25)) ->  | B19: =IF(Inputs!G25="","",IF(units=2,CONVERT(Inputs!G25,"ft","m"),Inputs!G25)) ->  | C19: =IF(A19="","",IF(OR(A19<$B$3,Inputs!J25="No"),"Not_susc.","Susceptible")) ->  | D19: =IF(OR(A19="",Method_BI=FALSE),NA(),'PB Liquefaction Initiation'!F22) ->  | E19: =IF(OR(A19="",Method_BI=FALSE),NA(),'Det Liquefaction Initiation'!T22) ->  | F19: =IF('PB Liquefaction Initiation'!P22="",NA(),'Det Liquefaction Initiation'!S22) ->  | U19: 0
A20: =IF(Inputs!B26="","",IF(units=2,CONVERT(Inputs!B26,"ft","m"),Inputs!B26)) ->  | B20: =IF(Inputs!G26="","",IF(units=2,CONVERT(Inputs!G26,"ft","m"),Inputs!G26)) ->  | C20: =IF(A20="","",IF(OR(A20<$B$3,Inputs!J26="No"),"Not_susc.","Susceptible")) ->  | D20: =IF(OR(A20="",Method_BI=FALSE),NA(),'PB Liquefaction Initiation'!F23) ->  | E20: =IF(OR(A20="",Method_BI=FALSE),NA(),'Det Liquefaction Initiation'!T23) ->  | F20: =IF('PB Liquefaction Initiation'!P23="",NA(),'Det Liquefaction Initiation'!S23) ->  | U20: 0
A21: =IF(Inputs!B27="","",IF(units=2,CONVERT(Inputs!B27,"ft","m"),Inputs!B27)) ->  | B21: =IF(Inputs!G27="","",IF(units=2,CONVERT(Inputs!G27,"ft","m"),Inputs!G27)) ->  | C21: =IF(A21="","",IF(OR(A21<$B$3,Inputs!J27="No"),"Not_susc.","Susceptible")) ->  | D21: =IF(OR(A21="",Method_BI=FALSE),NA(),'PB Liquefaction Initiation'!F24) ->  | E21: =IF(OR(A21="",Method_BI=FALSE),NA(),'Det Liquefaction Initiation'!T24) ->  | F21: =IF('PB Liquefaction Initiation'!P24="",NA(),'Det Liquefaction Initiation'!S24) ->  | U21: 0
A22: =IF(Inputs!B28="","",IF(units=2,CONVERT(Inputs!B28,"ft","m"),Inputs!B28)) ->  | B22: =IF(Inputs!G28="","",IF(units=2,CONVERT(Inputs!G28,"ft","m"),Inputs!G28)) ->  | C22: =IF(A22="","",IF(OR(A22<$B$3,Inputs!J28="No"),"Not_susc.","Susceptible")) ->  | D22: =IF(OR(A22="",Method_BI=FALSE),NA(),'PB Liquefaction Initiation'!F25) ->  | E22: =IF(OR(A22="",Method_BI=FALSE),NA(),'Det Liquefaction Initiation'!T25) ->  | F22: =IF('PB Liquefaction Initiation'!P25="",NA(),'Det Liquefaction Initiation'!S25) ->  | U22: 0
A23: =IF(Inputs!B29="","",IF(units=2,CONVERT(Inputs!B29,"ft","m"),Inputs!B29)) ->  | B23: =IF(Inputs!G29="","",IF(units=2,CONVERT(Inputs!G29,"ft","m"),Inputs!G29)) ->  | C23: =IF(A23="","",IF(OR(A23<$B$3,Inputs!J29="No"),"Not_susc.","Susceptible")) ->  | D23: =IF(OR(A23="",Method_BI=FALSE),NA(),'PB Liquefaction Initiation'!F26) ->  | E23: =IF(OR(A23="",Method_BI=FALSE),NA(),'Det Liquefaction Initiation'!T26) ->  | F23: =IF('PB Liquefaction Initiation'!P26="",NA(),'Det Liquefaction Initiation'!S26) ->  | U23: 0
A24: =IF(Inputs!B30="","",IF(units=2,CONVERT(Inputs!B30,"ft","m"),Inputs!B30)) ->  | B24: =IF(Inputs!G30="","",IF(units=2,CONVERT(Inputs!G30,"ft","m"),Inputs!G30)) ->  | C24: =IF(A24="","",IF(OR(A24<$B$3,Inputs!J30="No"),"Not_susc.","Susceptible")) ->  | D24: =IF(OR(A24="",Method_BI=FALSE),NA(),'PB Liquefaction Initiation'!F27) ->  | E24: =IF(OR(A24="",Method_BI=FALSE),NA(),'Det Liquefaction Initiation'!T27) ->  | F24: =IF('PB Liquefaction Initiation'!P27="",NA(),'Det Liquefaction Initiation'!S27) ->  | U24: 0
A25: =IF(Inputs!B31="","",IF(units=2,CONVERT(Inputs!B31,"ft","m"),Inputs!B31)) ->  | B25: =IF(Inputs!G31="","",IF(units=2,CONVERT(Inputs!G31,"ft","m"),Inputs!G31)) ->  | C25: =IF(A25="","",IF(OR(A25<$B$3,Inputs!J31="No"),"Not_susc.","Susceptible")) ->  | D25: =IF(OR(A25="",Method_BI=FALSE),NA(),'PB Liquefaction Initiation'!F28) ->  | E25: =IF(OR(A25="",Method_BI=FALSE),NA(),'Det Liquefaction Initiation'!T28) ->  | F25: =IF('PB Liquefaction Initiation'!P28="",NA(),'Det Liquefaction Initiation'!S28) ->  | U25: 0
A26: =IF(Inputs!B32="","",IF(units=2,CONVERT(Inputs!B32,"ft","m"),Inputs!B32)) ->  | B26: =IF(Inputs!G32="","",IF(units=2,CONVERT(Inputs!G32,"ft","m"),Inputs!G32)) ->  | C26: =IF(A26="","",IF(OR(A26<$B$3,Inputs!J32="No"),"Not_susc.","Susceptible")) ->  | D26: =IF(OR(A26="",Method_BI=FALSE),NA(),'PB Liquefaction Initiation'!F29) ->  | E26: =IF(OR(A26="",Method_BI=FALSE),NA(),'Det Liquefaction Initiation'!T29) ->  | F26: =IF('PB Liquefaction Initiation'!P29="",NA(),'Det Liquefaction Initiation'!S29) ->  | U26: =IF(OR(C26="",C26="Not_susc."),0,T26) -> 0
A29: Simplified Performance-based Settlement using Cetin et al. (2009)
D31: Compute Deterministic Vertical Strain | L31: Compute Ground Surface Settlment | Q31: Compute Settlement for Each Layer
A32: Depth (m) | B32: Thickness (m) | C32: Susceptible? | D32: (N1)60,Cssite | E32: CRR(Nreq)site | F32: DR (%)site | G32: εvsite | L32: DFi | M32: ε*t*DFi | N32: t*DFi | O32: εv,eqv.site | P32: Ssite (m) | Q32: εi*Dfi*Σti | R32: Σ(ti*DFi) | S32: εisite | T32: Si (cm) | U32: Ssite (cm)
A33: =IF(Inputs!B13="","",IF(units=2,CONVERT(Inputs!B13,"ft","m"),Inputs!B13)) -> 0.4572 | B33: =IF(Inputs!G13="","",IF(units=2,CONVERT(Inputs!G13,"ft","m"),Inputs!G13)) -> 0.9144 | C33: =C7 -> Susceptible | D33: =IF(A33="",NA(),'PB Liquefaction Initiation'!D43) -> 32.632 | E33: =EXP(('Det Liquefaction Initiation'!K43-(29.06*LN(7.5))+15.25)/13.79) -> 0.4414901585 | F33: =SQRT(D33/60)*100 -> 73.74731634 | G33: =MAX(0,((1.879*LN((780.416*LN(E33/(0.361*LN(F33)-0.579))-D33+2442.465)/(636.613*D33+306.732))+5.583)/100)) -> 0.009519507836 | L33: =IF(A33="",NA(),MAX(0,1-(A33/18))) -> 0.9746 | M33: =G33*B33*L33 -> 0.008483540161 | N33: =IF(OR(A33="",C33="Not_susc."),NA(),B33*L33) -> 0.89117424 | O33: =SUMIFS(M33:M52,C33:C52,"=Susceptible",A33:A52,"<18")/SUMIFS(N33:N52,C33:C52,"=Susceptible",A33:A52,"<18") -> 0.02741461894 | P33: =1.15*O33*SUMIFS(B33:B52,C33:C52,"=Susceptible",A33:A52,"<18") -> 0.4516404949 | Q33: =G33*L33*SUMIFS($B$33:$B$52,$C$33:$C$52,"=Susceptible",$A$33:$A$52,"<18") -> 0.1329087959 | R33: =SUMIF(C33:C52,"=Susceptible",N33:N52) -> 7.36819456 | S33: =Q33/$R$33 -> 0.01803817676 | T33: =1.15*S33*B33*100 -> 1.896822515 | U33: =SUMIF(C33:C52,"=Susceptible",T33:T52) -> 45.16404949
A34: =IF(Inputs!B14="","",IF(units=2,CONVERT(Inputs!B14,"ft","m"),Inputs!B14)) -> 1.6764 | B34: =IF(Inputs!G14="","",IF(units=2,CONVERT(Inputs!G14,"ft","m"),Inputs!G14)) -> 1.524 | C34: Susceptible | D34: =IF(A34="",NA(),'PB Liquefaction Initiation'!D44) -> 10.62149159 | E34: =EXP(('Det Liquefaction Initiation'!K44-(29.06*LN(7.5))+15.25)/13.79) -> 0.6311062269 | F34: =SQRT(D34/60)*100 -> 42.07432232 | G34: 0.03453376801 | L34: 0.9068666667 | M34: =G34*B34*L34 -> 0.04772790517 | N34: 1.3820648 | Q34: =G34*L34*SUMIFS($B$33:$B$52,$C$33:$C$52,"=Susceptible",$A$33:$A$52,"<18") -> 0.4486423086 | S34: 0.06088904208 | T34: 10.67141352 | U34: =IF(OR(C34="",C34="Not_susc."),U35,U35+T34) -> 43.26722697
A35: =IF(Inputs!B15="","",IF(units=2,CONVERT(Inputs!B15,"ft","m"),Inputs!B15)) -> 3.2004 | B35: =IF(Inputs!G15="","",IF(units=2,CONVERT(Inputs!G15,"ft","m"),Inputs!G15)) -> 1.524 | C35: Susceptible | D35: =IF(A35="",NA(),'PB Liquefaction Initiation'!D45) -> 13.32533679 | E35: =EXP(('Det Liquefaction Initiation'!K45-(29.06*LN(7.5))+15.25)/13.79) -> 0.7521116924 | F35: 47.12631393 | G35: 0.03119768006 | L35: 0.8222 | M35: =G35*B35*L35 -> 0.0390917164 | N35: 1.2530328 | Q35: 0.3674621341 | S35: 0.04987139402 | T35: 8.740460516 | U35: 32.59581345
A36: =IF(Inputs!B16="","",IF(units=2,CONVERT(Inputs!B16,"ft","m"),Inputs!B16)) -> 4.572 | B36: =IF(Inputs!G16="","",IF(units=2,CONVERT(Inputs!G16,"ft","m"),Inputs!G16)) -> 1.2192 | C36: Not_susc. | D36: =IF(A36="",NA(),'PB Liquefaction Initiation'!D46) -> 4.032025234 | E36: =EXP(('Det Liquefaction Initiation'!K46-(29.06*LN(7.5))+15.25)/13.79) ->  | F36: 25.92304391 | L36: 0.746 | U36: 23.85535294
A37: =IF(Inputs!B17="","",IF(units=2,CONVERT(Inputs!B17,"ft","m"),Inputs!B17)) -> 6.2484 | B37: =IF(Inputs!G17="","",IF(units=2,CONVERT(Inputs!G17,"ft","m"),Inputs!G17)) -> 2.1336 | C37: Susceptible | D37: =IF(A37="",NA(),'PB Liquefaction Initiation'!D47) -> 22.24721994 | E37: =EXP(('Det Liquefaction Initiation'!K47-(29.06*LN(7.5))+15.25)/13.79) -> 0.8969080931 | F37: 60.89228187 | G37: 0.02217947974 | L37: 0.6528666667 | M37: 0.03089504648 | N37: 1.39295632 | Q37: 0.2074381693 | S37: 0.02815318835 | T37: 6.907778907 | U37: 23.85535294
A38: =IF(Inputs!B18="","",IF(units=2,CONVERT(Inputs!B18,"ft","m"),Inputs!B18)) -> 7.7724 | B38: =IF(Inputs!G18="","",IF(units=2,CONVERT(Inputs!G18,"ft","m"),Inputs!G18)) -> 0.9144 | C38: Susceptible | D38: =IF(A38="",NA(),'PB Liquefaction Initiation'!D48) -> 30.42648255 | E38: =EXP(('Det Liquefaction Initiation'!K48-(29.06*LN(7.5))+15.25)/13.79) -> 0.947365525 | F38: 71.21151891 | G38: 0.01630410979 | L38: 0.5682 | M38: 0.008470997194 | N38: 0.51956208 | Q38: 0.1327122894 | S38: 0.0180115072 | T38: 1.894018051 | U38: 16.94757403
A39: =IF(Inputs!B19="","",IF(units=2,CONVERT(Inputs!B19,"ft","m"),Inputs!B19)) -> 9.2964 | B39: =IF(Inputs!G19="","",IF(units=2,CONVERT(Inputs!G19,"ft","m"),Inputs!G19)) -> 2.1336 | C39: Susceptible | D39: =IF(A39="",NA(),'PB Liquefaction Initiation'!D49) -> 20.88413372 | E39: =EXP(('Det Liquefaction Initiation'!K49-(29.06*LN(7.5))+15.25)/13.79) -> 0.9890028805 | F39: 58.99736395 | G39: 0.02401105049 | L39: 0.4835333333 | M39: 0.0247714017 | N39: 1.03166672 | Q39: 0.1663222686 | S39: 0.02257300174 | T39: 5.538601998 | U39: 15.05355598
A40: =IF(Inputs!B20="","",IF(units=2,CONVERT(Inputs!B20,"ft","m"),Inputs!B20)) -> 10.8204 | B40: =IF(Inputs!G20="","",IF(units=2,CONVERT(Inputs!G20,"ft","m"),Inputs!G20)) -> 0.9144 | C40: Susceptible | D40: =IF(A40="",NA(),'PB Liquefaction Initiation'!D50) -> 9.151475893 | E40: =EXP(('Det Liquefaction Initiation'!K50-(29.06*LN(7.5))+15.25)/13.79) -> 1.023719244 | F40: 39.05439773 | G40: 0.04029173214 | L40: 0.3988666667 | M40: 0.01469534882 | N40: 0.36472368 | Q40: 0.2302271315 | S40: 0.03124607115 | T40: 3.285711858 | U40: 9.514953983
A41: =IF(Inputs!B21="","",IF(units=2,CONVERT(Inputs!B21,"ft","m"),Inputs!B21)) -> 12.4968 | B41: =IF(Inputs!G21="","",IF(units=2,CONVERT(Inputs!G21,"ft","m"),Inputs!G21)) -> 2.4384 | C41: Not_susc. | D41: =IF(A41="",NA(),'PB Liquefaction Initiation'!D51) -> 4.144728715 | E41: =EXP(('Det Liquefaction Initiation'!K51-(29.06*LN(7.5))+15.25)/13.79) ->  | F41: 26.28284838 | L41: 0.3057333333 | U41: 6.229242125
A42: =IF(Inputs!B22="","",IF(units=2,CONVERT(Inputs!B22,"ft","m"),Inputs!B22)) -> 13.716 | B42: =IF(Inputs!G22="","",IF(units=2,CONVERT(Inputs!G22,"ft","m"),Inputs!G22)) -> 0.9144 | C42: Susceptible | D42: =IF(A42="",NA(),'PB Liquefaction Initiation'!D52) -> 2.063259346 | E42: =EXP(('Det Liquefaction Initiation'!K52-(29.06*LN(7.5))+15.25)/13.79) -> 1.074351127 | F42: 18.54390891 | G42: 0.06788204955 | L42: 0.238 | M42: 0.01477298037 | N42: 0.2176272 | Q42: 0.2314433592 | S42: 0.0314111357 | T42: 3.303069386 | U42: 6.229242125
A43: =IF(Inputs!B23="","",IF(units=2,CONVERT(Inputs!B23,"ft","m"),Inputs!B23)) -> 15.6972 | B43: =IF(Inputs!G23="","",IF(units=2,CONVERT(Inputs!G23,"ft","m"),Inputs!G23)) -> 2.1336 | C43: Susceptible | D43: =IF(A43="",NA(),'PB Liquefaction Initiation'!D53) -> 10.32284758 | E43: =EXP(('Det Liquefaction Initiation'!K53-(29.06*LN(7.5))+15.25)/13.79) -> 1.099136677 | F43: 41.47860409 | G43: 0.0383571629 | L43: 0.1279333333 | M43: 0.01046991595 | N43: 0.27295856 | Q43: 0.07029800711 | S43: 0.009540737088 | T43: 2.340953415 | U43: 2.926172739
A44: =IF(Inputs!B24="","",IF(units=2,CONVERT(Inputs!B24,"ft","m"),Inputs!B24)) -> 17.3736 | B44: =IF(Inputs!G24="","",IF(units=2,CONVERT(Inputs!G24,"ft","m"),Inputs!G24)) -> 1.2192 | C44: Susceptible | D44: =IF(A44="",NA(),'PB Liquefaction Initiation'!D54) -> 2.9720421 | E44: =EXP(('Det Liquefaction Initiation'!K54-(29.06*LN(7.5))+15.25)/13.79) -> 1.114506927 | F44: 22.25624294 | G44: 0.0616900162 | L44: 0.0348 | M44: 0.002617393878 | N44: 0.04242816 | Q44: 0.03075437806 | S44: 0.004173936751 | T44: 0.585219324 | U44: 0.585219324
A45: =IF(Inputs!B25="","",IF(units=2,CONVERT(Inputs!B25,"ft","m"),Inputs!B25)) ->  | B45: =IF(Inputs!G25="","",IF(units=2,CONVERT(Inputs!G25,"ft","m"),Inputs!G25)) ->  | D45: =IF(A45="",NA(),'PB Liquefaction Initiation'!D55) ->  | E45: =EXP(('Det Liquefaction Initiation'!K55-(29.06*LN(7.5))+15.25)/13.79) ->  | U45: 0
A46: =IF(Inputs!B26="","",IF(units=2,CONVERT(Inputs!B26,"ft","m"),Inputs!B26)) ->  | B46: =IF(Inputs!G26="","",IF(units=2,CONVERT(Inputs!G26,"ft","m"),Inputs!G26)) ->  | D46: =IF(A46="",NA(),'PB Liquefaction Initiation'!D56) ->  | E46: =EXP(('Det Liquefaction Initiation'!K56-(29.06*LN(7.5))+15.25)/13.79) ->  | U46: 0
A47: =IF(Inputs!B27="","",IF(units=2,CONVERT(Inputs!B27,"ft","m"),Inputs!B27)) ->  | B47: =IF(Inputs!G27="","",IF(units=2,CONVERT(Inputs!G27,"ft","m"),Inputs!G27)) ->  | D47: =IF(A47="",NA(),'PB Liquefaction Initiation'!D57) ->  | E47: =EXP(('Det Liquefaction Initiation'!K57-(29.06*LN(7.5))+15.25)/13.79) ->  | U47: 0
A48: =IF(Inputs!B28="","",IF(units=2,CONVERT(Inputs!B28,"ft","m"),Inputs!B28)) ->  | B48: =IF(Inputs!G28="","",IF(units=2,CONVERT(Inputs!G28,"ft","m"),Inputs!G28)) ->  | D48: =IF(A48="",NA(),'PB Liquefaction Initiation'!D58) ->  | E48: =EXP(('Det Liquefaction Initiation'!K58-(29.06*LN(7.5))+15.25)/13.79) ->  | U48: 0
A49: =IF(Inputs!B29="","",IF(units=2,CONVERT(Inputs!B29,"ft","m"),Inputs!B29)) ->  | B49: =IF(Inputs!G29="","",IF(units=2,CONVERT(Inputs!G29,"ft","m"),Inputs!G29)) ->  | D49: =IF(A49="",NA(),'PB Liquefaction Initiation'!D59) ->  | E49: =EXP(('Det Liquefaction Initiation'!K59-(29.06*LN(7.5))+15.25)/13.79) ->  | U49: 0
A50: =IF(Inputs!B30="","",IF(units=2,CONVERT(Inputs!B30,"ft","m"),Inputs!B30)) ->  | B50: =IF(Inputs!G30="","",IF(units=2,CONVERT(Inputs!G30,"ft","m"),Inputs!G30)) ->  | D50: =IF(A50="",NA(),'PB Liquefaction Initiation'!D60) ->  | E50: =EXP(('Det Liquefaction Initiation'!K60-(29.06*LN(7.5))+15.25)/13.79) ->  | U50: 0
A51: =IF(Inputs!B31="","",IF(units=2,CONVERT(Inputs!B31,"ft","m"),Inputs!B31)) ->  | B51: =IF(Inputs!G31="","",IF(units=2,CONVERT(Inputs!G31,"ft","m"),Inputs!G31)) ->  | D51: =IF(A51="",NA(),'PB Liquefaction Initiation'!D61) ->  | E51: =EXP(('Det Liquefaction Initiation'!K61-(29.06*LN(7.5))+15.25)/13.79) ->  | U51: 0
A52: =IF(Inputs!B32="","",IF(units=2,CONVERT(Inputs!B32,"ft","m"),Inputs!B32)) ->  | B52: =IF(Inputs!G32="","",IF(units=2,CONVERT(Inputs!G32,"ft","m"),Inputs!G32)) ->  | D52: =IF(A52="",NA(),'PB Liquefaction Initiation'!D62) ->  | E52: =EXP(('Det Liquefaction Initiation'!K62-(29.06*LN(7.5))+15.25)/13.79) ->  | U52: =IF(OR(C52="",C52="Not_susc."),0,T52) -> 0

Sheet Lateral Spread
B1: Inputs
G2: Original Model
B3: Simplified Method | O3: Regression Coefficients
B4: Case: Free Face / Ground Slope | P4: GS | Q4: FF
B5: S = | C5: =IF(S_prob="","",S_prob) -> 1.5 | D5: % | O5: b0 | P5: -16.213 | Q5: -16.713
B6: W = | C6: =IF(W_prob="","",W_prob) -> 16 | D6: % | O6: b1 | P6: 1.532 | Q6: 1.532
B7: T15 = | C7: =IF(T15_prob="","",IF(units=2,CONVERT(T15_prob,"ft","m"),T15_prob)) -> 3.048 | D7: m | O7: b2 | P7: -1.406 | Q7: -1.406
B8: F15 = | C8: =IF(F15_prob="","",F15_prob) -> 11 | D8: % | O8: b3 | P8: -0.012 | Q8: -0.012
B9: D5015 = | C9: =IF(D50_prob="","",D50_prob) -> 5 | D9: mm | O9: b4 | P9: 0 | Q9: 0.592
O10: b5 | P10: 0.338 | Q10: 0
B11: Mapped Value: | O11: b6 | P11: 0.54 | Q11: 0.54
B12: Log Dhref = | D12: =IF(Dh_ref="","",Dh_ref) -> 0.55 | E12: m | G12: Simplified Method | O12: b7 | P12: 3.413 | Q12: 3.413
B13: Return Period = | D13: =IF(Inputs!G51="","",Inputs!G51) ->  | O13: b8 | P13: -0.795 | Q13: -0.795
B15: Deterministic Method
B16: R = | D16: =IF(OR(R_LS_det="", Det_LS_option=FALSE),"",R_LS_det) -> 1.11 | E16: km
B17: M = | D17: =IF(OR(Mw_LS_det="",Det_LS_option=FALSE),"",Mw_LS_det) -> 7
B18: Percentile = | D18: =IF(OR(Percentile_LS="",Det_LS_option=FALSE),"",Percentile_LS) -> 85
B23: Simplified Model Results | F23: Deterministic Results
B24: ΔDh = | C24: =IF(D12="","",9.043+IF(LS_GS_Opt="GS",P5,Q5)+IF(LS_GS_Opt="GS",P9,Q9)*LOG(C6+0.0000001)+IF(LS_GS_Opt="GS",P10,Q10)*LOG(C5+0.000001)+0.54*LOG(C7)+3.413*LOG(100-C8)-0.795*LOG(C9+0.1)) -> -0.7583631741 | F24: Percentile = | H24: =IF(D18="","",D18) -> 85
B25: Dhsite = | C25: =IF(C24="","",10^(D12+C24)) -> 0.6189232907 | D25: m | F25: Dh = | G25: =IF(OR(H24="",Det_LS_option=FALSE),"",10^((IF(LS_GS_Opt="GS",P5,Q5)+P6*D17+P7*LOG(D16+10^(0.89*D17-5.64))+P8*D16+IF(LS_GS_Opt="GS",P9,Q9)*LOG(C6+0.0000001)+IF(LS_GS_Opt="GS",P10,Q10)*LOG(C5+0.00002)+P11*LOG(C7)+P12*LOG(100-C8)+P13*LOG(C9+0.1))+_xlfn.NORM.S.INV(H24/100)*0.197)) -> 1.351105017 | H25: m

Sheet Slope Displacement
A1: Simplified Performance-based Seismic Slope Displacement Rathje & Saygili (2009)
B3: Simplified Method
B4: Input site information | G4: Original Model
B6: kysite | C6: =IF(ky_site="","",ky_site) -> 0.2
B7: FPGAsite | C7: =IF(Fpga="","",Fpga) -> 1.06
B8: PGA | C8: =IF(PGA_prob="","",PGA_prob) -> 0.44
B9: Mw | C9: =IF(Mw_prob="","",Mw_prob) -> 6.77
B11: Input reference information
B12: kyref | C12: 0.1
B13: FPGAref | C13: 1
B14: Dref | C14: =IF(D_ref_RS="","",D_ref_RS) -> 2.43
B16: Deterministic Method | G16: Simplified Model
B17: Input information
B19: ky | C19: =IF(ky_site="","",ky_site) -> 0.2
B20: PGA | C20: =IF(PGA_det="","",PGA_det) -> 0.73
B21: Mw | C21: =IF(Mw_det="","",Mw_det) -> 6.8
B22: Percentile | C22: =IF(Percentile_Slope="","",Percentile_Slope) -> 85
B27: Simplified Model Results | F27: Deterministic Results
B28: ΔlnD = | C28: =IF(AND(C8<0.1,C6<0.17)," ",IF(C12=" "," ",4.85/$C$8*($C$12/Fpga_ref_SS-$C$6/$C$7)+19.64/($C$8)^2*(($C$12/Fpga_ref_SS)^2-($C$6/$C$7)^2)+42.49/($C$8)^3*(($C$6/$C$7)^3-($C$12/Fpga_ref_SS)^3)+29.06/($C$8)^4*(($C$12/Fpga_ref_SS)^4-($C$6/$C$7)^4)+0.79*LN($C$7/Fpga_ref_SS))) -> -1.581911297 | F28: Percentile = | H28: =C22 -> 85 | I28: =_xlfn.NORM.S.INV(H28/100) -> 1.036433389
B29: Dsite = | C29: =IF(AND(C8<=0.1,C6<=0.17)," ",IF($C$14=" "," ",$C$14*EXP($C$28))) -> 0.4995637607 | D29: cm | F29: Dh = | G29: =EXP(4.89-4.85*($C$19/$C$20)-19.64*($C$19/$C$20)^2+42.49*($C$19/$C$20)^3-29.06*($C$19/$C$20)^4+0.72*LN($C$20)+0.89*($C$21-6)+I28*(0.732+0.789*(C19/C20)-0.539*(C19/C20)^2)) -> 68.25730002 | H29: cm
A32: Simplified Performance-based Seismic Slope Displacement Bray and Travasarou (2007)
B34: Simplified Method
B35: Input site information | G35: Original Model
B37: kysite | C37: =IF(ky_site="","",ky_site) -> 0.2
B38: FPGAsite | C38: =IF(Fpga="","",Fpga) -> 1.06
B39: PGA | C39: =IF(PGA_prob="","",PGA_prob) -> 0.44
B40: Mw | C40: =IF(Mw_prob="","",Mw_prob) -> 6.77
B42: Input reference information
B43: kyref | C43: 0.1
B44: FPGAref | C44: 1
B45: Dref | C45: =IF(D_ref_BT="","",D_ref_BT) -> 2.65
B47: Deterministic Method | G47: Simplified Model
B48: Input information
B50: ky | C50: =IF(ky_site="","",ky_site) -> 0.2
B51: PGA | C51: =IF(PGA_det="","",PGA_det) -> 0.73
B52: Mw | C52: =IF(Mw_det="","",Mw_det) -> 6.8
B53: Percentile | C53: =IF(Percentile_Slope="","",Percentile_Slope) -> 85
B58: Simplified Model Results | F58: Deterministic Results
B59: ΔlnD = | C59: =IF(C45=" "," ",2.83*(LN($C$43/$C$44)-LN($C$37/$C$38))+0.333*(LN($C$43/$C$44)^2-LN($C$37/$C$38)^2)+0.566*LN($C$39)*(LN($C$43/$C$44)-LN($C$37/$C$38))) -> -0.6623163148 | F59: Percentile = | H59: =C53 -> 85 | I59: =_xlfn.NORM.S.INV(H59/100) -> 1.036433389
B60: Dsite = | C60: =IF(C59=" "," ",C45*EXP(C59)) -> 1.366487153 | D60: cm | F60: Dh = | G60: =EXP(-0.22-2.83*LN($C$50)-0.333*(LN($C$50))^2+0.566*LN($C$50)*LN($C$51)+3.04*LN($C$51)-0.244*(LN($C$51))^2+0.278*($C$52-7)+I59*0.67) -> 30.47019621 | H60: cm

Sheet References
A1: Liquefaction Initiation / Settlement | T1: Lateral Spread Displacement | AH1: Seismic Slope Displacement
AH3: Seismic Slope Displacement Parameters for both Rathje & Saygili (2009) and Bray & Travasarou (2007):
A4: Liquefaction Initiation Parameters (Performance-Based): | T4: Lateral Spread Parameters (Youd et al 2002 Model):
AH13: Infinite Slope Conditions to calculate ky (Rathje and Saygili, 2009):
T14: Site Geometry:
A20: Convert between Return Period and Exceedance Probability:
B22: Return Period | D22: Exceedance Probability
D23: Percent | E23: Years
B24: 475 | D24: 10 | E24: 50
B25: 1,039 (1,033) | D25: 2 (7) | E25: 21 (75)
B26: 2475 | D26: 2 | E26: 50
A29: Site Amplification Factors (Fpga):
A30: *For Site Class definitions, see below | AH30: Warning when computing ky values(only applicable for the Rathje and Saygili 2009 method):
B32: Site Class | C32: Site Amplification Factor, Fpga
C33: PGA(g)<0.10 | D33: PGA(g)=0.20 | E33: PGA(g)=0.30 | F33: PGA(g)=0.40 | G33: PGA(g)>0.50 | T33: Recommended range of parameter values:
B34: A | C34: 0.8 | D34: 0.8 | E34: 0.8 | F34: 0.8 | G34: 0.8
B35: B | C35: 1 | D35: 1 | E35: 1 | F35: 1 | G35: 1
B36: C | C36: 1.2 | D36: 1.2 | E36: 1.1 | F36: 1 | G36: 1
B37: D | C37: 1.6 | D37: 1.4 | E37: 1.2 | F37: 1.1 | G37: 1
B38: E | C38: 2.5 | D38: 1.7 | E38: 1.2 | F38: 0.9 | G38: 0.9
B39: F | C39: Site Response Analysis Required
B40: *For intermediate PGA values, interpolate linearly | AH40: Technical References:
A42: Site Class Definitions:
A43: From AASHTO LRFD Bridge Design Specifications (2007):
T52: Source to Site Distance:
T54: R is the nearest horizontal map distance from the site to the seismic energy source.
T55: This is the same as the Boore-Joyner distance (RJB) as can be seen in the following figure
T72: Technical References:
T86: Correct SPT N for Non-Standard Sampler Sizes (default relationship is LaCroix and Horn):
A107: How to Turn on Iterative Calculations:
A165: Technical References:

Sheet Version Notes
A1: Version | B1: Date | C1: Change
A2: BETA1.91 | C2: Added a "Version Notes" Sheet
C3: Changed how C_sigma is calculated on the "Det Liquefaction Initiation" Sheet; C_sigma is now calculated from (N1)60cs
A5: BETA1.92 | C5: Removed settlement-specific analysis selections on "Inputs" sheet. Settlement will now automatically compute and display when Liquefaction Initiation is computed
C6: "Site Liquefaction/Slope Disp. Parameters" section on "Inputs" sheet renamed to "Ground Motion Parameters"
C7: MSF (2014 or 2012) analysis selection relocated to "Ground Motion Parameters" section on "Inputs" sheet.
C8: Adjusted several comment hover box sizes so that entire comment could be read. Some comment boxes were too small.
C9: Removed ky input on "Deterministic Analysis Parametes" section on the "Inputs" sheet. Ky now only needs to be input once on the "Inputs" sheet.
C10: Added clarifying comment that M_w is the MEAN magnitude when input into "Ground Motion Parameters" section on "Inputs" sheet
A11: 1.0 | C11: Removed BETA tag.
A12: 1.1 | C12: Fixed Formula Error in calculating DETERMINISTIC CRR in Det Liquefaction Initiation
C13: Fixed Formula Error in calculating equivalent strains for liquefaction settlement
C14: Removed Interpolation tool, Reference Hazard Values are now obtained through online database.
A15: 1.1.01 | C15: Fixed minor formatting issues; locked some cells making them unavailable for changes
C16: Fixed drop down box that allows for selection of return period
A17: 1.2 | B17: 2017-07-17 | C17: Added instructions on "Inputs" tab on how to access updated USGS deaggregation data
C18: Fixed a bug where T15 could not be changed for lateral spread analyses
C19: Updated hyperlink that allows users to access online reference parameter maps by clicking on blue button
C20: Fixed a simplified performance-based seismic slope displacement calculation for Rathje and Saygili model
C21: Vs,12 input cell is now grayed out if Cetin triggering model is set to "FALSE"
C22: Fixed a bug that displayed "#REF!" on the Seismic slope Inputs for Deterministic Analysis on the Final Summary Tab.
C23: Made the depth scale on settlment plots on "Final Summary Tab" to the same scale as other plots
C24: Fixed equation in PB Settlement to multiply approximate site strains by Probability of Liquefaction
A25: 1.21 | B25: 2017-11-01 | C25: Fixed a bug that would not allow the geometry type to be changed for lateral spread displacement assessment
A26: 1.3 | B26: 2018-01-29 | C26: Fixed a bug in how ground surface settlements were calculated in both PB Settlement and Det Settlement tab
C27: Updated the hyperlink for the Reference Map Database button on the "Inputs" tab
A28: 1.4 | B28: 2018-09-05 | C28: Updated hyperlink for the Reference Map Database.
C29: Provide Cells on Inputs tab that allows for conversion to Standard SPT from Non-standard sampler sizes.
C30: Included a Water Table at time of drilling, and Design Ground Water Depth
A31: 1.41 | B31: 2019-01-28 | C31: Added clarifying comment in the "Sampler Type" column on the "Inputs" tab.
C32: Renamed cell title for cell L23 to "Liner Type"
C33: Adjusted note 2 by the "Reference Map Database" button.
C34: Added Sampler type column to "Final Summary" tab.
C35: Changed the units type to reflect meters instead of feet when SI units are selected.
A36: 1.42 | B36: 2021-11-17 | C36: Updated the hyperlink for the Reference Map Database button on the "Inputs" tab; removed Hidden worksheet; adjusted default zoom on Input and Final Summary Sheets
A37: 1.43 | B37: 2022-07-28 | C37: Updated a bug on the units for Vs12 in Final Summary tab. It was hard-coded to be m/s; Also expanded data validation limits for Fpga to be from 0.5-3.0 to 0.1-4.0.

Sheet _Hidden (hidden)
A1: Units | D1: Simplified PB | V1: Deterministic
A2: 1 | D2: (Step-wise Plot) | V2: (Step-wise Plot)
A3: 2
D4: =IF(units=1,"Thickness (m)","Thickness (ft)") -> Thickness (ft) | F4: Idriss and Boulanger (2008, 2012) | L4: Cetin et al. (2004) | S4: P_L 50% line: | V4: =IF(units=1,"Thickness (m)","Thickness (ft)") -> Thickness (ft) | X4: Idriss and Boulanger (2008, 2012) | AD4: Cetin et al. (2004)
A5: FPGA | E5: =IF(units=1,"Depth (m)","Depth (ft)") -> Depth (ft) | F5: (N1)60,cs | G5: Nreqsite | H5: CSRsite | I5: P_L/FS_L | J5: CRR | K5: Settle | L5: (N1)60,cs | M5: Nreqsite | N5: CSRsite | O5: P_L/FS_L | P5: CRR | Q5: Settle | S5: Depth | T5: P_L | W5: =IF(units=1,"Depth (m)","Depth (ft)") -> Depth (ft) | X5: (N1)60,cs | Y5: Nreqsite | Z5: CSRsite | AA5: P_L/FS_L | AB5: CRR | AC5: Settle | AD5: (N1)60,cs | AE5: Nreqsite | AF5: CSRsite | AG5: P_L/FS_L | AH5: CRR | AI5: Settle
A6: A | D6: =IF(Inputs!$G13="",NA(),Inputs!$G13) -> 3 | E6: 0 | F6: ='Final Summary'!K26 -> 33.87418545 | G6: ='Final Summary'!L26 -> 19.14770508 | H6: ='Final Summary'!M26 -> 0.2231123602 | I6: ='Final Summary'!N26 -> 4.531038012 | J6: ='PB Liquefaction Initiation'!Q10 -> 1.010930585 | L6: ='Final Summary'!P26 -> 32.632 | M6: ='Final Summary'!Q26 -> 42.0049287 | N6: ='Final Summary'!R26 -> 2.685317088 | O6: ='Final Summary'!S26 -> 0.5067739357 | P6: ='PB Liquefaction Initiation'!N43 -> 1.360848709 | S6: 0 | T6: 0.5 | V6: =IF(Inputs!$G13="",NA(),Inputs!$G13) -> 3 | W6: 0 | X6: ='Final Summary'!V26 -> 33.87418545 | Y6: ='Final Summary'!W26 -> 30.87283325 | Z6: ='Final Summary'!X26 -> 0.4139638381 | AA6: ='Final Summary'!Y26 -> 1.854069775 | AB6: ='Det Liquefaction Initiation'!T10 -> 0.76751784 | AD6: ='Final Summary'!AA26 -> 32.632 | AE6: ='Final Summary'!AB26 -> 32.02838398 | AF6: ='Final Summary'!AC26 -> 0.9526599567 | AG6: ='Final Summary'!AD26 -> 1.681060554 | AH6: ='Det Liquefaction Initiation'!O43 -> 1.601479075
A7: B | E7: =D6+E6 -> 3 | F7: =F6 -> 33.87418545 | G7: =G6 -> 19.14770508 | H7: 0.2231123602 | I7: 4.531038012 | J7: 1.010930585 | L7: 32.632 | M7: 42.0049287 | N7: 2.685317088 | O7: 0.5067739357 | P7: 1.360848709 | S7: =MAX($E$6:$E$45)+5 -> 64 | T7: 0.5 | W7: =V6+W6 -> 3 | X7: =X6 -> 33.87418545 | Y7: =Y6 -> 30.87283325 | Z7: =Z6 -> 0.4139638381 | AA7: =AA6 -> 1.854069775 | AB7: =AB6 -> 0.76751784 | AD7: =AD6 -> 32.632 | AE7: =AE6 -> 32.02838398 | AF7: =AF6 -> 0.9526599567 | AG7: =AG6 -> 1.681060554 | AH7: =AH6 -> 1.601479075
A8: C | D8: =IF(Inputs!G14="",0,Inputs!G14) -> 5 | E8: =E7 -> 3 | F8: ='Final Summary'!K27 -> 11.90043878 | G8: ='Final Summary'!L27 -> 27.37555695 | H8: ='Final Summary'!M27 -> 0.4095218378 | I8: ='Final Summary'!N27 -> 0.3662843361 | J8: ='PB Liquefaction Initiation'!Q11 -> 0.1500014345 | L8: ='Final Summary'!P27 -> 10.62149159 | M8: ='Final Summary'!Q27 -> 46.83219977 | N8: ='Final Summary'!R27 -> 2.658966009 | O8: ='Final Summary'!S27 -> 0.07237696718 | P8: ='PB Liquefaction Initiation'!N44 -> 0.1924478955 | V8: =IF(Inputs!$G14="",NA(),Inputs!$G14) -> 5 | W8: =W7 -> 3 | X8: ='Final Summary'!V27 -> 11.90043878 | Y8: ='Final Summary'!W27 -> 34.45656013 | Z8: ='Final Summary'!X27 -> 0.7537279767 | AA8: ='Final Summary'!Y27 -> 0.1510942438 | AB8: ='Det Liquefaction Initiation'!T11 -> 0.1138839587 | AD8: ='Final Summary'!AA27 -> 10.62149159 | AE8: ='Final Summary'!AB27 -> 36.95580563 | AF8: ='Final Summary'!AC27 -> 0.9501872677 | AG8: ='Final Summary'!AD27 -> 0.2383501241 | AH8: ='Det Liquefaction Initiation'!O44 -> 0.2264772532
A9: D | E9: =D8+E8 -> 8 | F9: =F8 -> 11.90043878 | G9: =G8 -> 27.37555695 | H9: =H8 -> 0.4095218378 | I9: =I8 -> 0.3662843361 | J9: =J8 -> 0.1500014345 | L9: =L8 -> 10.62149159 | M9: =M8 -> 46.83219977 | N9: =N8 -> 2.658966009 | O9: =O8 -> 0.07237696718 | P9: =P8 -> 0.1924478955 | W9: =V8+W8 -> 8 | X9: =X8 -> 11.90043878 | Y9: =Y8 -> 34.45656013 | Z9: =Z8 -> 0.7537279767 | AA9: =AA8 -> 0.1510942438 | AB9: =AB8 -> 0.1138839587 | AD9: =AD8 -> 10.62149159 | AE9: =AE8 -> 36.95580563 | AF9: =AF8 -> 0.9501872677 | AG9: =AG8 -> 0.2383501241 | AH9: =AH8 -> 0.2264772532
A10: E | D10: =IF(Inputs!G15="",0,Inputs!G15) -> 5 | E10: =E9 -> 8 | F10: ='Final Summary'!K28 -> 13.69340367 | G10: ='Final Summary'!L28 -> 27.53518677 | H10: ='Final Summary'!M28 -> 0.4161886272 | I10: ='Final Summary'!N28 -> 0.3980090169 | J10: ='PB Liquefaction Initiation'!Q12 -> 0.1656468263 | L10: ='Final Summary'!P28 -> 13.32533679 | M10: ='Final Summary'!Q28 -> 49.04280584 | N10: ='Final Summary'!R28 -> 2.609395645 | O10: ='Final Summary'!S28 -> 0.07501259258 | P10: ='PB Liquefaction Initiation'!N45 -> 0.1957375324 | S10: FS = 1 line: | V10: =IF(Inputs!$G15="",NA(),Inputs!$G15) -> 5 | W10: =W9 -> 8 | X10: ='Final Summary'!V28 -> 13.69340367 | Y10: ='Final Summary'!W28 -> 34.54188919 | Z10: ='Final Summary'!X28 -> 0.7665870774 | AA10: ='Final Summary'!Y28 -> 0.1640547345 | AB10: ='Det Liquefaction Initiation'!T12 -> 0.1257622395 | AD10: ='Final Summary'!AA28 -> 13.32533679 | AE10: ='Final Summary'!AB28 -> 39.37471842 | AF10: ='Final Summary'!AC28 -> 0.9466657154 | AG10: ='Final Summary'!AD28 -> 0.243326205 | AH10: ='Det Liquefaction Initiation'!O45 -> 0.2303485759
A11: F | E11: =D10+E10 -> 13 | F11: =F10 -> 13.69340367 | G11: =G10 -> 27.53518677 | H11: =H10 -> 0.4161886272 | I11: =I10 -> 0.3980090169 | J11: =J10 -> 0.1656468263 | L11: =L10 -> 13.32533679 | M11: =M10 -> 49.04280584 | N11: =N10 -> 2.609395645 | O11: =O10 -> 0.07501259258 | P11: =P10 -> 0.1957375324 | S11: Depth | T11: FS_L | W11: =V10+W10 -> 13 | X11: =X10 -> 13.69340367 | Y11: =Y10 -> 34.54188919 | Z11: =Z10 -> 0.7665870774 | AA11: =AA10 -> 0.1640547345 | AB11: =AB10 -> 0.1257622395 | AD11: =AD10 -> 13.32533679 | AE11: =AE10 -> 39.37471842 | AF11: =AF10 -> 0.9466657154 | AG11: =AG10 -> 0.243326205 | AH11: =AH10 -> 0.2303485759
D12: =IF(Inputs!G16="",0,Inputs!G16) -> 4 | E12: =E11 -> 13 | F12: ='Final Summary'!K29 -> 7.589169573 | G12: ='Final Summary'!L29 ->  | H12: ='Final Summary'!M29 ->  | I12: ='Final Summary'!N29 ->  | J12: ='PB Liquefaction Initiation'!Q13 -> 0.1160867288 | L12: ='Final Summary'!P29 -> 4.032025234 | M12: ='Final Summary'!Q29 ->  | N12: ='Final Summary'!R29 ->  | O12: ='Final Summary'!S29 ->  | P12: ='PB Liquefaction Initiation'!N46 -> 0.09038285262 | S12: 0 | T12: 1 | V12: =IF(Inputs!$G16="",NA(),Inputs!$G16) -> 4 | W12: =W11 -> 13 | X12: ='Final Summary'!V29 -> 7.589169573 | Y12: ='Final Summary'!W29 ->  | Z12: ='Final Summary'!X29 ->  | AA12: ='Final Summary'!Y29 ->  | AB12: ='Det Liquefaction Initiation'!T13 -> 0.0881352653 | AD12: ='Final Summary'!AA29 -> 4.032025234 | AE12: ='Final Summary'!AB29 ->  | AF12: ='Final Summary'!AC29 ->  | AG12: ='Final Summary'!AD29 ->  | AH12: ='Det Liquefaction Initiation'!O46 -> 0.1063646871
A13: No Liners | E13: =D12+E12 -> 17 | F13: =F12 -> 7.589169573 | G13: =G12 ->  | H13: =H12 ->  | I13: =I12 ->  | J13: =J12 -> 0.1160867288 | L13: =L12 -> 4.032025234 | M13: =M12 ->  | N13: =N12 ->  | O13: =O12 ->  | P13: =P12 -> 0.09038285262 | S13: =MAX($E$6:$E$45) -> 59 | T13: 1 | W13: =V12+W12 -> 17 | X13: =X12 -> 7.589169573 | Y13: =Y12 ->  | Z13: =Z12 ->  | AA13: =AA12 ->  | AB13: =AB12 -> 0.0881352653 | AD13: =AD12 -> 4.032025234 | AE13: =AE12 ->  | AF13: =AF12 ->  | AG13: =AG12 ->  | AH13: =AH12 -> 0.1063646871
A14: NL | D14: =IF(Inputs!G17="",0,Inputs!G17) -> 7 | E14: =E13 -> 17 | F14: ='Final Summary'!K30 -> 21.70847391 | G14: ='Final Summary'!L30 -> 26.78862762 | H14: ='Final Summary'!M30 -> 0.3866691646 | I14: ='Final Summary'!N30 -> 0.6734966309 | J14: ='PB Liquefaction Initiation'!Q14 -> 0.2604203796 | L14: ='Final Summary'!P30 -> 22.24721994 | M14: ='Final Summary'!Q30 -> 50.60647595 | N14: ='Final Summary'!R30 -> 2.428260706 | O14: ='Final Summary'!S30 -> 0.127899718 | P14: ='PB Liquefaction Initiation'!N47 -> 0.3105738596 | V14: =IF(Inputs!$G17="",NA(),Inputs!$G17) -> 7 | W14: =W13 -> 17 | X14: ='Final Summary'!V30 -> 21.70847391 | Y14: ='Final Summary'!W30 -> 34.18375015 | Z14: ='Final Summary'!X30 -> 0.7146899863 | AA14: ='Final Summary'!Y30 -> 0.2766460116 | AB14: ='Det Liquefaction Initiation'!T14 -> 0.1977161342 | AD14: ='Final Summary'!AA30 -> 22.24721994 | AE14: ='Final Summary'!AB30 -> 41.80270382 | AF14: ='Final Summary'!AC30 -> 0.937934014 | AG14: ='Final Summary'!AD30 -> 0.3896763387 | AH14: ='Det Liquefaction Initiation'!O47 -> 0.3654906926
A15: L | E15: =D14+E14 -> 24 | F15: =F14 -> 21.70847391 | G15: =G14 -> 26.78862762 | H15: =H14 -> 0.3866691646 | I15: =I14 -> 0.6734966309 | J15: =J14 -> 0.2604203796 | L15: =L14 -> 22.24721994 | M15: =M14 -> 50.60647595 | N15: =N14 -> 2.428260706 | O15: =O14 -> 0.127899718 | P15: =P14 -> 0.3105738596 | W15: =V14+W14 -> 24 | X15: =X14 -> 21.70847391 | Y15: =Y14 -> 34.18375015 | Z15: =Z14 -> 0.7146899863 | AA15: =AA14 -> 0.2766460116 | AB15: =AB14 -> 0.1977161342 | AD15: =AD14 -> 22.24721994 | AE15: =AE14 -> 41.80270382 | AF15: =AF14 -> 0.937934014 | AG15: =AG14 -> 0.3896763387 | AH15: =AH14 -> 0.3654906926
D16: =IF(Inputs!G18="",0,Inputs!G18) -> 3 | E16: =E15 -> 24 | F16: ='Final Summary'!K31 -> 29.14039966 | G16: ='Final Summary'!L31 -> 25.68392944 | H16: ='Final Summary'!M31 -> 0.3497882139 | I16: ='Final Summary'!N31 -> 1.419689621 | J16: ='PB Liquefaction Initiation'!Q15 -> 0.4965906967 | L16: ='Final Summary'!P31 -> 30.42648255 | M16: ='Final Summary'!Q31 -> 50.62933594 | N16: ='Final Summary'!R31 -> 2.289592916 | O16: ='Final Summary'!S31 -> 0.2310695564 | P16: ='PB Liquefaction Initiation'!N48 -> 0.5290552195 | V16: =IF(Inputs!$G18="",NA(),Inputs!$G18) -> 3 | W16: =W15 -> 24 | X16: ='Final Summary'!V31 -> 29.14039966 | Y16: ='Final Summary'!W31 -> 33.66897202 | Z16: ='Final Summary'!X31 -> 0.6488354902 | AA16: ='Final Summary'!Y31 -> 0.5810735736 | AB16: ='Det Liquefaction Initiation'!T15 -> 0.377021157 | AD16: ='Final Summary'!AA31 -> 30.42648255 | AE16: ='Final Summary'!AB31 -> 42.55745264 | AF16: ='Final Summary'!AC31 -> 0.9325775157 | AG16: ='Final Summary'!AD31 -> 0.6676171516 | AH16: ='Det Liquefaction Initiation'!O48 -> 0.6226047447
A17: F_PGA Choice | E17: =D16+E16 -> 27 | F17: =F16 -> 29.14039966 | G17: =G16 -> 25.68392944 | H17: =H16 -> 0.3497882139 | I17: =I16 -> 1.419689621 | J17: =J16 -> 0.4965906967 | L17: =L16 -> 30.42648255 | M17: =M16 -> 50.62933594 | N17: =N16 -> 2.289592916 | O17: =O16 -> 0.2310695564 | P17: =P16 -> 0.5290552195 | W17: =V16+W16 -> 27 | X17: =X16 -> 29.14039966 | Y17: =Y16 -> 33.66897202 | Z17: =Z16 -> 0.6488354902 | AA17: =AA16 -> 0.5810735736 | AB17: =AB16 -> 0.377021157 | AD17: =AD16 -> 30.42648255 | AE17: =AE16 -> 42.55745264 | AF17: =AF16 -> 0.9325775157 | AG17: =AG16 -> 0.6676171516 | AH17: =AH16 -> 0.6226047447
A18: 1 | D18: =IF(Inputs!G19="",0,Inputs!G19) -> 7 | E18: =E17 -> 27 | F18: ='Final Summary'!K32 -> 21.33763058 | G18: ='Final Summary'!L32 -> 26.72507477 | H18: ='Final Summary'!M32 -> 0.3843424637 | I18: ='Final Summary'!N32 -> 0.6617491258 | J18: ='PB Liquefaction Initiation'!Q16 -> 0.2543382894 | L18: ='Final Summary'!P32 -> 20.88413372 | M18: ='Final Summary'!Q32 -> 50.30092791 | N18: ='Final Summary'!R32 -> 2.127527544 | O18: ='Final Summary'!S32 -> 0.1184579127 | P18: ='PB Liquefaction Initiation'!N49 -> 0.2520224721 | V18: =IF(Inputs!$G19="",NA(),Inputs!$G19) -> 7 | W18: =W17 -> 27 | X18: ='Final Summary'!V32 -> 21.33763058 | Y18: ='Final Summary'!W32 -> 34.15599251 | Z18: ='Final Summary'!X32 -> 0.7108944109 | AA18: ='Final Summary'!Y32 -> 0.2716275328 | AB18: ='Det Liquefaction Initiation'!T16 -> 0.1930984949 | AD18: ='Final Summary'!AA32 -> 20.88413372 | AE18: ='Final Summary'!AB32 -> 43.15059148 | AF18: ='Final Summary'!AC32 -> 0.9264554412 | AG18: ='Final Summary'!AD32 -> 0.3201298371 | AH18: ='Det Liquefaction Initiation'!O49 -> 0.2965860295
A19: 2 | E19: =D18+E18 -> 34 | F19: =F18 -> 21.33763058 | G19: =G18 -> 26.72507477 | H19: =H18 -> 0.3843424637 | I19: =I18 -> 0.6617491258 | J19: =J18 -> 0.2543382894 | L19: =L18 -> 20.88413372 | M19: =M18 -> 50.30092791 | N19: =N18 -> 2.127527544 | O19: =O18 -> 0.1184579127 | P19: =P18 -> 0.2520224721 | W19: =V18+W18 -> 34 | X19: =X18 -> 21.33763058 | Y19: =Y18 -> 34.15599251 | Z19: =Z18 -> 0.7108944109 | AA19: =AA18 -> 0.2716275328 | AB19: =AB18 -> 0.1930984949 | AD19: =AD18 -> 20.88413372 | AE19: =AE18 -> 43.15059148 | AF19: =AF18 -> 0.9264554412 | AG19: =AG18 -> 0.3201298371 | AH19: =AH18 -> 0.2965860295
D20: =IF(Inputs!G20="",0,Inputs!G20) -> 3 | E20: =E19 -> 34 | F20: ='Final Summary'!K33 -> 9.487639011 | G20: ='Final Summary'!L33 -> 27.46976471 | H20: ='Final Summary'!M33 -> 0.4134303046 | I20: ='Final Summary'!N33 -> 0.3154710189 | J20: ='PB Liquefaction Initiation'!Q17 -> 0.1304252794 | L20: ='Final Summary'!P33 -> 9.151475893 | M20: ='Final Summary'!Q33 -> 49.75511132 | N20: ='Final Summary'!R33 -> 1.960751431 | O20: ='Final Summary'!S33 -> 0.05263225867 | P20: ='PB Liquefaction Initiation'!N50 -> 0.1031987765 | V20: =IF(Inputs!$G20="",NA(),Inputs!$G20) -> 3 | W20: =W19 -> 34 | X20: ='Final Summary'!V33 -> 9.487639011 | Y20: ='Final Summary'!W33 -> 34.51347733 | Z20: ='Final Summary'!X33 -> 0.7622661883 | AA20: ='Final Summary'!Y33 -> 0.1299039217 | AB20: ='Det Liquefaction Initiation'!T17 -> 0.09902136725 | AD20: ='Final Summary'!AA33 -> 9.151475893 | AE20: ='Final Summary'!AB33 -> 43.62635127 | AF20: ='Final Summary'!AC33 -> 0.9194853964 | AG20: ='Final Summary'!AD33 -> 0.1320812393 | AH20: ='Det Liquefaction Initiation'!O50 -> 0.1214467706
A21: Method Selection | E21: =D20+E20 -> 37 | F21: =F20 -> 9.487639011 | G21: =G20 -> 27.46976471 | H21: =H20 -> 0.4134303046 | I21: =I20 -> 0.3154710189 | J21: =J20 -> 0.1304252794 | L21: =L20 -> 9.151475893 | M21: =M20 -> 49.75511132 | N21: =N20 -> 1.960751431 | O21: =O20 -> 0.05263225867 | P21: =P20 -> 0.1031987765 | W21: =V20+W20 -> 37 | X21: =X20 -> 9.487639011 | Y21: =Y20 -> 34.51347733 | Z21: =Z20 -> 0.7622661883 | AA21: =AA20 -> 0.1299039217 | AB21: =AB20 -> 0.09902136725 | AD21: =AD20 -> 9.151475893 | AE21: =AE20 -> 43.62635127 | AF21: =AF20 -> 0.9194853964 | AG21: =AG20 -> 0.1320812393 | AH21: =AH20 -> 0.1214467706
A22: TRUE | D22: =IF(Inputs!G21="",0,Inputs!G21) -> 8 | E22: =E21 -> 37 | F22: ='Final Summary'!K34 -> 7.303047698 | G22: ='Final Summary'!L34 ->  | H22: ='Final Summary'!M34 ->  | I22: ='Final Summary'!N34 ->  | J22: ='PB Liquefaction Initiation'!Q18 -> 0.1140072929 | L22: ='Final Summary'!P34 -> 4.144728715 | M22: ='Final Summary'!Q34 ->  | N22: ='Final Summary'!R34 ->  | O22: ='Final Summary'!S34 ->  | P22: ='PB Liquefaction Initiation'!N51 -> 0.06897095367 | V22: =IF(Inputs!$G21="",NA(),Inputs!$G21) -> 8 | W22: =W21 -> 37 | X22: ='Final Summary'!V34 -> 7.303047698 | Y22: ='Final Summary'!W34 ->  | Z22: ='Final Summary'!X34 ->  | AA22: ='Final Summary'!Y34 ->  | AB22: ='Det Liquefaction Initiation'!T18 -> 0.08655651776 | AD22: ='Final Summary'!AA34 -> 4.144728715 | AE22: ='Final Summary'!AB34 ->  | AF22: ='Final Summary'!AC34 ->  | AG22: ='Final Summary'!AD34 ->  | AH22: ='Det Liquefaction Initiation'!O51 -> 0.081166656
A23: FALSE | E23: =D22+E22 -> 45 | F23: =F22 -> 7.303047698 | G23: =G22 ->  | H23: =H22 ->  | I23: =I22 ->  | J23: =J22 -> 0.1140072929 | L23: =L22 -> 4.144728715 | M23: =M22 ->  | N23: =N22 ->  | O23: =O22 ->  | P23: =P22 -> 0.06897095367 | W23: =V22+W22 -> 45 | X23: =X22 -> 7.303047698 | Y23: =Y22 ->  | Z23: =Z22 ->  | AA23: =AA22 ->  | AB23: =AB22 -> 0.08655651776 | AD23: =AD22 -> 4.144728715 | AE23: =AE22 ->  | AF23: =AF22 ->  | AG23: =AG22 ->  | AH23: =AH22 -> 0.081166656
D24: =IF(Inputs!G22="",0,Inputs!G22) -> 3 | E24: =E23 -> 45 | F24: ='Final Summary'!K35 -> 1.632756664 | G24: ='Final Summary'!L35 -> 27.12171936 | H24: ='Final Summary'!M35 -> 0.3993356759 | I24: ='Final Summary'!N35 -> 0.1946806236 | J24: ='PB Liquefaction Initiation'!Q19 -> 0.07774291842 | L24: ='Final Summary'!P35 -> 2.063259346 | M24: ='Final Summary'!Q35 -> 48.69297215 | N24: ='Final Summary'!R35 -> 1.699981701 | O24: ='Final Summary'!S35 -> 0.03399931176 | P24: ='PB Liquefaction Initiation'!N52 -> 0.05779820784 | V24: =IF(Inputs!$G22="",NA(),Inputs!$G22) -> 3 | W24: =W23 -> 45 | X24: ='Final Summary'!V35 -> 1.632756664 | Y24: ='Final Summary'!W35 -> 34.33693123 | Z24: ='Final Summary'!X35 -> 0.7362316221 | AA24: ='Final Summary'!Y35 -> 0.08017030125 | AB24: ='Det Liquefaction Initiation'!T19 -> 0.05902391094 | AD24: ='Final Summary'!AA35 -> 2.063259346 | AE24: ='Final Summary'!AB35 -> 44.2920575 | AF24: ='Final Summary'!AC35 -> 0.9036127086 | AG24: ='Final Summary'!AD35 -> 0.07527373483 | AH24: ='Det Liquefaction Initiation'!O52 -> 0.06801830341
A25: FF/GS Option | E25: =D24+E24 -> 48 | F25: =F24 -> 1.632756664 | G25: =G24 -> 27.12171936 | H25: =H24 -> 0.3993356759 | I25: =I24 -> 0.1946806236 | J25: =J24 -> 0.07774291842 | L25: =L24 -> 2.063259346 | M25: =M24 -> 48.69297215 | N25: =N24 -> 1.699981701 | O25: =O24 -> 0.03399931176 | P25: =P24 -> 0.05779820784 | W25: =V24+W24 -> 48 | X25: =X24 -> 1.632756664 | Y25: =Y24 -> 34.33693123 | Z25: =Z24 -> 0.7362316221 | AA25: =AA24 -> 0.08017030125 | AB25: =AB24 -> 0.05902391094 | AD25: =AD24 -> 2.063259346 | AE25: =AE24 -> 44.2920575 | AF25: =AF24 -> 0.9036127086 | AG25: =AG24 -> 0.07527373483 | AH25: =AH24 -> 0.06801830341
A26: FF | D26: =IF(Inputs!G23="",0,Inputs!G23) -> 7 | E26: =E25 -> 48 | F26: ='Final Summary'!K36 -> 9.659921568 | G26: ='Final Summary'!L36 -> 26.56095886 | H26: ='Final Summary'!M36 -> 0.3784526757 | I26: ='Final Summary'!N36 -> 0.348187082 | J26: ='PB Liquefaction Initiation'!Q20 -> 0.1317723328 | L26: ='Final Summary'!P36 -> 10.32284758 | M26: ='Final Summary'!Q36 -> 48.26440689 | N26: ='Final Summary'!R36 -> 1.587507535 | O26: ='Final Summary'!S36 -> 0.06383956688 | P26: ='PB Liquefaction Initiation'!N53 -> 0.1013457935 | V26: =IF(Inputs!$G23="",NA(),Inputs!$G23) -> 7 | W26: =W25 -> 48 | X26: ='Final Summary'!V36 -> 9.659921568 | Y26: ='Final Summary'!W36 -> 34.06664467 | Z26: ='Final Summary'!X36 -> 0.6988601747 | AA26: ='Final Summary'!Y36 -> 0.143153208 | AB26: ='Det Liquefaction Initiation'!T20 -> 0.100044076 | AD26: ='Final Summary'!AA36 -> 10.32284758 | AE26: ='Final Summary'!AB36 -> 44.60658197 | AF26: ='Final Summary'!AC36 -> 0.8905459401 | AG26: ='Final Summary'!AD36 -> 0.133924743 | AH26: ='Det Liquefaction Initiation'!O53 -> 0.1192661362
A27: GS | E27: =D26+E26 -> 55 | F27: =F26 -> 9.659921568 | G27: =G26 -> 26.56095886 | H27: =H26 -> 0.3784526757 | I27: =I26 -> 0.348187082 | J27: =J26 -> 0.1317723328 | L27: =L26 -> 10.32284758 | M27: =M26 -> 48.26440689 | N27: =N26 -> 1.587507535 | O27: =O26 -> 0.06383956688 | P27: =P26 -> 0.1013457935 | W27: =V26+W26 -> 55 | X27: =X26 -> 9.659921568 | Y27: =Y26 -> 34.06664467 | Z27: =Z26 -> 0.6988601747 | AA27: =AA26 -> 0.143153208 | AB27: =AB26 -> 0.100044076 | AD27: =AD26 -> 10.32284758 | AE27: =AE26 -> 44.60658197 | AF27: =AF26 -> 0.8905459401 | AG27: =AG26 -> 0.133924743 | AH27: =AH26 -> 0.1192661362
D28: =IF(Inputs!G24="",0,Inputs!G24) -> 4 | E28: =E27 -> 55 | F28: ='Final Summary'!K37 -> 2.375859012 | G28: ='Final Summary'!L37 -> 26.30413055 | H28: ='Final Summary'!M37 -> 0.3695931727 | I28: ='Final Summary'!N37 -> 0.2216323957 | J28: ='PB Liquefaction Initiation'!Q21 -> 0.0819138203 | L28: ='Final Summary'!P37 -> 2.9720421 | M28: ='Final Summary'!Q37 -> 48.12874758 | N28: ='Final Summary'!R37 -> 1.528396878 | O28: ='Final Summary'!S37 -> 0.03783207724 | P28: ='PB Liquefaction Initiation'!N54 -> 0.05782242874 | V28: =IF(Inputs!$G24="",NA(),Inputs!$G24) -> 4 | W28: =W27 -> 55 | X28: ='Final Summary'!V37 -> 2.375859012 | Y28: ='Final Summary'!W37 -> 33.93888474 | Z28: ='Final Summary'!X37 -> 0.6821770233 | AA28: ='Final Summary'!Y37 -> 0.09116481105 | AB28: ='Det Liquefaction Initiation'!T21 -> 0.06219053943 | AD28: ='Final Summary'!AA37 -> 2.9720421 | AE28: ='Final Summary'!AB37 -> 44.79808449 | AF28: ='Final Summary'!AC37 -> 0.8779709061 | AG28: ='Final Summary'!AD37 -> 0.07750462648 | AH28: ='Det Liquefaction Initiation'!O54 -> 0.06804680714
A29: PL/FSL Option | E29: =D28+E28 -> 59 | F29: =F28 -> 2.375859012 | G29: =G28 -> 26.30413055 | H29: =H28 -> 0.3695931727 | I29: =I28 -> 0.2216323957 | J29: =J28 -> 0.0819138203 | L29: =L28 -> 2.9720421 | M29: =M28 -> 48.12874758 | N29: =N28 -> 1.528396878 | O29: =O28 -> 0.03783207724 | P29: =P28 -> 0.05782242874 | W29: =V28+W28 -> 59 | X29: =X28 -> 2.375859012 | Y29: =Y28 -> 33.93888474 | Z29: =Z28 -> 0.6821770233 | AA29: =AA28 -> 0.09116481105 | AB29: =AB28 -> 0.06219053943 | AD29: =AD28 -> 2.9720421 | AE29: =AE28 -> 44.79808449 | AF29: =AF28 -> 0.8779709061 | AG29: =AG28 -> 0.07750462648 | AH29: =AH28 -> 0.06804680714
A30: PL | D30: =IF(Inputs!G25="",0,Inputs!G25) -> 0 | E30: =E29 -> 59 | F30: ='Final Summary'!K38 ->  | G30: ='Final Summary'!L38 ->  | H30: ='Final Summary'!M38 ->  | I30: ='Final Summary'!N38 ->  | J30: ='PB Liquefaction Initiation'!Q22 ->  | L30: ='Final Summary'!P38 ->  | M30: ='Final Summary'!Q38 ->  | N30: ='Final Summary'!R38 ->  | O30: ='Final Summary'!S38 ->  | P30: ='PB Liquefaction Initiation'!N55 ->  | V30: =IF(Inputs!$G25="",NA(),Inputs!$G25) ->  | W30: =W29 -> 59 | X30: ='Final Summary'!V38 ->  | Y30: ='Final Summary'!W38 ->  | Z30: ='Final Summary'!X38 ->  | AA30: ='Final Summary'!Y38 ->  | AB30: ='Det Liquefaction Initiation'!T22 ->  | AD30: ='Final Summary'!AA38 ->  | AE30: ='Final Summary'!AB38 ->  | AF30: ='Final Summary'!AC38 ->  | AG30: ='Final Summary'!AD38 ->  | AH30: ='Det Liquefaction Initiation'!O55 -> 
A31: FSL | E31: =D30+E30 -> 59 | F31: =F30 ->  | G31: =G30 ->  | H31: =H30 ->  | I31: =I30 ->  | J31: =J30 ->  | L31: =L30 ->  | M31: =M30 ->  | N31: =N30 ->  | O31: =O30 ->  | P31: =P30 ->  | W31: =V30+W30 ->  | X31: =X30 ->  | Y31: =Y30 ->  | Z31: =Z30 ->  | AA31: =AA30 ->  | AB31: =AB30 ->  | AD31: =AD30 ->  | AE31: =AE30 ->  | AF31: =AF30 ->  | AG31: =AG30 ->  | AH31: =AH30 -> 
D32: =IF(Inputs!G26="",0,Inputs!G26) -> 0 | E32: =E31 -> 59 | F32: ='Final Summary'!K39 ->  | G32: ='Final Summary'!L39 ->  | H32: ='Final Summary'!M39 ->  | I32: ='Final Summary'!N39 ->  | J32: ='PB Liquefaction Initiation'!Q23 ->  | L32: ='Final Summary'!P39 ->  | M32: ='Final Summary'!Q39 ->  | N32: ='Final Summary'!R39 ->  | O32: ='Final Summary'!S39 ->  | P32: ='PB Liquefaction Initiation'!N56 ->  | V32: =IF(Inputs!$G26="",NA(),Inputs!$G26) ->  | W32: =W31 ->  | X32: ='Final Summary'!V39 ->  | Y32: ='Final Summary'!W39 ->  | Z32: ='Final Summary'!X39 ->  | AA32: ='Final Summary'!Y39 ->  | AB32: ='Det Liquefaction Initiation'!T23 ->  | AD32: ='Final Summary'!AA39 ->  | AE32: ='Final Summary'!AB39 ->  | AF32: ='Final Summary'!AC39 ->  | AG32: ='Final Summary'!AD39 ->  | AH32: ='Det Liquefaction Initiation'!O56 -> 
A33: Liquefiable? | E33: =D32+E32 -> 59 | F33: =F32 ->  | G33: =G32 ->  | H33: =H32 ->  | I33: =I32 ->  | J33: =J32 ->  | L33: =L32 ->  | M33: =M32 ->  | N33: =N32 ->  | O33: =O32 ->  | P33: =P32 ->  | W33: =V32+W32 ->  | X33: =X32 ->  | Y33: =Y32 ->  | Z33: =Z32 ->  | AA33: =AA32 ->  | AB33: =AB32 ->  | AD33: =AD32 ->  | AE33: =AE32 ->  | AF33: =AF32 ->  | AG33: =AG32 ->  | AH33: =AH32 -> 
A34: Yes | D34: =IF(Inputs!G27="",0,Inputs!G27) -> 0 | E34: =E33 -> 59 | F34: ='Final Summary'!K40 ->  | G34: ='Final Summary'!L40 ->  | H34: ='Final Summary'!M40 ->  | I34: ='Final Summary'!N40 ->  | J34: ='PB Liquefaction Initiation'!Q24 ->  | L34: ='Final Summary'!P40 ->  | M34: ='Final Summary'!Q40 ->  | N34: ='Final Summary'!R40 ->  | O34: ='Final Summary'!S40 ->  | P34: ='PB Liquefaction Initiation'!N57 ->  | V34: =IF(Inputs!$G27="",NA(),Inputs!$G27) ->  | W34: =W33 ->  | X34: ='Final Summary'!V40 ->  | Y34: ='Final Summary'!W40 ->  | Z34: ='Final Summary'!X40 ->  | AA34: ='Final Summary'!Y40 ->  | AB34: ='Det Liquefaction Initiation'!T24 ->  | AD34: ='Final Summary'!AA40 ->  | AE34: ='Final Summary'!AB40 ->  | AF34: ='Final Summary'!AC40 ->  | AG34: ='Final Summary'!AD40 ->  | AH34: ='Det Liquefaction Initiation'!O57 -> 
A35: No | E35: =D34+E34 -> 59 | F35: =F34 ->  | G35: =G34 ->  | H35: =H34 ->  | I35: =I34 ->  | J35: =J34 ->  | L35: =L34 ->  | M35: =M34 ->  | N35: =N34 ->  | O35: =O34 ->  | P35: =P34 ->  | W35: =V34+W34 ->  | X35: =X34 ->  | Y35: =Y34 ->  | Z35: =Z34 ->  | AA35: =AA34 ->  | AB35: =AB34 ->  | AD35: =AD34 ->  | AE35: =AE34 ->  | AF35: =AF34 ->  | AG35: =AG34 ->  | AH35: =AH34 -> 
D36: =IF(Inputs!G28="",0,Inputs!G28) -> 0 | E36: =E35 -> 59 | F36: ='Final Summary'!K41 ->  | G36: ='Final Summary'!L41 ->  | H36: ='Final Summary'!M41 ->  | I36: ='Final Summary'!N41 ->  | J36: ='PB Liquefaction Initiation'!Q25 ->  | L36: ='Final Summary'!P41 ->  | M36: ='Final Summary'!Q41 ->  | N36: ='Final Summary'!R41 ->  | O36: ='Final Summary'!S41 ->  | P36: ='PB Liquefaction Initiation'!N58 ->  | V36: =IF(Inputs!$G28="",NA(),Inputs!$G28) ->  | W36: =W35 ->  | X36: ='Final Summary'!V41 ->  | Y36: ='Final Summary'!W41 ->  | Z36: ='Final Summary'!X41 ->  | AA36: ='Final Summary'!Y41 ->  | AB36: ='Det Liquefaction Initiation'!T25 ->  | AD36: ='Final Summary'!AA41 ->  | AE36: ='Final Summary'!AB41 ->  | AF36: ='Final Summary'!AC41 ->  | AG36: ='Final Summary'!AD41 ->  | AH36: ='Det Liquefaction Initiation'!O58 -> 
A37: Settlement Chart Title | E37: =D36+E36 -> 59 | F37: =F36 ->  | G37: =G36 ->  | H37: =H36 ->  | I37: =I36 ->  | J37: =J36 ->  | L37: =L36 ->  | M37: =M36 ->  | N37: =N36 ->  | O37: =O36 ->  | P37: =P36 ->  | W37: =V36+W36 ->  | X37: =X36 ->  | Y37: =Y36 ->  | Z37: =Z36 ->  | AA37: =AA36 ->  | AB37: =AB36 ->  | AD37: =AD36 ->  | AE37: =AE36 ->  | AF37: =AF36 ->  | AG37: =AG36 ->  | AH37: =AH36 -> 
A38: =IF(units=1,"Cumulative Settlement [cm]","Cumulative Settlement [in]") -> Cumulative Settlement [in] | D38: =IF(Inputs!G29="",0,Inputs!G29) -> 0 | E38: =E37 -> 59 | F38: ='Final Summary'!K42 ->  | G38: ='Final Summary'!L42 ->  | H38: ='Final Summary'!M42 ->  | I38: ='Final Summary'!N42 ->  | J38: ='PB Liquefaction Initiation'!Q26 ->  | L38: ='Final Summary'!P42 ->  | M38: ='Final Summary'!Q42 ->  | N38: ='Final Summary'!R42 ->  | O38: ='Final Summary'!S42 ->  | P38: ='PB Liquefaction Initiation'!N59 ->  | V38: =IF(Inputs!$G29="",NA(),Inputs!$G29) ->  | W38: =W37 ->  | X38: ='Final Summary'!V42 ->  | Y38: ='Final Summary'!W42 ->  | Z38: ='Final Summary'!X42 ->  | AA38: ='Final Summary'!Y42 ->  | AB38: ='Det Liquefaction Initiation'!T26 ->  | AD38: ='Final Summary'!AA42 ->  | AE38: ='Final Summary'!AB42 ->  | AF38: ='Final Summary'!AC42 ->  | AG38: ='Final Summary'!AD42 ->  | AH38: ='Det Liquefaction Initiation'!O59 -> 
E39: =D38+E38 -> 59 | F39: =F38 ->  | G39: =G38 ->  | H39: =H38 ->  | I39: =I38 ->  | J39: =J38 ->  | L39: =L38 ->  | M39: =M38 ->  | N39: =N38 ->  | O39: =O38 ->  | P39: =P38 ->  | W39: =V38+W38 ->  | X39: =X38 ->  | Y39: =Y38 ->  | Z39: =Z38 ->  | AA39: =AA38 ->  | AB39: =AB38 ->  | AD39: =AD38 ->  | AE39: =AE38 ->  | AF39: =AF38 ->  | AG39: =AG38 ->  | AH39: =AH38 -> 
A40: Depth Title | D40: =IF(Inputs!G30="",0,Inputs!G30) -> 0 | E40: =E39 -> 59 | F40: ='Final Summary'!K43 ->  | G40: ='Final Summary'!L43 ->  | H40: ='Final Summary'!M43 ->  | I40: ='Final Summary'!N43 ->  | J40: ='PB Liquefaction Initiation'!Q27 ->  | L40: ='Final Summary'!P43 ->  | M40: ='Final Summary'!Q43 ->  | N40: ='Final Summary'!R43 ->  | O40: ='Final Summary'!S43 ->  | P40: ='PB Liquefaction Initiation'!N60 ->  | V40: =IF(Inputs!$G30="",NA(),Inputs!$G30) ->  | W40: =W39 ->  | X40: ='Final Summary'!V43 ->  | Y40: ='Final Summary'!W43 ->  | Z40: ='Final Summary'!X43 ->  | AA40: ='Final Summary'!Y43 ->  | AB40: ='Det Liquefaction Initiation'!T27 ->  | AD40: ='Final Summary'!AA43 ->  | AE40: ='Final Summary'!AB43 ->  | AF40: ='Final Summary'!AC43 ->  | AG40: ='Final Summary'!AD43 ->  | AH40: ='Det Liquefaction Initiation'!O60 -> 
A41: =IF(units=1,"Depth [m]","Depth [ft]") -> Depth [ft] | E41: =D40+E40 -> 59 | F41: =F40 ->  | G41: =G40 ->  | H41: =H40 ->  | I41: =I40 ->  | J41: =J40 ->  | L41: =L40 ->  | M41: =M40 ->  | N41: =N40 ->  | O41: =O40 ->  | P41: =P40 ->  | W41: =V40+W40 ->  | X41: =X40 ->  | Y41: =Y40 ->  | Z41: =Z40 ->  | AA41: =AA40 ->  | AB41: =AB40 ->  | AD41: =AD40 ->  | AE41: =AE40 ->  | AF41: =AF40 ->  | AG41: =AG40 ->  | AH41: =AH40 -> 
D42: =IF(Inputs!G31="",0,Inputs!G31) -> 0 | E42: =E41 -> 59 | F42: ='Final Summary'!K44 ->  | G42: ='Final Summary'!L44 ->  | H42: ='Final Summary'!M44 ->  | I42: ='Final Summary'!N44 ->  | J42: ='PB Liquefaction Initiation'!Q28 ->  | L42: ='Final Summary'!P44 ->  | M42: ='Final Summary'!Q44 ->  | N42: ='Final Summary'!R44 ->  | O42: ='Final Summary'!S44 ->  | P42: ='PB Liquefaction Initiation'!N61 ->  | V42: =IF(Inputs!$G31="",NA(),Inputs!$G31) ->  | W42: =W41 ->  | X42: ='Final Summary'!V44 ->  | Y42: ='Final Summary'!W44 ->  | Z42: ='Final Summary'!X44 ->  | AA42: ='Final Summary'!Y44 ->  | AB42: ='Det Liquefaction Initiation'!T28 ->  | AD42: ='Final Summary'!AA44 ->  | AE42: ='Final Summary'!AB44 ->  | AF42: ='Final Summary'!AC44 ->  | AG42: ='Final Summary'!AD44 ->  | AH42: ='Det Liquefaction Initiation'!O61 -> 
A43: Settlement Table | E43: =D42+E42 -> 59 | F43: =F42 ->  | G43: =G42 ->  | H43: =H42 ->  | I43: =I42 ->  | J43: =J42 ->  | L43: =L42 ->  | M43: =M42 ->  | N43: =N42 ->  | O43: =O42 ->  | P43: =P42 ->  | W43: =V42+W42 ->  | X43: =X42 ->  | Y43: =Y42 ->  | Z43: =Z42 ->  | AA43: =AA42 ->  | AB43: =AB42 ->  | AD43: =AD42 ->  | AE43: =AE42 ->  | AF43: =AF42 ->  | AG43: =AG42 ->  | AH43: =AH42 -> 
A44: Scum. [cm] | D44: =IF(Inputs!G32="",0,Inputs!G32) -> 0 | E44: =E43 -> 59 | F44: ='Final Summary'!K45 ->  | G44: ='Final Summary'!L45 ->  | H44: ='Final Summary'!M45 ->  | I44: ='Final Summary'!N45 ->  | J44: ='PB Liquefaction Initiation'!Q29 ->  | L44: ='Final Summary'!P45 ->  | M44: ='Final Summary'!Q45 ->  | N44: ='Final Summary'!R45 ->  | O44: ='Final Summary'!S45 ->  | P44: ='PB Liquefaction Initiation'!N62 ->  | V44: =IF(Inputs!$G32="",NA(),Inputs!$G32) ->  | W44: =W43 ->  | X44: ='Final Summary'!V45 ->  | Y44: ='Final Summary'!W45 ->  | Z44: ='Final Summary'!X45 ->  | AA44: ='Final Summary'!Y45 ->  | AB44: ='Det Liquefaction Initiation'!T29 ->  | AD44: ='Final Summary'!AA45 ->  | AE44: ='Final Summary'!AB45 ->  | AF44: ='Final Summary'!AC45 ->  | AG44: ='Final Summary'!AD45 ->  | AH44: ='Det Liquefaction Initiation'!O62 -> 
A45: Scum. [in] | E45: =D44+E44 -> 59 | F45: =F44 ->  | G45: =G44 ->  | H45: =H44 ->  | I45: =I44 ->  | J45: =J44 ->  | L45: =L44 ->  | M45: =M44 ->  | N45: =N44 ->  | O45: =O44 ->  | P45: =P44 ->  | W45: =V44+W44 ->  | X45: =X44 ->  | Y45: =Y44 ->  | Z45: =Z44 ->  | AA45: =AA44 ->  | AB45: =AB44 ->  | AD45: =AD44 ->  | AE45: =AE44 ->  | AF45: =AF44 ->  | AG45: =AG44 ->  | AH45: =AH44 -> 
A47: MSF Options
A48: 2012
A49: 2014
A51: Return Period
A52: 475
A53: 1033
A54: 2475
A56: Sampler Type
A57: Standard SS (2-in OD)
A58: Non-Standard (3-in OD)
A59: Non-Standard (2.5-in OD)
A60: D&M SS (3.25-in OD)
A61: Custom Factor

Sheet _HiddenCopy (hidden)
